Workbook

Sheet READ ME
D11: =Translate!$C$21 -> Select language | G11: English
D13: =Translate!$C$22 -> Read Me Sheet
D18: =Translate!$C$23 -> IRRIGATE – Soil Tool
D20: =Translate!$C$24 -> Introduction
D21: =Translate!$C$25 -> This tool serves to determine your soil profile and to find an irrigation schedule for a selected crop. It complements the "SAFEGUARD WATER – Water Requirement Tool". A further complimentary tool is available under:
D25: http://www.fao.org/nr/water/aquastat/climateinfotool/index.stm
D27: =Translate!$C$26 -> Tips & Tricks
D28: =Translate!$C27 -> ● Make sure that macro is always enabled for the proper functioning of this tool
D29: =Translate!$C28 -> ● Only enter values into white cells
D30: =Translate!$C29 -> ● This tool comprises drop down lists and macros to simplify data entry and results review.
D31: =Translate!$C30 -> ● For the multilanguage option to work properly, do NOT delete sheets
D32: =Translate!$C31 -> ● Make sure that this file is always saved as ".xlsm"
D34: =Translate!$C$32 -> Overview
D35: =Translate!$C$33 -> This tool comprises the following sheet:
D37: =Translate!$C$8 -> 1 Geographic Data | G37: =Translate!$C$34 -> for adding basic site information and entering climatic data
D39: =Translate!$C$9 -> 2 Soil Texture Calculator | G39: =Translate!$C$35 -> for calculation of your soil type
D41: =Translate!$C$10 -> 3 Irrigation Schedule | G41: =Translate!$C$36 -> for selecting a crop and planting period; for automatic calculation of water requirement for a single crop; for calculation of an irrigation schedule
D45: =Translate!$C$11 -> 4 Summary | G45: =Translate!$C$37 -> Summary of ourputs for irrigation quantity, frequency and water storage requirements
D47: =Translate!$C$12 -> 5 How this tool works | G47: =Translate!$C$38 -> for understanding the way this tool works and on which data it is based on
D50: =Translate!$C$13 -> Crop Information | G50: =Translate!$C$39 -> for adjusting and adding the necessary crops information
D53: =Translate!$C$40 -> This tool is based on the FAO Irrigation and Drainage Paper No. 56. Crop Evapotranspiration (guidelines for computing crop water requirements), available at:
D56: http://www.fao.org/3/x0490e/x0490e00.htm
D58: =Translate!$C$41 -> About
D59: =Translate!$C$42 -> Published by: | F59: =Translate!$C$48 -> GIZ & FAO
D60: =Translate!$C$43 -> Resposible: | F60: =Translate!$C$49 -> GIZ project Sustainable Energy for Food - Powering Agriculture
D62: =Translate!$C$44 -> Contact: | F62: Powering.Agriculture@giz.de
D63: =Translate!$C$45 -> Download link: | F63: https://energypedia.info/wiki/Toolbox_on_SPIS
D64: =Translate!$C$46 -> About: | F64: =Translate!$C$50 -> Powering Agriculture: An Energy Grand Challenge for Development. Available at:
F66: https://poweringag.org
D67: =Translate!$C$47 -> Version: | F67: =Translate!$C$51 -> 2.0 (July 2020)
D69: =Translate!$C$52 -> The Toolbox on Solar Powered Irrigation Systems is made possible through the global initiative Powering Agriculture: An Energy Grand Challenge for Development (PAEGC). In 2012, the United States Agency for International Development (USAID), the Swedish International Development Cooperation Agency (Sida), the German Federal Ministry for Economic Cooperation and Development (BMZ), Duke Energy, and the Overseas Private Investment Cooperation (OPIC) combined resources to create the PAEGC initiative. The objective of PAEGC is to support new and sustainable approaches to accelerate the development and deployment of clean energy solutions for increasing agriculture productivity and/or value for farmers and agribusinesses in developing countries and emerging regions that lack access to reliable, affordable clean energy.
D82: =Translate!$C$53 -> The designations employed and the presentation of material in this information product do not imply the expression of any opinion whatsoever on the part of Deutsche Gesellschaft für Internationale Zusammenarbeit (GIZ) GmbH, Food and Agriculture Organization of the United Nations (FAO) or any of the PAEGC Founding Partners concerning the legal or development status of any country, territory, city or area or of its authorities, or concerning the delimitation of its frontiers or boundaries. The mention of specific companies or products of manufacturers, whether or not these have been patented, does not imply that these have been endorsed or recommended by GIZ, FAO, or any of the PAEGC Founding Partners in preference to others of a similar nature that are not mentioned. The views expressed in this information product are those of the author and do not necessarily reflect the views or policies of GIZ, FAO, or any of the PAEGC Founding Partners.
D97: =Translate!$C$54 -> GIZ, FAO and the PAEGC Founding Partners encourage the use, reproduction and dissemination of material in this information product. Except where otherwise indicated, material may be copied, downloaded and printed for private study, research and teaching purposes, or for use in non-commercial products or services, provided that appropriate acknowledgement of GIZ and FAO as the source and copyright holder is given.
D105: =Translate!$C$55 -> © GIZ and FAO, 2020

Sheet 1 Geographic Data
A1: IRRIGATE – Soil Tool
A2: Enter basic rainfall and climatic data for your location.
A4: 1 GENERAL GEOGRAPHIC INFORMATION
A7: Country | B7: Kenya | F7: Region
A8: Farm code/name | F8: Date
A10: Name of the farm | B10: Mary
A11: Village
A12: Division
A13: District
A16: Select available climatic data: ¸
A17: Option 1:
A18: Option 2:
A19: Option 3:
A20: Option 4:
B22: =TRANSPOSE(Translate!$C$57:$C$68) -> January | C22: February | D22: March | E22: April | F22: May | G22: June | H22: July | I22: August | J22: September | K22: October | L22: November | M22: December
A23: Mean daily temperature [°C] | B23: 25.5 | C23: 25 | D23: 24.6 | E23: 23.8 | F23: 23.9 | G23: 23.5 | H23: 23 | I23: 23 | J23: 23.6 | K23: 23.9 | L23: 23.6 | M23: 24
A24: Maximum daily temperature [°C]
A25: Minimum daily temperature [°C]
A26: Relative humidity [%]
A27: Wind speed [m/s]
A28: Sunshine [hours]
A29: Reference evapotranspiration [mm/day]
A30: Rainfall [mm/month] | B30: 45 | C30: 33 | D30: 69.3 | E30: 142.8 | F30: 109.8 | G30: 38.1 | H30: 27 | I30: 21.6 | J30: 18.3 | K30: 48.3 | L30: 97.2 | M30: 86.1
A31: Use to obtain indicative monthly rainfall and climatic data for the site: | E31: http://www.worldclimate.com | H31: http://www.weatherbase.com/
A34: Select geographic location:
B35: Altitude: | D35: meter
E36: Hemisphere:
B37: Latitude: | C37: 3.33 | D37: decimal degree | F37: North
B38: Longitude: | C38: 38.55 | D38: decimal degree | F38: East
I40: Notes:
A56: Use to identify exact coordinates of the site: | C56: https://www.google.de/maps

Sheet 2 Soil Texture Calculator
A1: IRRIGATE – Soil Tool
A2: Put in values to determine your soil type
A4: 2 TEXTURE CALCULATOR
N6: Farm code/name: | P6: ='1 Geographic Data'!$B$10 -> Mary
B10: Percentage of sand: | E10: 0.15
G11: =IF(E10+E13>1,"Please ensure your inputs (percentage of sand, clay, and silt) add up to 100%","") -> 
B13: Percentage of clay: | E13: 0.25
B16: Percentage of silt: | E16: =IF(1-E10-E13<0,"",1-E10-E13) -> 0.6
B21: Soil Texture: | E21: =IFERROR(IF(E10+E13>1,"",VLOOKUP(TRUE,'Soil Information-Calculations'!$D$4:$E$15,2,FALSE)),"Could not determine soil texture") -> SILT LOAM
B29: =IFERROR(VLOOKUP(E21,#REF!,1,FALSE) & " - Characteristics:","") -> 
C31: Field Capacity (FC): | F31: =IFERROR(VLOOKUP(E21,'Soil Information-Calculations'!$B$23:$D$34,2,FALSE),"") -> 31
C33: Permanent Wilting Point (PWP): | F33: =IFERROR(VLOOKUP($E$21,'Soil Information-Calculations'!$B$23:$D$34,3,FALSE),"") -> 11
B37: Definitions:
B39: Field Capacity is the amount of soil moisture or water content held in the soil after excess water has drained
B42: Permanent wilting point is the minimal point of soil moisture the plant requires not to wilt.
K47: Calculator adapted from : | M47: United States Department of Agriculture

Sheet 3 Irrigation Schedule
A1: IRRIGATE – Soil Tool
A2: Select crop intended for planting at your location, for automatic indication of water requirements
A4: 3 IRRIGATION SCHEDULE
N6: Farm code/name: | P6: ='1 Geographic Data'!$B$10 -> Mary
E7: Conversion factor to 1 ha:
B8: Area measurement unit: | C8: acre | E8: =INDEX('Data Validation Sheet'!C1:$C$6,MATCH($C$8,'Data Validation Sheet'!$B$1:$B$6,0)) -> 2.47105 | F8: =C8&" = 1 hectar" -> acre = 1 hectar
D11: ='General Calculation'!D132 -> March | E11: ='General Calculation'!E132 -> April | F11: ='General Calculation'!F132 -> May | G11: ='General Calculation'!G132 -> June | H11: ='General Calculation'!H132 -> July | I11: ='General Calculation'!I132 -> August | J11: ='General Calculation'!J132 -> September | K11: ='General Calculation'!K132 -> October | L11: ='General Calculation'!L132 -> November | M11: ='General Calculation'!M132 -> December | N11: ='General Calculation'!N132 -> January | O11: ='General Calculation'!O132 -> February
B12: ='1 Geographic Data'!A23 -> Mean daily temperature [°C] | D12: ='General Calculation'!D126 -> 24.6 | E12: ='General Calculation'!E126 -> 23.8 | F12: ='General Calculation'!F126 -> 23.9 | G12: ='General Calculation'!G126 -> 23.5 | H12: ='General Calculation'!H126 -> 23 | I12: ='General Calculation'!I126 -> 23 | J12: ='General Calculation'!J126 -> 23.6 | K12: ='General Calculation'!K126 -> 23.9 | L12: ='General Calculation'!L126 -> 23.6 | M12: ='General Calculation'!M126 -> 24 | N12: ='General Calculation'!N126 -> 25.5 | O12: ='General Calculation'!O126 -> 25 | P12: ° C | Q12: Above average temperature
B13: ='1 Geographic Data'!A30 -> Rainfall [mm/month] | D13: ='General Calculation'!D127 -> 69.3 | E13: ='General Calculation'!E127 -> 142.8 | F13: ='General Calculation'!F127 -> 109.8 | G13: ='General Calculation'!G127 -> 38.1 | H13: ='General Calculation'!H127 -> 27 | I13: ='General Calculation'!I127 -> 21.6 | J13: ='General Calculation'!J127 -> 18.3 | K13: ='General Calculation'!K127 -> 48.3 | L13: ='General Calculation'!L127 -> 97.2 | M13: ='General Calculation'!M127 -> 86.1 | N13: ='General Calculation'!N127 -> 45 | O13: ='General Calculation'!O127 -> 33 | P13: mm/month | Q13: Above average rainfall
B14: ='Crop Calculation Sheet'!$H$17 & "Crop Water Need [mm/month] " -> Maize Crop Water Need [mm/month] | D14: ='General Calculation'!D133 -> 44.44444444 | E14: ='General Calculation'!E133 -> 111.1111111 | F14: ='General Calculation'!F133 -> 222.2222222 | G14: ='General Calculation'!G133 -> 188.8888889 | H14: ='General Calculation'!H133 -> 77.77777778 | I14: ='General Calculation'!I133 -> 0 | J14: ='General Calculation'!J133 -> 0 | K14: ='General Calculation'!K133 -> 0 | L14: ='General Calculation'!L133 -> 0 | M14: ='General Calculation'!M133 -> 0 | N14: ='General Calculation'!N133 -> 0 | O14: ='General Calculation'!O133 -> 0 | P14: mm/month
A16: Estimation of crop uptake | T16: Indicative values for application depths of the various irrigation methods
B17: Crop to be irrigated | E17: ="Area in "&C8 -> Area in acre | G17: Planting date | I17: Irrigation method | L17: Irrigation Efficiency | N17: Maximum possible irrigation applicatiom
G18: =TODAY() -> 2020-08-04 | T18: Irrigation method | U18: Application Depth (mm)
B19: Maize (grain - Oct - India (dry, cool)) | E19: 1 | G19: 2020-03-15 | I19: Microirrigation: Drip irrigation | M19: =IFERROR(VLOOKUP($I$19,'General Calculation'!$B$142:$C$159,2,FALSE)/100,"") -> 0.9 | P19: 10 | Q19: mm | T19: Small basins (<200 m2) | U19: 40 - 80
T20: Large basins (>500 m2) | U20: 80 - 150
T21: Furrows | U21: 30 - 60
T22: Borders | U22: 40 - 80
T23: Sprinkler | U23: 30 - 60
A24: Estimation of soil reservoir | T24: Drip | U24: 10 - 20
B25: Soil: | C25: Clay loam | T25: http://www.fao.org/tempref/agl/AGLW/Morini/07_IRRIGATION.pdf
B27: Initial water content (% TAW): | C27: 0.5
B29: Field Capacity (FC): | C29: =IFERROR(VLOOKUP($C$25,'Soil Information-Calculations'!$B$23:$D$34,2,FALSE),"") -> 36
B31: Permanent Wilting Point (PWP): | C31: =IFERROR(VLOOKUP($C$25,'Soil Information-Calculations'!$B$23:$D$34,3,FALSE),"") -> 22
B33: Maximum rooting depth [m]: | C33: ='Crop Calculation Sheet'!$M$28 -> 1
C36: Irrigation Schedule for | F36: ='Crop Calculation Sheet'!$H$17 -> Maize | I36: in a | J36: =C25 -> Clay loam | L36: in | M36: ='1 Geographic Data'!$B$7 -> Kenya
D38: =D11 -> March | E38: =E11 -> April | F38: May | G38: June | H38: July | I38: August | J38: September | K38: October | L38: November | M38: December | N38: January | O38: February
B39: Irrigation amount (m³): | D39: ='General Calculation'!D134 -> 179.8605631 | E39: ='General Calculation'!E134 -> 449.6514077 | F39: ='General Calculation'!F134 -> 899.3028155 | G39: ='General Calculation'!G134 -> 764.4073932 | H39: ='General Calculation'!H134 -> 314.7559854 | I39: ='General Calculation'!I134 -> 0 | J39: ='General Calculation'!J134 -> 0 | K39: ='General Calculation'!K134 -> 0 | L39: ='General Calculation'!L134 -> 0 | M39: ='General Calculation'!M134 -> 0 | N39: ='General Calculation'!N134 -> 0 | O39: ='General Calculation'!O134 -> 0
B40: Number of irrigation events (number of days): | D40: ='General Calculation'!D137 -> 4 | E40: ='General Calculation'!E137 -> 10 | F40: ='General Calculation'!F137 -> 20 | G40: ='General Calculation'!G137 -> 17 | H40: ='General Calculation'!H137 -> 7 | I40: ='General Calculation'!I137 -> 0 | J40: ='General Calculation'!J137 -> 0 | K40: ='General Calculation'!K137 -> 0 | L40: ='General Calculation'!L137 -> 0 | M40: ='General Calculation'!M137 -> 0 | N40: ='General Calculation'!N137 -> 0 | O40: ='General Calculation'!O137 -> 0
B42: Minimum water storage reservoir capacity for an irrigation event [m³]: | D42: ='General Calculation'!D136 -> 44.96514077 | E42: ='General Calculation'!E136 -> 44.96514077 | F42: ='General Calculation'!F136 -> 44.96514077 | G42: ='General Calculation'!G136 -> 44.96514077 | H42: ='General Calculation'!H136 -> 44.96514077 | I42: ='General Calculation'!I136 -> 0 | J42: ='General Calculation'!J136 -> 0 | K42: ='General Calculation'!K136 -> 0 | L42: ='General Calculation'!L136 -> 0 | M42: ='General Calculation'!M136 -> 0 | N42: ='General Calculation'!N136 -> 0 | O42: ='General Calculation'!O136 -> 0

Sheet 4 Summary
A1: IRRIGATE – Soil Tool
A2: Summary Sheet of Crop Water Requirements and Livestock Water Requirements
A4: 4 Summary for Irrigation Requirements
M6: Farm code/name: | O6: ='1 Geographic Data'!$B$10 -> Mary
B8: Soil type: | D8: ='2 Soil Texture Calculator'!E21 -> SILT LOAM | F8: from Soil Texture Calculator sheet
B9: Selected soil type: | D9: ='3 Irrigation Schedule'!C25 -> Clay loam | F9: from Irrigation Schedule sheet
B10: Crop root depth: | D10: ='3 Irrigation Schedule'!C33 -> 1 | F10: from Irrigation Schedule sheet
B12: Irrigation quantity and number of irrigation events: | H12: ="Area in " & '3 Irrigation Schedule'!$C$8 &": " -> Area in acre: | J12: ='3 Irrigation Schedule'!$E$19 -> 1
B14: Crop | E14: ='3 Irrigation Schedule'!D38 -> March | F14: ='3 Irrigation Schedule'!E38 -> April | G14: ='3 Irrigation Schedule'!F38 -> May | H14: ='3 Irrigation Schedule'!G38 -> June | I14: ='3 Irrigation Schedule'!H38 -> July | J14: ='3 Irrigation Schedule'!I38 -> August | K14: ='3 Irrigation Schedule'!J38 -> September | L14: ='3 Irrigation Schedule'!K38 -> October | M14: ='3 Irrigation Schedule'!L38 -> November | N14: ='3 Irrigation Schedule'!M38 -> December | O14: ='3 Irrigation Schedule'!N38 -> January | P14: ='3 Irrigation Schedule'!O38 -> February
B15: ='Crop Calculation Sheet'!$H$17 -> Maize | D15: m3/month | E15: ='3 Irrigation Schedule'!D39 -> 179.8605631 | F15: ='3 Irrigation Schedule'!E39 -> 449.6514077 | G15: ='3 Irrigation Schedule'!F39 -> 899.3028155 | H15: ='3 Irrigation Schedule'!G39 -> 764.4073932 | I15: ='3 Irrigation Schedule'!H39 -> 314.7559854 | J15: ='3 Irrigation Schedule'!I39 -> 0 | K15: ='3 Irrigation Schedule'!J39 -> 0 | L15: ='3 Irrigation Schedule'!K39 -> 0 | M15: ='3 Irrigation Schedule'!L39 -> 0 | N15: ='3 Irrigation Schedule'!M39 -> 0 | O15: ='3 Irrigation Schedule'!N39 -> 0 | P15: ='3 Irrigation Schedule'!O39 -> 0
D16: № of events | E16: ='3 Irrigation Schedule'!D40 -> 4 | F16: ='3 Irrigation Schedule'!E40 -> 10 | G16: ='3 Irrigation Schedule'!F40 -> 20 | H16: ='3 Irrigation Schedule'!G40 -> 17 | I16: ='3 Irrigation Schedule'!H40 -> 7 | J16: ='3 Irrigation Schedule'!I40 -> 0 | K16: ='3 Irrigation Schedule'!J40 -> 0 | L16: ='3 Irrigation Schedule'!K40 -> 0 | M16: ='3 Irrigation Schedule'!L40 -> 0 | N16: ='3 Irrigation Schedule'!M40 -> 0 | O16: ='3 Irrigation Schedule'!N40 -> 0 | P16: ='3 Irrigation Schedule'!O40 -> 0
B18: Required water storage reservoir capacity for an irrigation event: | J18: =MAX('3 Irrigation Schedule'!D42:O42) -> 44.96514077 | K18: m3

Sheet 5 How this tool works
A1: How the Soil Tool works
J4: This tool is based on the Water Requirement Tool. To understand how the water requirement is calculated, please check the Water Requirement Tool.
C6: Overview
F8: 1 | H8: The soil type
F9: 2 | H9: Determination the soil type
F10: 3 | H10: Calculation of the irrigation schedule
A14: 1 | C14: The soil type
D17: The soil type is an important factor in determining how fast and how often irrigation should be scheduled.
D18: Like a sponge, the soil absorbs and holds water, depending on the percentage of the three main components:
E20: Sand
E21: Silt
E22: Clay
D24: With different percentages of the main components, the soil type changes it's bevavior, as shown in table 2.
AI28: Figure 1: Water distribution in different soil types
D32: Name of the particle | K32: Size limit in mm | Q32: Distinguisable with the naked eye
D34: gravel | K34: larger than 1 | Q34: obviously
D35: sand | K35: 1 to 0.5 | Q35: easily
D36: silt | K36: 0.5 to 0.002 | Q36: barely
D37: clay | K37: less than 0.002 | Q37: impossible
D39: Table 1: Classification of mineral particles, from: | P39: FAO
AC48: Table 2: Characteristics of the different soil components, from: | AS48: Michigan State University
A60: 2 | C60: Determination of the soil type
D63: The soil type can be determined in the laboratory using a particle size analysis. Sand, silt and clay have different diameters, by sieving them their distribution delivers information about the soil type.
D65: Another way to determine the soil type is the "Jar Test":
D66: 1 | E66: Remove soil from the zone to be irrigated
D67: 2 | E67: Place the soil sample into the jar and fill it with water
D68: 3 | E68: Shake the jar and let it sit for two hours, the particles will settle to the bottom, in their different layers
D69: 4 | E69: Measure the total height of all layers, than the height of each layer.
D70: 5 | E70: Divide the height of each layer by the total height which gives you the percentage of clay, silt and sand.
D73: Putting in the obtained percentages of clay, silt and sand, soil texture triangles as seen in Figure 3 show the type of soil you have.
AN79: Figure 2: the Jar Test
I96: Figure 3: The Soil Texture Triangle from: | T96: United States Department of Agriculture
A100: 3 | C100: Calculation of the irrigation schedule
B101: This calculation is based on the FAO Irrigation and Drainage Paper. No. 56. Crop Evapotranspiration (guidelines for computing crop water requirements), available at:
AK102: http://www.fao.org/docrep/t7202e/t7202e00.htm
D115: Soil water balance is estimated on a daily basis using the following steps: | AJ115: Figure 4: Soil water balance components
E117: 1 | F117: Calculate daily reference evapotranspiration
E118: 2 | F118: Calculate total available water (TAW) in the root zone considering FC, PWP ad the rooting depth
E119: 3 | F119: Calculate Readily available water considering the depletion factor;
H132: Table 2: Example for ranges of maximum effective rooting depth and soil water depletion fraction for no stress
E134: 4 | F134: Calculate water stress coefficient by:
E135: 5 | F135: Calculate daily soil water balance
F136: * | G136: estimating daily root zone depletion
F137: * | G137: when the depletion exceeds a certain threshold, it is time to irrigate
F138: * | G138: if the maximum possible irrigation method application is lower than RAW, then the threshold is the maximum application for the irrigation system
F139: * | G139: else if the maximum possible irrigation method application is greater than RAW, then the threshold is RAW
F140: * | G140: these consideration thus, allow irrigation considering the capacity of the irrigation system and avoid at the same time water stress
X150: Figure 5: Soil water balance
E156: 6 | F156: The amount of irrigation water and the irrigation day are determined for the entire crop growth period.
E157: 7 | F157: water storage size is determined by taking into account the greatest amount of water for an irrigation event.

Sheet Crop Information
B2: This data is based on the FAO Irrigation and Drainage Paper. No. 56. Crop Evapotranspiration (guidelines for computing crop water requirements), available at: | K2: http://www.fao.org/3/x0490e/x0490e00.htm
D5: Crop Growing Period | I5: Crop Factor of the development stages | L5: Maximum Root Depth | N5: Depletion Fraction
B6: Crop | C6: # | D6: Initial stage | E6: Crop Development stage | F6: Mid season stage | G6: Late season stage | H6: Total | I6: Initial stage | J6: Mid season stage | K6: Late season stage | L6: Initial | M6: Maximum
B7: none | C7: 1
B8: Alfalfa (1st cutting cycle - Jan/Apr - USA) | C8: 2 | D8: 10 | E8: 25 | F8: 23 | G8: 10 | H8: =SUM(D8:G8) -> 68 | I8: 0.4 | J8: 1.1 | K8: 1 | L8: 1.2 | M8: 1.2 | N8: 0.55
B9: Alfalfa (other cutting cycle - Mar/Jun - USA) | C9: 3 | D9: 5 | E9: 15 | F9: 10 | G9: 8 | H9: =SUM(D9:G9) -> 38 | I9: 0.4 | J9: 1.1 | K9: 1 | L9: 1.2 | M9: 1.2 | N9: 0.55
B10: Alfalfa (seeds - Mar/Jun - USA) | C10: 4 | D10: 5 | E10: 15 | F10: 10 | G10: 8 | H10: 38 | I10: 0.4 | J10: 0.5 | K10: 0.5 | L10: 1.2 | M10: 1.2 | N10: 0.6
B11: Almond (no ground cover - Apr - USA) | C11: 5 | D11: 20 | E11: 10 | F11: 130 | G11: 30 | H11: 190 | I11: 0.4 | J11: 0.9 | K11: 0.65 | L11: 1.5 | M11: 1.5 | N11: 0.5
B12: Artichoke (1st year - Apr - California) | C12: 6 | D12: 40 | E12: 40 | F12: 250 | G12: 30 | H12: 360 | I12: 0.5 | J12: 1 | K12: 0.95 | L12: 0.25 | M12: 0.9 | N12: 0.45
B13: Artichoke (2nd year - May - cut in May) | C13: 7 | D13: 20 | E13: 25 | F13: 250 | G13: 30 | H13: 325 | I13: 0.5 | J13: 1 | K13: 0.95 | L13: 0.9 | M13: 0.9 | N13: 0.45
B14: Asparagus (Feb - warm winter) | C14: 8 | D14: 50 | E14: 30 | F14: 100 | G14: 50 | H14: 230 | I14: 0.5 | J14: 0.95 | K14: 0.3 | L14: 0.25 | M14: 1.5 | N14: 0.45
B15: Asparagus (Feb - Mediterranean) | C15: 9 | D15: 90 | E15: 30 | F15: 200 | G15: 45 | H15: 365 | I15: 0.5 | J15: 0.95 | K15: 0.3 | L15: 0.25 | M15: 1.5 | N15: 0.45
B16: Avocado (Jan - Florida, USA) | C16: 10 | D16: 60 | E16: 60 | F16: 120 | G16: 120 | H16: 360 | I16: 0.7 | J16: 0.98 | K16: 0.7 | L16: 0.25 | M16: 1 | N16: 0.7
B17: Banana (1st year - Mar - Mediterranean) | C17: 11 | D17: 120 | E17: 90 | F17: 120 | G17: 60 | H17: 390 | I17: 0.5 | J17: 1.1 | K17: 1 | L17: 0.3 | M17: 0.9 | N17: 0.45
B18: Banana (1st year - Mar - subtropical/humid/light to moderate wind) | C18: 12 | D18: 120 | E18: 90 | F18: 120 | G18: 60 | H18: 390 | I18: 0.6 | J18: 1 | K18: 0.8 | L18: 0.3 | M18: 0.9 | N18: 0.45
B19: Banana (1st year - Mar - subtropical/tropical) | C19: 13 | D19: 90 | E19: 165 | F19: 45 | G19: 30 | H19: 330 | I19: 0.5 | J19: 1.1 | K19: 1 | L19: 0.3 | M19: 0.9 | N19: 0.45
B20: Banana (2nd year - Mar - Mediterranean) | C20: 14 | D20: 120 | E20: 60 | F20: 180 | G20: 5 | H20: 365 | I20: 1 | J20: 1.2 | K20: 1.1 | L20: 0.9 | M20: 0.9 | N20: 0.45
B21: Banana (2nd year - Feb - subtropical/tropical) | C21: 15 | D21: 60 | E21: 60 | F21: 75 | G21: 45 | H21: 240 | I21: 1 | J21: 1.2 | K21: 1.1 | L21: 0.9 | M21: 0.9 | N21: 0.45
B22: Barley/Oats/Wheat (Nov - central India) | C22: 16 | D22: 15 | E22: 25 | F22: 50 | G22: 30 | H22: 120 | I22: 0.3 | J22: 1.15 | K22: 0.25 | L22: 0.3 | M22: 1.1 | N22: 0.55
B23: Barley/Oats/Wheat (Mar/Apr - 35/45 °L)) | C23: 17 | D23: 20 | E23: 25 | F23: 60 | G23: 30 | H23: 135 | I23: 0.3 | J23: 1.15 | K23: 0.25 | L23: 0.3 | M23: 1.1 | N23: 0.55
B24: Barley/Oats/Wheat (Jul - East Africa) | C24: 18 | D24: 15 | E24: 30 | F24: 65 | G24: 40 | H24: 150 | I24: 0.3 | J24: 1.15 | K24: 0.25 | L24: 0.3 | M24: 1.1 | N24: 0.55
B25: Barley/Oats/Wheat (Nov) | C25: 19 | D25: 40 | E25: 60 | F25: 60 | G25: 40 | H25: 200 | I25: 0.4 | J25: 1.15 | K25: 0.3 | L25: 0.3 | M25: 1.1 | N25: 0.55
B26: Barley/Oats/Wheat (Dec - California desert) | C26: 20 | D26: 20 | E26: 50 | F26: 60 | G26: 30 | H26: 160 | I26: 0.7 | J26: 1.15 | K26: 0.3 | L26: 0.3 | M26: 1.1 | N26: 0.55
B27: Beans (dry - May/Jun - central climates) | C27: 21 | D27: 20 | E27: 30 | F27: 40 | G27: 20 | H27: 110 | I27: 0.4 | J27: 1.15 | K27: 0.35 | L27: 0.3 | M27: 0.9 | N27: 0.45
B28: Beans (dry - Jun - Pakistan/California) | C28: 22 | D28: 15 | E28: 25 | F28: 35 | G28: 20 | H28: 95 | I28: 0.4 | J28: 1.15 | K28: 0.35 | L28: 0.3 | M28: 0.9 | N28: 0.45
B29: Beans (dry - Jun - Idaho) | C29: 23 | D29: 25 | E29: 25 | F29: 30 | G29: 20 | H29: 100 | I29: 0.4 | J29: 1.15 | K29: 0.35 | L29: 0.3 | M29: 0.9 | N29: 0.45
B30: Beans (green - Feb/Mar - California/Mediterranean) | C30: 24 | D30: 20 | E30: 30 | F30: 30 | G30: 10 | H30: 90 | I30: 0.5 | J30: 1.05 | K30: 0.9 | L30: 0.3 | M30: 0.7 | N30: 0.45
B31: Beans (green - Aug/Sep - California/Egypt/Lebanon) | C31: 25 | D31: 15 | E31: 25 | F31: 25 | G31: 10 | H31: 75 | I31: 0.5 | J31: 1.05 | K31: 0.9 | L31: 0.3 | M31: 0.7 | N31: 0.45
B32: Beets (table - Apr/May - Mediterranean) | C32: 26 | D32: 15 | E32: 25 | F32: 20 | G32: 10 | H32: 70 | I32: 0.5 | J32: 1.05 | K32: 0.95 | L32: 0.25 | M32: 0.8 | N32: 0.5
B33: Beets (table - Feb/Mar - Mediterranean/Arid) | C33: 27 | D33: 25 | E33: 30 | F33: 25 | G33: 10 | H33: 90 | I33: 0.5 | J33: 1.05 | K33: 0.95 | L33: 0.25 | M33: 0.8 | N33: 0.5
B34: Broccoli (Sept - California desert) | C34: 28 | D34: 35 | E34: 45 | F34: 40 | G34: 15 | H34: 135 | I34: 0.7 | J34: 1.05 | K34: 0.95 | L34: 0.25 | M34: 0.5 | N34: 0.45
B35: Cabbage (Sept - California desert) | C35: 29 | D35: 40 | E35: 60 | F35: 50 | G35: 15 | H35: 165 | I35: 0.7 | J35: 1.05 | K35: 0.95 | L35: 0.25 | M35: 0.5 | N35: 0.45
B36: Cantaloupe (Jan - California ) | C36: 30 | D36: 30 | E36: 45 | F36: 35 | G36: 10 | H36: 120 | I36: 0.5 | J36: 0.85 | K36: 0.6 | L36: 0.25 | M36: 1.2 | N36: 0.45
B37: Cantaloupe (Aug - California ) | C37: 31 | D37: 10 | E37: 60 | F37: 25 | G37: 25 | H37: 120 | I37: 0.5 | J37: 0.85 | K37: 0.6 | L37: 0.25 | M37: 1.2 | N37: 0.45
B38: Carrots (Oct/Jan - Arid climate ) | C38: 32 | D38: 20 | E38: 30 | F38: 30 | G38: 20 | H38: 100 | I38: 0.7 | J38: 1.05 | K38: 0.95 | L38: 0.25 | M38: 0.8 | N38: 0.35
B39: Carrots (Feb/Mar - Mediterranean ) | C39: 33 | D39: 30 | E39: 40 | F39: 60 | G39: 20 | H39: 150 | I39: 0.7 | J39: 1.05 | K39: 0.95 | L39: 0.25 | M39: 0.8 | N39: 0.35
B40: Carrots (Oct - California desert) | C40: 34 | D40: 30 | E40: 50 | F40: 90 | G40: 30 | H40: 200 | I40: 0.7 | J40: 1.05 | K40: 0.95 | L40: 0.25 | M40: 0.8 | N40: 0.35
B41: Cassava ( 1st year - rainy season - Tropical regions) | C41: 35 | D41: 20 | E41: 40 | F41: 90 | G41: 60 | H41: 210 | I41: 0.3 | J41: 0.8 | K41: 0.3 | L41: 0.25 | M41: 0.8 | N41: 0.35
B42: Cassava ( 2nd year - season - Tropical regions) | C42: 36 | D42: 150 | E42: 40 | F42: 110 | G42: 60 | H42: 360 | I42: 0.3 | J42: 1.1 | K42: 0.5 | L42: 0.8 | M42: 0.8 | N42: 0.4
B43: Castor beans (Mar - semiarid climates ) | C43: 37 | D43: 25 | E43: 40 | F43: 65 | G43: 50 | H43: 180 | I43: 0.35 | J43: 1.15 | K43: 0.55 | L43: 0.25 | M43: 1 | N43: 0.5
B44: Castor beans (Nov - Indonesia ) | C44: 38 | D44: 20 | E44: 40 | F44: 50 | G44: 25 | H44: 135 | I44: 0.35 | J44: 1.15 | K44: 0.55 | L44: 0.25 | M44: 1 | N44: 0.5
B45: Cauliflower (Sept - California desert) | C45: 39 | D45: 35 | E45: 50 | F45: 40 | G45: 15 | H45: 140 | I45: 0.7 | J45: 1.05 | K45: 0.95 | L45: 0.25 | M45: 0.7 | N45: 0.45
B46: Celery (Oct- semiarid) | C46: 40 | D46: 25 | E46: 40 | F46: 95 | G46: 20 | H46: 180 | I46: 0.7 | J46: 1.05 | K46: 1 | L46: 0.2 | M46: 0.5 | N46: 0.2
B47: Celery (Apr - Mediterranean) | C47: 41 | D47: 25 | E47: 40 | F47: 45 | G47: 15 | H47: 125 | I47: 0.7 | J47: 1.05 | K47: 1 | L47: 0.2 | M47: 0.5 | N47: 0.2
B48: Celery (Jan - semiarid) | C48: 42 | D48: 30 | E48: 55 | F48: 105 | G48: 20 | H48: 210 | I48: 0.7 | J48: 1.05 | K48: 1 | L48: 0.2 | M48: 0.5 | N48: 0.2
B49: Chilli pepper (Brazil/Tropical) | C49: 43 | D49: 30 | E49: 15 | F49: 20 | G49: 10 | H49: 75 | I49: 0.63 | J49: 1.4 | K49: 0.86 | L49: 0.25 | M49: 0.8 | N49: 0.3
B50: Citrus (no ground cover/70% canopy - Jan - Mediterranean) | C50: 44 | D50: 60 | E50: 90 | F50: 120 | G50: 95 | H50: 365 | I50: 0.7 | J50: 0.65 | K50: 0.7 | L50: 1.5 | M50: 1.5 | N50: 0.5
B51: Citrus (no ground cover/50% canopy - Jan - Mediterranean) | C51: 45 | D51: 60 | E51: 90 | F51: 120 | G51: 95 | H51: 365 | I51: 0.65 | J51: 0.6 | K51: 0.65 | L51: 1.3 | M51: 1.3 | N51: 0.5
B52: Citrus (no ground cover/20% canopy - Jan - Mediterranean) | C52: 46 | D52: 60 | E52: 90 | F52: 120 | G52: 95 | H52: 365 | I52: 0.5 | J52: 0.45 | K52: 0.55 | L52: 1 | M52: 1 | N52: 0.5
B53: Citrus (with active ground cover or weeds/70% canopy - Jan - Mediterranean) | C53: 47 | D53: 60 | E53: 90 | F53: 120 | G53: 95 | H53: 365 | I53: 0.75 | J53: 0.7 | K53: 0.75 | L53: 1.5 | M53: 1.5 | N53: 0.5
B54: Citrus (with active ground cover or weeds/50% canopy - Jan - Mediterranean) | C54: 48 | D54: 60 | E54: 90 | F54: 120 | G54: 95 | H54: 365 | I54: 0.8 | J54: 0.8 | K54: 0.8 | L54: 1.3 | M54: 1.3 | N54: 0.5
B55: Citrus (with active ground cover or weeds/20% canopy - Jan - Mediterranean) | C55: 49 | D55: 60 | E55: 90 | F55: 120 | G55: 95 | H55: 365 | I55: 0.85 | J55: 0.85 | K55: 0.85 | L55: 1 | M55: 1 | N55: 0.5
B56: Cotton (Mar/May - Egypt/Pakistan/California) | C56: 50 | D56: 30 | E56: 50 | F56: 60 | G56: 55 | H56: 195 | I56: 0.35 | J56: 1.2 | K56: 0.6 | L56: 0.3 | M56: 1.4 | N56: 0.65
B57: Cotton (Mar - California desert) | C57: 51 | D57: 45 | E57: 90 | F57: 45 | G57: 45 | H57: 225 | I57: 0.35 | J57: 1.2 | K57: 0.6 | L57: 0.3 | M57: 1.4 | N57: 0.65
B58: Cotton (Sept - Yemen ) | C58: 52 | D58: 30 | E58: 50 | F58: 60 | G58: 55 | H58: 195 | I58: 0.35 | J58: 1.2 | K58: 0.6 | L58: 0.3 | M58: 1.4 | N58: 0.65
B59: Cotton (Apr - Texas ) | C59: 53 | D59: 30 | E59: 50 | F59: 55 | G59: 45 | H59: 180 | I59: 0.35 | J59: 1.2 | K59: 0.6 | L59: 0.3 | M59: 1.4 | N59: 0.65
B60: Cucumber (Jun/Aug - arid region ) | C60: 54 | D60: 20 | E60: 30 | F60: 40 | G60: 15 | H60: 105 | I60: 0.6 | J60: 1 | K60: 0.75 | L60: 0.25 | M60: 1 | N60: 0.5
B61: Cucumber (Nov/Feb - arid region ) | C61: 55 | D61: 25 | E61: 35 | F61: 50 | G61: 20 | H61: 130 | I61: 0.6 | J61: 1 | K61: 0.75 | L61: 0.25 | M61: 1 | N61: 0.5
B62: Deciduous Orchard (no ground cover/killing frost - Mar - high latitudes) | C62: 56 | D62: 20 | E62: 70 | F62: 90 | G62: 30 | H62: 210 | I62: 0.45 | J62: 0.93 | K62: 0.68 | L62: 1.5 | M62: 1.5 | N62: 0.5
B63: Deciduous Orchard (no ground cover/no frosts - Mar - high latitudes) | C63: 57 | D63: 20 | E63: 70 | F63: 90 | G63: 30 | H63: 210 | I63: 0.58 | J63: 0.93 | K63: 0.7 | L63: 1.5 | M63: 1.5 | N63: 0.5
B64: Deciduous Orchard (active ground cover/killing frost - Mar - high latitudes) | C64: 58 | D64: 20 | E64: 70 | F64: 90 | G64: 30 | H64: 210 | I64: 0.5 | J64: 1.18 | K64: 0.93 | L64: 1.5 | M64: 1.5 | N64: 0.5
B65: Deciduous Orchard (active ground cover/no frosts - Mar - high latitudes) | C65: 59 | D65: 20 | E65: 70 | F65: 90 | G65: 30 | H65: 210 | I65: 0.8 | J65: 1.18 | K65: 0.85 | L65: 1.5 | M65: 1.5 | N65: 0.5
B66: Deciduous Orchard (no ground cover/killing frost - Mar - low latitudes) | C66: 60 | D66: 20 | E66: 70 | F66: 120 | G66: 60 | H66: 270 | I66: 0.45 | J66: 0.93 | K66: 0.68 | L66: 1.5 | M66: 1.5 | N66: 0.5
B67: Deciduous Orchard (no ground cover/no frosts - Mar - low latitudes) | C67: 61 | D67: 20 | E67: 70 | F67: 120 | G67: 60 | H67: 270 | I67: 0.58 | J67: 0.93 | K67: 0.7 | L67: 1.5 | M67: 1.5 | N67: 0.5
B68: Deciduous Orchard (active ground cover/killing frost - Mar - low latitudes) | C68: 62 | D68: 20 | E68: 70 | F68: 120 | G68: 60 | H68: 270 | I68: 0.5 | J68: 1.18 | K68: 0.93 | L68: 1.5 | M68: 1.5 | N68: 0.5
B69: Deciduous Orchard (active ground cover/no frosts - Mar - low latitudes) | C69: 63 | D69: 20 | E69: 70 | F69: 120 | G69: 60 | H69: 270 | I69: 0.8 | J69: 1.18 | K69: 0.85 | L69: 1.5 | M69: 1.5 | N69: 0.5
B70: Deciduous Orchard (no ground cover/killing frost - Mar - California) | C70: 64 | D70: 30 | E70: 50 | F70: 130 | G70: 30 | H70: 240 | I70: 0.45 | J70: 0.93 | K70: 0.68 | L70: 1.5 | M70: 1.5 | N70: 0.5
B71: Deciduous Orchard (no ground cover/no frosts - Mar - California) | C71: 65 | D71: 30 | E71: 50 | F71: 130 | G71: 30 | H71: 240 | I71: 0.58 | J71: 0.93 | K71: 0.7 | L71: 1.5 | M71: 1.5 | N71: 0.5
B72: Deciduous Orchard (active ground cover/killing frost - California) | C72: 66 | D72: 30 | E72: 50 | F72: 130 | G72: 30 | H72: 240 | I72: 0.5 | J72: 1.18 | K72: 0.93 | L72: 1.5 | M72: 1.5 | N72: 0.5
B73: Deciduous Orchard (active ground cover/no frosts - Mar - California) | C73: 67 | D73: 30 | E73: 50 | F73: 130 | G73: 30 | H73: =SUM(D73:G73) -> 240 | I73: 0.8 | J73: 1.18 | K73: 0.85 | L73: 1.5 | M73: 1.5 | N73: 0.5
B74: Eggplant (Oct - arid region) | C74: 68 | D74: 30 | E74: 40 | F74: 40 | G74: 20 | H74: 130 | I74: 0.6 | J74: 1.05 | K74: 0.9 | L74: 0.25 | M74: 1 | N74: 0.45
B75: Eggplant (May/Jun - Mediterranean) | C75: 69 | D75: 30 | E75: 45 | F75: 40 | G75: 25 | H75: 140 | I75: 0.6 | J75: 1.05 | K75: 0.9 | L75: 0.25 | M75: 1 | N75: 0.45
B76: Faba bean, broad bean (May - Europe) | C76: 70 | D76: 15 | E76: 25 | F76: 35 | G76: 15 | H76: 90 | I76: 0.5 | J76: 1.15 | K76: 1.1 | L76: 0.25 | M76: 1 | N76: 0.5
B77: Faba bean, broad bean (Mar/Apr - Mediterranean) | C77: 71 | D77: 20 | E77: 30 | F77: 35 | G77: 15 | H77: 100 | I77: 0.5 | J77: 1.15 | K77: 1.1 | L77: 0.25 | M77: 1 | N77: 0.5
B78: Faba bean, broad bean (dry - Nov - Europe) | C78: 72 | D78: 90 | E78: 45 | F78: 40 | G78: 60 | H78: 235 | I78: 0.5 | J78: 1.15 | K78: 1.1 | L78: 0.25 | M78: 1 | N78: 0.5
B79: Faba bean, broad bean (green - Nov - Europe) | C79: 73 | D79: 90 | E79: 45 | F79: 40 | G79: 0 | H79: 175 | I79: 0.5 | J79: 1.15 | K79: 0.3 | L79: 0.25 | M79: 1 | N79: 0.5
B80: Flax (Apr - Europe) | C80: 74 | D80: 25 | E80: 35 | F80: 50 | G80: 40 | H80: 150 | I80: 0.35 | J80: 1.1 | K80: 0.25 | L80: 0.3 | M80: 1.2 | N80: 0.5
B81: Flax (Oct - Arizona) | C81: 75 | D81: 30 | E81: 40 | F81: 100 | G81: 50 | H81: 220 | I81: 0.35 | J81: 1.1 | K81: 0.25 | L81: 0.3 | M81: 1.2 | N81: 0.5
B82: Grapes (Apr - low latitudes) | C82: 76 | D82: 20 | E82: 40 | F82: 120 | G82: 60 | H82: 240 | I82: 0.3 | J82: 0.85 | K82: 0.45 | L82: 1.5 | M82: 1.5 | N82: 0.35
B83: Grapes (Mar - California) | C83: 77 | D83: 20 | E83: 50 | F83: 75 | G83: 60 | H83: 205 | I83: 0.3 | J83: 0.85 | K83: 0.45 | L83: 1.5 | M83: 1.5 | N83: 0.35
B84: Grapes (May - high latitudes ) | C84: 78 | D84: 20 | E84: 50 | F84: 90 | G84: 20 | H84: 180 | I84: 0.3 | J84: 0.85 | K84: 0.45 | L84: 1.5 | M84: 1.5 | N84: 0.35
B85: Grapes (wine - Apr - mid latitudes) | C85: 79 | D85: 30 | E85: 60 | F85: 40 | G85: 80 | H85: 210 | I85: 0.3 | J85: 0.7 | K85: 0.45 | L85: 1.5 | M85: 1.5 | N85: 0.45
B86: Green gram, cowpeas (harvest fresh - Mar -Mediterranean) | C86: 80 | D86: 20 | E86: 30 | F86: 30 | G86: 20 | H86: 100 | I86: 0.4 | J86: 1.05 | K86: 0.6 | L86: 0.3 | M86: 1 | N86: 0.45
B87: Green gram, cowpeas (harvest dry - Mar -Mediterranean) | C87: 81 | D87: 20 | E87: 30 | F87: 30 | G87: 20 | H87: 100 | I87: 0.4 | J87: 1.05 | K87: 0.35 | L87: 0.3 | M87: 1 | N87: 0.45
B88: Groundnut (Dry - West Africa ) | C88: 82 | D88: 25 | E88: 35 | F88: 45 | G88: 25 | H88: 130 | I88: 0.4 | J88: 1.15 | K88: 0.6 | L88: 0.3 | M88: 0.8 | N88: 0.45
B89: Groundnut (season - high latitudes) | C89: 83 | D89: 35 | E89: 35 | F89: 35 | G89: 35 | H89: 140 | I89: 0.4 | J89: 1.15 | K89: 0.6 | L89: 0.3 | M89: 0.8 | N89: 0.45
B90: Groundnut (May/Jun - Mediterranean) | C90: 84 | D90: 35 | E90: 45 | F90: 35 | G90: 25 | H90: 140 | I90: 0.4 | J90: 1.15 | K90: 0.6 | L90: 0.3 | M90: 0.8 | N90: 0.45
B91: Hops (Apr - Idaho) | C91: 85 | D91: 25 | E91: 40 | F91: 80 | G91: 10 | H91: 155 | I91: 0.3 | J91: 1.05 | K91: 0.85 | L91: 0.3 | M91: 1 | N91: 0.5
B92: Kale, Rape | C92: 86 | D92: 20 | E92: 20 | F92: 30 | G92: 50 | H92: 120 | I92: 0.7 | J92: 1 | K92: 0.95 | L92: 0.2 | M92: 0.4 | N92: 0.5
B93: Lentil (Apr - Europe) | C93: 87 | D93: 20 | E93: 30 | F93: 60 | G93: 40 | H93: 150 | I93: 0.4 | J93: 1.1 | K93: 0.3 | L93: 0.3 | M93: 0.8 | N93: 0.5
B94: Lentil (Oct/Nov -arid region) | C94: 88 | D94: 25 | E94: 35 | F94: 70 | G94: 40 | H94: 170 | I94: 0.4 | J94: 1.1 | K94: 0.3 | L94: 0.3 | M94: 0.8 | N94: 0.5
B95: Lettuce (Apr - Mediterranean) | C95: 89 | D95: 20 | E95: 30 | F95: 15 | G95: 10 | H95: 75 | I95: 0.7 | J95: 1 | K95: 0.95 | L95: 0.2 | M95: 0.5 | N95: 0.3
B96: Lettuce (Nov/Jan - Mediterranean) | C96: 90 | D96: 30 | E96: 40 | F96: 25 | G96: 10 | H96: 105 | I96: 0.7 | J96: 1 | K96: 0.95 | L96: 0.2 | M96: 0.5 | N96: 0.3
B97: Lettuce (Oct/Nov - arid region) | C97: 91 | D97: 25 | E97: 35 | F97: 30 | G97: 10 | H97: 100 | I97: 0.7 | J97: 1 | K97: 0.95 | L97: 0.2 | M97: 0.5 | N97: 0.3
B98: Lettuce (Feb - Mediterranean) | C98: 92 | D98: 35 | E98: 50 | F98: 45 | G98: 10 | H98: 140 | I98: 0.7 | J98: 1 | K98: 0.95 | L98: 0.2 | M98: 0.5 | N98: 0.3
B99: Maize (grain - Apr - East Africa (alt.)) | C99: 93 | D99: 30 | E99: 50 | F99: 60 | G99: 40 | H99: 180 | I99: 0.3 | J99: 1.2 | K99: 0.5 | L99: 0.3 | M99: 1 | N99: 0.55
B100: Maize (grain - Dec/Jan - arid climate) | C100: 94 | D100: 25 | E100: 40 | F100: 45 | G100: 30 | H100: 140 | I100: 0.3 | J100: 1.2 | K100: 0.5 | L100: 0.3 | M100: 1 | N100: 0.55
B101: Maize (grain - Jun - Nigeria (humid)) | C101: 95 | D101: 20 | E101: 35 | F101: 40 | G101: 30 | H101: 125 | I101: 0.3 | J101: 1.2 | K101: 0.5 | L101: 0.3 | M101: 1 | N101: 0.55
B102: Maize (grain - Oct - India (dry, cool)) | C102: 96 | D102: 20 | E102: 35 | F102: 40 | G102: 30 | H102: 125 | I102: 0.3 | J102: 1.2 | K102: 0.5 | L102: 0.3 | M102: 1 | N102: 0.55
B103: Maize (grain - Apr - Spain (spring/summer) - California) | C103: 97 | D103: 30 | E103: 40 | F103: 50 | G103: 30 | H103: 150 | I103: 0.3 | J103: 1.2 | K103: 0.5 | L103: 0.3 | M103: 1 | N103: 0.55
B104: Maize (grain - Apr - Idaho) | C104: 98 | D104: 30 | E104: 40 | F104: 50 | G104: 50 | H104: 170 | I104: 0.3 | J104: 1.2 | K104: 0.5 | L104: 0.3 | M104: 1 | N104: 0.55
B105: Maize (sweet - Mar - Philippines) | C105: 99 | D105: 20 | E105: 20 | F105: 30 | G105: 10 | H105: 80 | I105: 0.3 | J105: 1.15 | K105: 1.05 | L105: 0.3 | M105: 1 | N105: 0.55
B106: Maize (sweet - May/Jun - Mediterranean) | C106: 100 | D106: 20 | E106: 25 | F106: 25 | G106: 10 | H106: 80 | I106: 0.3 | J106: 1.15 | K106: 1.05 | L106: 0.3 | M106: 1 | N106: 0.55
B107: Maize (sweet - Oct/Dec - arid climate) | C107: 101 | D107: 20 | E107: 30 | F107: 40 | G107: 10 | H107: 100 | I107: 0.3 | J107: 1.15 | K107: 1.05 | L107: 0.3 | M107: 1 | N107: 0.55
B108: Maize (sweet - Apr - Idaho) | C108: 102 | D108: 30 | E108: 30 | F108: 30 | G108: 103 | H108: 193 | I108: 0.3 | J108: 1.15 | K108: 1.05 | L108: 0.3 | M108: 1 | N108: 0.55
B109: Maize (sweet - Jan - California desert) | C109: 103 | D109: 20 | E109: 40 | F109: 70 | G109: 10 | H109: 140 | I109: 0.3 | J109: 1.15 | K109: 1.05 | L109: 0.3 | M109: 1 | N109: 0.55
B110: Mango (Jun) | C110: 104 | D110: 90 | E110: 90 | F110: 90 | G110: 95 | H110: 365 | I110: 0.9 | J110: 1.1 | K110: 0.9 | L110: 2 | M110: 2 | N110: 0.6
B111: Millet (Jun - Pakistan) | C111: 105 | D111: 15 | E111: 25 | F111: 40 | G111: 25 | H111: 105 | I111: 0.3 | J111: 1 | K111: 0.3 | L111: 0.3 | M111: 1.2 | N111: 0.6
B112: Millet (Apr - Central USA) | C112: 106 | D112: 20 | E112: 30 | F112: 55 | G112: 35 | H112: 140 | I112: 0.3 | J112: 1 | K112: 0.3 | L112: 0.3 | M112: 1.2 | N112: 0.6
B113: Okra (sub humid) | C113: 107 | D113: 20 | E113: 20 | F113: 40 | G113: 20 | H113: 100 | I113: 0.5 | J113: 0.95 | K113: 0.55 | L113: 0.3 | M113: 0.5 | N113: 0.5
B114: Olives (Mar - Mediterranean) | C114: 108 | D114: 30 | E114: 90 | F114: 60 | G114: 90 | H114: 270 | I114: 0.65 | J114: 0.7 | K114: 0.7 | L114: 1.5 | M114: 1.5 | N114: 0.65
B115: Onion (dry - Apr - Mediterranean) | C115: 109 | D115: 15 | E115: 25 | F115: 70 | G115: 40 | H115: 150 | I115: 0.7 | J115: 1.05 | K115: 0.75 | L115: 0.3 | M115: 0.6 | N115: 0.3
B116: Onion (dry - Oct/Jan - arid region/California) | C116: 110 | D116: 20 | E116: 35 | F116: 110 | G116: 45 | H116: 210 | I116: 0.7 | J116: 1.05 | K116: 0.75 | L116: 0.3 | M116: 0.6 | N116: 0.3
B117: Onion (green - Apr/May - Mediterranean) | C117: 111 | D117: 25 | E117: 30 | F117: 10 | G117: 5 | H117: 70 | I117: 0.7 | J117: 1 | K117: 1 | L117: 0.3 | M117: 0.6 | N117: 0.3
B118: Onion (green - Oct - arid region) | C118: 112 | D118: 20 | E118: 45 | F118: 20 | G118: 10 | H118: 95 | I118: 0.7 | J118: 1 | K118: 1 | L118: 0.3 | M118: 0.6 | N118: 0.3
B119: Onion (green - Mar - California) | C119: 113 | D119: 30 | E119: 55 | F119: 55 | G119: 40 | H119: 180 | I119: 0.7 | J119: 1 | K119: 1 | L119: 0.3 | M119: 0.6 | N119: 0.3
B120: Onion (seed - Sept - California desert) | C120: 114 | D120: 20 | E120: 45 | F120: 165 | G120: 45 | H120: 275 | I120: 0.7 | J120: 1.05 | K120: 0.8 | L120: 0.3 | M120: 0.6 | N120: 0.3
B121: Peas (fresh - May - Europe) | C121: 115 | D121: 15 | E121: 25 | F121: 35 | G121: 15 | H121: 90 | I121: 0.5 | J121: 1.152 | K121: 1.1 | L121: 0.3 | M121: 1 | N121: 0.35
B122: Peas (fresh - Mar/Apr - Mediterranean) | C122: 116 | D122: 20 | E122: 30 | F122: 35 | G122: 15 | H122: 100 | I122: 0.5 | J122: 1.152 | K122: 1.1 | L122: 0.3 | M122: 1 | N122: 0.35
B123: Peas (fresh - Apr - Idaho) | C123: 117 | D123: 35 | E123: 25 | F123: 30 | G123: 20 | H123: 110 | I123: 0.5 | J123: 1.152 | K123: 1.1 | L123: 0.3 | M123: 1 | N123: 0.35
B124: Peas (dry - May - Europe) | C124: 118 | D124: 15 | E124: 25 | F124: 35 | G124: 15 | H124: 90 | I124: 0.4 | J124: 1.15 | K124: 0.3 | L124: 0.3 | M124: 1 | N124: 0.4
B125: Peas (dry - Mar/Apr - Mediterranean) | C125: 119 | D125: 20 | E125: 30 | F125: 35 | G125: 15 | H125: 100 | I125: 0.4 | J125: 1.15 | K125: 0.3 | L125: 0.3 | M125: 1 | N125: 0.4
B126: Peas (dry - Apr - Idaho) | C126: 120 | D126: 35 | E126: 25 | F126: 30 | G126: 20 | H126: 110 | I126: 0.4 | J126: 1.15 | K126: 0.3 | L126: 0.3 | M126: 1 | N126: 0.4
B127: Pigeon peas | C127: 121 | D127: 20 | E127: 30 | F127: 30 | G127: 20 | H127: 100 | I127: 0.4 | J127: 1.05 | K127: 0.35 | L127: 0.3 | M127: 1 | N127: 0.4
B128: Pineapple (bare soil - Hawaii) | C128: 122 | D128: 60 | E128: 120 | F128: 600 | G128: 10 | H128: 790 | I128: 0.5 | J128: 0.3 | K128: 0.3 | L128: 0.3 | M128: 0.6 | N128: 0.5
B129: Pineapple (with grass cover - Hawaii) | C129: 123 | D129: 60 | E129: 120 | F129: 600 | G129: 10 | H129: 790 | I129: 0.5 | J129: 0.5 | K129: 0.5 | L129: 0.3 | M129: 0.6 | N129: 0.5
B130: Pistachios (no ground cover - Feb - Mediterranean) | C130: 124 | D130: 20 | E130: 60 | F130: 30 | G130: 40 | H130: 150 | I130: 0.4 | J130: 1.1 | K130: 0.45 | L130: 1.2 | M130: 1.2 | N130: 0.4
B131: Potato (Jan/Nov - semiarid climate) | C131: 125 | D131: 25 | E131: 30 | F131: 47 | G131: 30 | H131: 132 | I131: 0.5 | J131: 1.15 | K131: 0.75 | L131: 0.25 | M131: 0.6 | N131: 0.35
B132: Potato (May - Continental Climate ) | C132: 126 | D132: 25 | E132: 30 | F132: 45 | G132: 30 | H132: 130 | I132: 0.5 | J132: 1.15 | K132: 0.75 | L132: 0.25 | M132: 0.6 | N132: 0.35
B133: Potato (Apr - Europe) | C133: 127 | D133: 30 | E133: 35 | F133: 50 | G133: 30 | H133: 145 | I133: 0.5 | J133: 1.15 | K133: 0.75 | L133: 0.25 | M133: 0.6 | N133: 0.35
B134: Potato (Apr/May - Idaho, USA ) | C134: 128 | D134: 45 | E134: 30 | F134: 70 | G134: 20 | H134: 165 | I134: 0.5 | J134: 1.15 | K134: 0.75 | L134: 0.25 | M134: 0.6 | N134: 0.35
B135: Potato (Dec - California desert) | C135: 129 | D135: 30 | E135: 35 | F135: 50 | G135: 25 | H135: 140 | I135: 0.5 | J135: 1.15 | K135: 0.75 | L135: 0.25 | M135: 0.6 | N135: 0.35
B136: Pumpkin, Winter squash (Mar/Aug - Mediterranean) | C136: 130 | D136: 20 | E136: 30 | F136: 30 | G136: 20 | H136: 100 | I136: 0.5 | J136: 1 | K136: 0.8 | L136: 0.3 | M136: 1.2 | N136: 0.35
B137: Pumpkin, Winter squash (Jun - Europe) | C137: 131 | D137: 25 | E137: 35 | F137: 35 | G137: 25 | H137: =SUM(D137:G137) -> 120 | I137: 0.5 | J137: 1 | K137: 0.8 | L137: 0.3 | M137: 1.2 | N137: 0.35
B138: Radish (Mar/Apr - Mediterranean/Europe) | C138: 132 | D138: 5 | E138: 10 | F138: 15 | G138: 5 | H138: 35 | I138: 0.7 | J138: 0.9 | K138: 0.85 | L138: 0.2 | M138: 0.5 | N138: 0.3
B139: Radish (Winter - arid region) | C139: 133 | D139: 10 | E139: 10 | F139: 15 | G139: 5 | H139: 40 | I139: 0.7 | J139: 0.9 | K139: 0.85 | L139: 0.2 | M139: 0.5 | N139: 0.3
B140: Rice (Dec/May - Tropics/Mediterranean) | C140: 134 | D140: 30 | E140: 30 | F140: 60 | G140: 30 | H140: 150 | I140: 1.05 | J140: 1.2 | K140: 0.75 | L140: 0.1 | M140: 0.6 | N140: 0.2
B141: Safflower (Apr - California) | C141: 135 | D141: 20 | E141: 35 | F141: 45 | G141: 25 | H141: 125 | I141: 0.35 | J141: 1.1 | K141: 0.25 | L141: 0.3 | M141: 1.2 | N141: 0.6
B142: Safflower (Mar - high latitudes) | C142: 136 | D142: 25 | E142: 35 | F142: 55 | G142: 30 | H142: 145 | I142: 0.35 | J142: 1.1 | K142: 0.25 | L142: 0.3 | M142: 1.2 | N142: 0.6
B143: Safflower (Oct/Nov - arid region) | C143: 137 | D143: 35 | E143: 55 | F143: 60 | G143: 40 | H143: 190 | I143: 0.35 | J143: 1.1 | K143: 0.25 | L143: 0.3 | M143: 1.2 | N143: 0.6
B144: Sesame (Jun - China) | C144: 138 | D144: 20 | E144: 30 | F144: 40 | G144: 20 | H144: 110 | I144: 0.35 | J144: 1.1 | K144: 0.25 | L144: 0.3 | M144: 1.2 | N144: 0.6
B145: Sorghum (grain - May/Jun - USA/Pakistan/Mediterranean) | C145: 139 | D145: 20 | E145: 35 | F145: 40 | G145: 30 | H145: 125 | I145: 0.3 | J145: 1.05 | K145: 0.55 | L145: 0.3 | M145: 1.4 | N145: 0.55
B146: Sorghum (grain - Mar/Apr - arid region) | C146: 140 | D146: 20 | E146: 35 | F146: 45 | G146: 30 | H146: 130 | I146: 0.3 | J146: 1.05 | K146: 0.55 | L146: 0.3 | M146: 1.4 | N146: 0.55
B147: Sorghum (sweet - May/Jun - USA/Pakistan/Mediterranean) | C147: 141 | D147: 20 | E147: 35 | F147: 40 | G147: 30 | H147: 125 | I147: 0.3 | J147: 1.2 | K147: 1.05 | L147: 0.3 | M147: 1.4 | N147: 0.5
B148: Sorghum (sweet - Mar/Apr - arid region) | C148: 142 | D148: 20 | E148: 35 | F148: 45 | G148: 30 | H148: 130 | I148: 0.3 | J148: 1.2 | K148: 1.05 | L148: 0.3 | M148: 1.4 | N148: 0.5
B149: Soybeans (Dec - Tropics) | C149: 143 | D149: 15 | E149: 15 | F149: 40 | G149: 15 | H149: 85 | I149: 0.4 | J149: 1.15 | K149: 0.5 | L149: 0.3 | M149: 1 | N149: 0.5
B150: Soybeans (May - Central USA) | C150: 144 | D150: 20 | E150: 32 | F150: 60 | G150: 25 | H150: 137 | I150: 0.4 | J150: 1.15 | K150: 0.5 | L150: 0.3 | M150: 1 | N150: 0.5
B151: Soybeans (Jun - Japan ) | C151: 145 | D151: 20 | E151: 25 | F151: 75 | G151: 30 | H151: 150 | I151: 0.4 | J151: 1.15 | K151: 0.5 | L151: 0.3 | M151: 1 | N151: 0.5
B152: Spinach (Apr/Sep/Oct - Mediterranean) | C152: 146 | D152: 20 | E152: 20 | F152: 20 | G152: 5 | H152: 65 | I152: 0.7 | J152: 1 | K152: 0.95 | L152: 0.1 | M152: 0.5 | N152: 0.2
B153: Spinach (Nov - arid region) | C153: 147 | D153: 20 | E153: 30 | F153: 40 | G153: 10 | H153: 100 | I153: 0.7 | J153: 1 | K153: 0.95 | L153: 0.1 | M153: 0.5 | N153: 0.2
B154: Squash, Zucchini (Apr/Dec - Mediterranean/arid region) | C154: 148 | D154: 25 | E154: 35 | F154: 25 | G154: 15 | H154: 100 | I154: 0.5 | J154: 0.95 | K154: 0.75 | L154: 0.3 | M154: 0.8 | N154: 0.5
B155: Squash, Zucchini (May/Jun - Mediterranean/Europe) | C155: 149 | D155: 20 | E155: 30 | F155: 25 | G155: 15 | H155: 90 | I155: 0.5 | J155: 0.95 | K155: 0.75 | L155: 0.3 | M155: 0.8 | N155: 0.5
B156: Sudan (1st cutting cycle - Apr - California desert) | C156: 150 | D156: 25 | E156: 25 | F156: 15 | G156: 10 | H156: 75 | I156: 0.5 | J156: 1 | K156: 0.95 | L156: 1 | M156: 1 | N156: 0.55
B157: Sudan (other cutting cycles - Jun -California desert) | C157: 151 | D157: 3 | E157: 15 | F157: 12 | G157: 7 | H157: 37 | I157: 0.5 | J157: 1 | K157: 0.95 | L157: 1 | M157: 1 | N157: 0.55
B158: Sugarbeet (Mar - California) | C158: 152 | D158: 30 | E158: 45 | F158: 90 | G158: 15 | H158: 180 | I158: 0.35 | J158: 1.2 | K158: 0.7 | L158: 0.3 | M158: 1 | N158: 0.6
B159: Sugarbeet (Jun - California) | C159: 153 | D159: 25 | E159: 30 | F159: 90 | G159: 10 | H159: 155 | I159: 0.35 | J159: 1.2 | K159: 0.7 | L159: 0.3 | M159: 1 | N159: 0.6
B160: Sugarbeet (Sep - California desert) | C160: 154 | D160: 25 | E160: 65 | F160: 100 | G160: 65 | H160: 255 | I160: 0.35 | J160: 1.2 | K160: 0.7 | L160: 0.3 | M160: 1 | N160: 0.6
B161: Sugarbeet (Apr - Idaho) | C161: 155 | D161: 50 | E161: 40 | F161: 50 | G161: 40 | H161: 180 | I161: 0.35 | J161: 1.2 | K161: 0.7 | L161: 0.3 | M161: 1 | N161: 0.6
B162: Sugarbeet (May - Mediterranean) | C162: 156 | D162: 25 | E162: 35 | F162: 50 | G162: 50 | H162: 160 | I162: 0.35 | J162: 1.2 | K162: 0.7 | L162: 0.3 | M162: 1 | N162: 0.6
B163: Sugarbeet (Nov - Mediterranean) | C163: 157 | D163: 45 | E163: 75 | F163: 80 | G163: 30 | H163: 230 | I163: 0.35 | J163: 1.2 | K163: 0.7 | L163: 0.3 | M163: 1 | N163: 0.6
B164: Sugarbeet (Nov - arid regions) | C164: 158 | D164: 35 | E164: 60 | F164: 70 | G164: 40 | H164: 205 | I164: 0.35 | J164: 1.2 | K164: 0.7 | L164: 0.3 | M164: 1 | N164: 0.6
B165: Sugarcane (ratoon - low latitudes) | C165: 159 | D165: 25 | E165: 70 | F165: 135 | G165: 50 | H165: 280 | I165: 0.4 | J165: 1.25 | K165: 0.75 | L165: 1.5 | M165: 1.5 | N165: 0.65
B166: Sugarcane (ratoon - Tropics) | C166: 160 | D166: 30 | E166: 50 | F166: 180 | G166: 60 | H166: 320 | I166: 0.4 | J166: 1.25 | K166: 0.75 | L166: 1.5 | M166: 1.5 | N166: 0.65
B167: Sugarcane (ratoon - Hawaii) | C167: 161 | D167: 35 | E167: 105 | F167: 210 | G167: 70 | H167: 420 | I167: 0.4 | J167: 1.25 | K167: 0.75 | L167: 1.5 | M167: 1.5 | N167: 0.65
B168: Sugarcane (virgin - low latitudes) | C168: 162 | D168: 35 | E168: 60 | F168: 190 | G168: 120 | H168: 405 | I168: 0.4 | J168: 1.25 | K168: 0.75 | L168: 1.5 | M168: 1.5 | N168: 0.65
B169: Sugarcane (virgin - Tropics) | C169: 163 | D169: 50 | E169: 70 | F169: 220 | G169: 140 | H169: 480 | I169: 0.4 | J169: 1.25 | K169: 0.75 | L169: 1.5 | M169: 1.5 | N169: 0.65
B170: Sugarcane (virgin - Hawaii) | C170: 164 | D170: 75 | E170: 105 | F170: 330 | G170: 210 | H170: 720 | I170: 0.4 | J170: 1.25 | K170: 0.75 | L170: 1.5 | M170: 1.5 | N170: 0.65
B171: Sunflower (Apr/May - Mediterranean/California) | C171: 165 | D171: 25 | E171: 35 | F171: 45 | G171: 25 | H171: 130 | I171: 0.35 | J171: 1.1 | K171: 0.35 | L171: 0.3 | M171: 1.3 | N171: 0.5
B172: Sweet melons (May - Mediterranean) | C172: 166 | D172: 25 | E172: 35 | F172: 40 | G172: 20 | H172: 120 | I172: 0.5 | J172: 1.05 | K172: 0.75 | L172: 0.3 | M172: 1 | N172: 0.4
B173: Sweet melons (Mar - California) | C173: 167 | D173: 30 | E173: 30 | F173: 50 | G173: 30 | H173: 140 | I173: 0.5 | J173: 1.05 | K173: 0.75 | L173: 0.3 | M173: 1 | N173: 0.4
B174: Sweet melons (Aug - California desert) | C174: 168 | D174: 15 | E174: 40 | F174: 65 | G174: 15 | H174: 135 | I174: 0.5 | J174: 1.05 | K174: 0.75 | L174: 0.3 | M174: 1 | N174: 0.4
B175: Sweet melons (Dec/Jan - arid region) | C175: 169 | D175: 30 | E175: 45 | F175: 65 | G175: 20 | H175: 160 | I175: 0.5 | J175: 1.05 | K175: 0.75 | L175: 0.3 | M175: 1 | N175: 0.4
B176: Sweet peppers (Apr/Jun - Europe/Mediterranean) | C176: 170 | D176: 28 | E176: 35 | F176: 40 | G176: 20 | H176: 123 | I176: 0.6 | J176: 1.05 | K176: 0.9 | L176: 0.25 | M176: 0.8 | N176: 0.3
B177: Sweet peppers (Oct - arid region) | C177: 171 | D177: 30 | E177: 40 | F177: 110 | G177: 30 | H177: 210 | I177: 0.6 | J177: 1.05 | K177: 0.9 | L177: 0.25 | M177: 0.8 | N177: 0.3
B178: Sweet potato (Apr - Mediterranean) | C178: 172 | D178: 20 | E178: 30 | F178: 60 | G178: 40 | H178: 150 | I178: 0.5 | J178: 1.15 | K178: 0.65 | L178: 0.3 | M178: 1 | N178: 0.65
B179: Sweet potato (rainy season - Tropical regions) | C179: 173 | D179: 15 | E179: 30 | F179: 50 | G179: 30 | H179: 125 | I179: 0.5 | J179: 1.15 | K179: 0.65 | L179: 0.3 | M179: 1 | N179: 0.65
B180: Tomato (Jan - arid region) | C180: 174 | D180: 30 | E180: 40 | F180: 40 | G180: 25 | H180: 135 | I180: 0.6 | J180: 1.15 | K180: 0.8 | L180: 0.25 | M180: 0.8 | N180: 0.5
B181: Tomato (Apr/May - California) | C181: 175 | D181: 35 | E181: 40 | F181: 50 | G181: 30 | H181: 155 | I181: 0.6 | J181: 1.15 | K181: 0.8 | L181: 0.25 | M181: 0.8 | N181: 0.5
B182: Tomato (Jan - California desert) | C182: 176 | D182: 25 | E182: 40 | F182: 60 | G182: 30 | H182: 155 | I182: 0.6 | J182: 1.15 | K182: 0.8 | L182: 0.25 | M182: 0.8 | N182: 0.5
B183: Tomato (Oct/Nov - arid region) | C183: 177 | D183: 35 | E183: 45 | F183: 70 | G183: 30 | H183: 180 | I183: 0.6 | J183: 1.15 | K183: 0.8 | L183: 0.25 | M183: 0.8 | N183: 0.5
B184: Tomato (Apr/May - Mediterranean) | C184: 178 | D184: 30 | E184: 40 | F184: 45 | G184: 30 | H184: 145 | I184: 0.6 | J184: 1.15 | K184: 0.8 | L184: 0.25 | M184: 0.8 | N184: 0.5
B185: Walnuts (Apr - Utah) | C185: 179 | D185: 20 | E185: 10 | F185: 130 | G185: 30 | H185: 190 | I185: 0.5 | J185: 1.1 | K185: 0.65 | L185: 2 | M185: 2 | N185: 0.5
B186: Water melons (Apr - Italy) | C186: 180 | D186: 20 | E186: 30 | F186: 30 | G186: 30 | H186: 110 | I186: 0.4 | J186: 1 | K186: 0.75 | L186: 0.3 | M186: 1 | N186: 0.4
B187: Water melons (Mat/Aug - Near East (desert)) | C187: 181 | D187: 10 | E187: 20 | F187: 20 | G187: 30 | H187: 80 | I187: 0.4 | J187: 1 | K187: 0.75 | L187: 0.3 | M187: 1 | N187: 0.4
B188: Winter Wheat (Dec - California) | C188: 182 | D188: 202 | E188: 602 | F188: 70 | G188: 30 | H188: 904 | I188: 0.4 | J188: 1.15 | K188: 0.35 | L188: 0.3 | M188: 1.5 | N188: 0.55
B189: Winter Wheat (Nov - Mediterranean) | C189: 183 | D189: 30 | E189: 140 | F189: 40 | G189: 30 | H189: 240 | I189: 0.4 | J189: 1.15 | K189: 0.35 | L189: 0.3 | M189: 1.5 | N189: 0.55
B190: Winter Wheat (Oct - Idaho) | C190: 184 | D190: 160 | E190: 75 | F190: 75 | G190: 25 | H190: 335 | I190: 0.7 | J190: 1.15 | K190: 0.35 | L190: 0.3 | M190: 1.5 | N190: 0.55
B191: ="New crop" -> New crop | C191: 185 | D191: ="Insert value" -> Insert value | E191: ="Insert value" -> Insert value | F191: Insert value | G191: Insert value | H191: 0 | I191: Insert value | J191: Insert value | K191: Insert value | L191: Insert value | M191: Insert value | N191: Insert value
B192: ="New crop" -> New crop | C192: 186 | D192: ="Insert value" -> Insert value | E192: Insert value | F192: Insert value | G192: Insert value | H192: 0 | I192: Insert value | J192: Insert value | K192: Insert value | L192: Insert value | M192: Insert value | N192: Insert value
B193: New crop | C193: 187 | D193: Insert value | E193: Insert value | F193: Insert value | G193: Insert value | H193: 0 | I193: Insert value | J193: Insert value | K193: Insert value | L193: Insert value | M193: Insert value | N193: Insert value
B194: New crop | C194: 188 | D194: Insert value | E194: Insert value | F194: Insert value | G194: Insert value | H194: 0 | I194: Insert value | J194: Insert value | K194: Insert value | L194: Insert value | M194: Insert value | N194: Insert value
B195: New crop | C195: 189 | D195: Insert value | E195: Insert value | F195: Insert value | G195: Insert value | H195: 0 | I195: Insert value | J195: Insert value | K195: Insert value | L195: Insert value | M195: Insert value | N195: Insert value
B196: New crop | C196: 190 | D196: Insert value | E196: Insert value | F196: Insert value | G196: Insert value | H196: 0 | I196: Insert value | J196: Insert value | K196: Insert value | L196: Insert value | M196: Insert value | N196: Insert value
B197: New crop | C197: 191 | D197: Insert value | E197: Insert value | F197: Insert value | G197: Insert value | H197: 0 | I197: Insert value | J197: Insert value | K197: Insert value | L197: Insert value | M197: Insert value | N197: Insert value
B198: New crop | C198: 192 | D198: Insert value | E198: Insert value | F198: Insert value | G198: Insert value | H198: 0 | I198: Insert value | J198: Insert value | K198: Insert value | L198: Insert value | M198: Insert value | N198: Insert value
B199: New crop | C199: 193 | D199: Insert value | E199: Insert value | F199: Insert value | G199: Insert value | H199: 0 | I199: Insert value | J199: Insert value | K199: Insert value | L199: Insert value | M199: Insert value | N199: Insert value
B200: New crop | C200: 194 | D200: Insert value | E200: Insert value | F200: Insert value | G200: Insert value | H200: 0 | I200: Insert value | J200: Insert value | K200: Insert value | L200: Insert value | M200: Insert value | N200: Insert value
B201: New crop | C201: 195 | D201: Insert value | E201: Insert value | F201: Insert value | G201: Insert value | H201: =SUM(D201:G201) -> 0 | I201: Insert value | J201: Insert value | K201: Insert value | L201: Insert value | M201: Insert value | N201: Insert value
B202: New crop | C202: 196 | D202: Insert value | E202: Insert value | F202: Insert value | G202: Insert value | H202: 0 | I202: Insert value | J202: Insert value | K202: Insert value | L202: Insert value | M202: Insert value | N202: Insert value
B203: New crop | C203: 197 | D203: Insert value | E203: Insert value | F203: Insert value | G203: Insert value | H203: 0 | I203: Insert value | J203: Insert value | K203: Insert value | L203: Insert value | M203: Insert value | N203: Insert value
... 13 more rows

Sheet Crop Calculation Sheet (hidden)
B2: Do not modify
B3: Date format
B4: Year | D4: JJJJ
B5: Month | D5: MMMM
B6: Selected language | D6: ='READ ME'!$G$11 -> English
B7: Selected code | D7: =VLOOKUP($D$6,$B$9:$C$13,2,FALSE) -> [$-409] | I7: Earliest planting date: | J7: ='3 Irrigation Schedule'!$G$19 -> 2020-03-15 | L7: Last simulated date: | N7: =DATE(YEAR($J$7)+3,MONTH($J$7),0) -> 2023-02-28
B8: Language | C8: Code
B9: English | C9: [$-409]
B10: Français | C10: [$-40C] | I10: Month after Planthing | J10: 1 | K10: 2 | L10: 3 | M10: 4 | N10: 5 | O10: 6 | P10: 7 | Q10: 8 | R10: 9 | S10: 10 | T10: 11 | U10: 12
B11: Español | C11: [$-C0A] | I11: Year | J11: =TEXT(DATE(YEAR($J$7),MONTH($J$7),1),$D$7&$D$4) -> 2020 | K11: =TEXT((DATE(YEAR($J$7),MONTH($J$7)+K10-1,1)),$D$7&$D$4) -> 2020 | L11: 2020 | M11: 2020 | N11: 2020 | O11: 2020 | P11: 2020 | Q11: 2020 | R11: 2020 | S11: 2020 | T11: 2021 | U11: 2021
B12: العربية | C12: [$-401] | I12: Month of the year | J12: =TEXT(DATE(YEAR($J$7),MONTH($J$7),1),$D$7&$D$5) -> March | K12: =TEXT(DATE(YEAR($J$7),MONTH($J$7)+K10-1,1),$D$7&$D$5) -> April | L12: May | M12: June | N12: July | O12: August | P12: September | Q12: October | R12: November | S12: December | T12: January | U12: February
B13: Deutsch | C13: [$-407] | I13: 1st day of the month | J13: =(DATE(YEAR($J$7),MONTH($J$7)+J10-1,1)) -> 2020-03-01 | K13: 2020-04-01 | L13: 2020-05-01 | M13: 2020-06-01 | N13: 2020-07-01 | O13: 2020-08-01 | P13: 2020-09-01 | Q13: 2020-10-01 | R13: 2020-11-01 | S13: 2020-12-01 | T13: 2021-01-01 | U13: 2021-02-01
I14: Days per month | J14: =DAY(DATE(YEAR(J13),MONTH(J13)+1,1)-1) -> 31 | K14: =DAY(DATE(YEAR(K13),MONTH(K13)+1,1)-1) -> 30 | L14: =DAY(DATE(YEAR(L13),MONTH(L13)+1,1)-1) -> 31 | M14: 30 | N14: 31 | O14: 31 | P14: 30 | Q14: 31 | R14: 30 | S14: 31 | T14: 31 | U14: 28
I15: Reference Evapotranspiration | J15: =VLOOKUP($I$15,'General Calculation'!$C$115:$O$115,MATCH(J12,'General Calculation'!$C$114:$O$114,0)) -> 5.21532 | K15: 5.30544 | L15: 5.31832 | M15: 5.2668 | N15: 5.2024 | O15: 5.2024 | P15: 5.27968 | Q15: 5.12838 | R15: 5.09112 | S15: 5.1408 | T15: 5.3271 | U15: 5.265
C17: ETo | D17: Eff. Rainfall | G17: Crop 1 | H17: =IFERROR(LEFT($H$24,FIND("(",$H$24)-1),$H$24) -> Maize | I17: Crop Water Requirement | J17: =SUMIFS($L$34:$L$399,$D$34:$D$399,J$11,$E$34:$E$399,J$12) -> 26.598132 | K17: 99.3178368 | L17: 194.0123136 | M17: 178.421628 | N17: 60.72934933 | O17: 0 | P17: 0 | Q17: 0 | R17: 0 | S17: 0 | T17: 0 | U17: 0
B18: Month | C18: mm/day | D18: mm/day | I18: Number of day/month | J18: =COUNTIFS($L$34:$L$399,">0",$D$34:$D$399,J$11,$E$34:$E$399,J$12) -> 17 | K18: 30 | L18: 31 | M18: 30 | N18: 17 | O18: 0 | P18: 0 | Q18: 0 | R18: 0 | S18: 0 | T18: 0 | U18: 0
B19: =TRANSPOSE(J12:U12) -> March | C19: =TRANSPOSE(J15:U15) -> 5.21532 | D19: =TRANSPOSE('General Calculation'!D129:O129) -> 1.018709677 | I19: Total Gross Irrigation | J19: =SUMIFS($V$34:$V$399,$D$34:$D$399,J$11,$E$34:$E$399,J$12) -> 44.44444444 | K19: =SUMIFS($V$34:$V$399,$D$34:$D$399,K$11,$E$34:$E$399,K$12) -> 111.1111111 | L19: =SUMIFS($V$34:$V$399,$D$34:$D$399,L$11,$E$34:$E$399,L$12) -> 222.2222222 | M19: 188.8888889 | N19: 77.77777778 | O19: 0 | P19: 0 | Q19: 0 | R19: 0 | S19: 0 | T19: 0 | U19: 0
B20: April | C20: 5.30544 | D20: 3.008 | I20: Max Gross Irrigation per event | J20: =_xlfn.AGGREGATE(14,3,($D$34:$D$399=J$11)*($E$34:$E$399=J$12)*$V$34:$V$399,1) -> 11.11111111 | K20: 11.11111111 | L20: 11.11111111 | M20: 11.11111111 | N20: 11.11111111 | O20: 0 | P20: 0 | Q20: 0 | R20: 0 | S20: 0 | T20: 0 | U20: 0
B21: May | C21: 5.31832 | D21: 2.059354839 | I21: Irrigation days | J21: =COUNTIFS($V$34:$V$399,">0",$D$34:$D$399,J$11,$E$34:$E$399,J$12) -> 4 | K21: 10 | L21: 20 | M21: 17 | N21: 7 | O21: 0 | P21: 0 | Q21: 0 | R21: 0 | S21: 0 | T21: 0 | U21: 0
B22: June | C22: 5.2668 | D22: 0.4286666667
B23: July | C23: 5.2024 | D23: 0.2
B24: August | C24: 5.2024 | D24: 0.09548387097 | G24: Crop 1 | H24: =IF(OR('3 Irrigation Schedule'!$B$19="",'3 Irrigation Schedule'!$B$19="none"),"",'3 Irrigation Schedule'!$B$19) -> Maize (grain - Oct - India (dry, cool)) | L24: =IFERROR(VLOOKUP($H$24,'Crop Information'!$B$7:$C$216,2,FALSE),2) -> 96
B25: September | C25: 5.27968 | D25: 0.03266666667 | I25: Date after Sowing
B26: October | C26: 5.12838 | D26: 0.6122580645 | G26: Crop 1 | H26: Days | I26: DAS | J26: From | K26: To | L26: Crop Factor | M26: Root Depth | N26: Depletion
B27: November | C27: 5.09112 | D27: 1.792 | G27: Initial: | H27: =IFERROR(INDEX('Crop Information'!$D$7:$D$216,$L$24),NA()) -> 20 | I27: =H27 -> 20 | J27: =$J$7 -> 2020-03-15 | K27: =J27+H27-1 -> 2020-04-03 | L27: =INDEX('Crop Information'!$I$7:$I$216,$L$24) -> 0.3 | M27: =INDEX('Crop Information'!$L$7:$L$216,$L$24) -> 0.3 | N27: =INDEX('Crop Information'!$N$7:$N$216,$L$24) -> 0.55
B28: December | C28: 5.1408 | D28: 1.447741935 | G28: Development: | H28: =IFERROR(INDEX('Crop Information'!$E$7:$E$216,$L$24),NA()) -> 35 | I28: =I27+H28 -> 55 | J28: =K27+1 -> 2020-04-04 | K28: =K27+H28 -> 2020-05-08 | L28: ="-" -> - | M28: =INDEX('Crop Information'!$M$7:$M$216,$L$24) -> 1 | N28: ="-" -> -
B29: January | C29: 5.3271 | D29: 0.5483870968 | G29: Mid season: | H29: =IFERROR(INDEX('Crop Information'!$F$7:$F$216,$L$24),NA()) -> 40 | I29: =I28+H29 -> 95 | J29: =K28+1 -> 2020-05-09 | K29: =K28+H29 -> 2020-06-17 | L29: =INDEX('Crop Information'!$J$7:$J$216,$L$24) -> 1.2 | M29: =INDEX('Crop Information'!$M$7:$M$216,$L$24) -> 1 | N29: ="-" -> -
B30: February | C30: 5.265 | D30: 0.35 | G30: Late season: | H30: =IFERROR(INDEX('Crop Information'!$G$7:$G$216,$L$24),NA()) -> 30 | I30: =I29+H30 -> 125 | J30: =K29+1 -> 2020-06-18 | K30: =H30+K29 -> 2020-07-17 | L30: =INDEX('Crop Information'!$K$7:$K$216,$L$24) -> 0.5 | M30: =INDEX('Crop Information'!$M$7:$M$216,$L$24) -> 1 | N30: ="-" -> -
G31: Total growing days: | H31: =IFERROR(SUM(H27:H30),NA()) -> 125
J32: mm | L32: mm | M32: m | N32: mm | O32: mm | P32: mm | R32: mm | S32: mm | T32: mm | U32: mm | V32: mm
D33: Year | E33: Month | F33: Date | H33: DAS | I33: Stage: | J33: ETo | K33: Kc | L33: ETc | M33: Rooting Depth | N33: TAW | O33: RAW | P33: Dep. Start | Q33: Ks | R33: ETc adj | S33: Dep. End | T33: Threshold | U33: NIR | V33: GIR
D34: =IFERROR(TEXT(DATE(YEAR($F34),MONTH($F34),1),$D$7&$D$4),"") -> 2020 | E34: =IFERROR(TEXT(DATE(YEAR($F34),MONTH($F34),1),$D$7&$D$5),"") -> March | F34: =DATE(YEAR($J$7),MONTH($J$7),1) -> 2020-03-01 | H34: =IFERROR(IF(OR($F34-$J$27+1<=0,$F34>$K$30),"",$F34-$J$27+1),"") ->  | I34: =IF(H34="","",IF(H34<=$I$27,"Initial",IF(AND(H34>$I$27,H34<=$I$28),"Development",IF(AND(H34>$I$28,H34<=$I$29),"Mid Season","Late Season")))) ->  | J34: =IFERROR(VLOOKUP($E34,$B$19:$C$30,2,FALSE),"") -> 5.21532 | K34: =IF(H34="","",IF(H34<=$I$27,$L$27,IF(AND(H34>$I$27,H34<=$I$28),$L$27+((H34-$I$27)/$H$28)*($L$29-$L$27),IF(AND(H34>$I$28,H34<=$I$29),$L$29,$L$29+((H34-$I$29)/$H$30)*($L$30-$L$29))))) ->  | L34: =IFERROR((J34*K34),0) -> 0 | M34: =IF(H34="","",IF(OR(H34=1,H34<$I$28),$M$27+(($M$28-$M$27)*((H34-1)/($I$28-1))),$M$28)) ->  | N34: =IF(OR('3 Irrigation Schedule'!$C$29="",'3 Irrigation Schedule'!$C$31="",H34=""),"",(('3 Irrigation Schedule'!$C$29-'3 Irrigation Schedule'!$C$31)/100)*1000*M34) ->  | O34: =IF(H34="","",N34*$N$27) ->  | P34: =IF(H34="","",IF(H34=1,N34*(1-'3 Irrigation Schedule'!$C$27),S33-U33)) ->  | Q34: =IF(H34="","",IF(P34>O34,(N34-P34)/(N34-O34),1)) ->  | R34: =IF(H34="","",L34*Q34) ->  | S34: =IF(H34="","",P34+R34) ->  | T34: =IF(H34="","",IF('3 Irrigation Schedule'!$P$19<O34,'3 Irrigation Schedule'!$P$19,O34)) ->  | U34: =IF(H34="","",IF(T34<=S34,T34,0)) ->  | V34: =IF(H34="","",U34/'3 Irrigation Schedule'!$M$19) -> 
D35: 2020 | E35: March | F35: =IFERROR(IF(F34+1<=$N$7, F34+1,""),"") -> 2020-03-02 | H35: =IFERROR(IF(OR($F35-$J$27+1<=0,$F35>$K$30),"",$F35-$J$27+1),"") ->  | J35: 5.21532 | L35: =IFERROR((J35*K35),0) -> 0 | M35: =IF(H35="","",IF(OR(H35=1,H35<$I$28),$M$27+(($M$28-$M$27)*((H35-1)/($I$28-1))),$M$28)) ->  | N35: =IF(OR('3 Irrigation Schedule'!$C$29="",'3 Irrigation Schedule'!$C$31="",H35=""),"",(('3 Irrigation Schedule'!$C$29-'3 Irrigation Schedule'!$C$31)/100)*1000*M35) ->  | O35: =IF(H35="","",N35*$N$27) ->  | P35: =IF(H35="","",IF(H35=1,N35*(1-'3 Irrigation Schedule'!$C$27),S34-U34)) ->  | Q35: =IF(H35="","",IF(P35>O35,(N35-P35)/(N35-O35),1)) ->  | R35: =IF(H35="","",L35*Q35) ->  | S35: =IF(H35="","",P35+R35) ->  | T35: =IF(H35="","",IF('3 Irrigation Schedule'!$P$19<O35,'3 Irrigation Schedule'!$P$19,O35)) ->  | U35: =IF(H35="","",IF(T35<=S35,T35,0)) ->  | V35: =IF(H35="","",U35/'3 Irrigation Schedule'!$M$19) -> 
D36: 2020 | E36: March | F36: 2020-03-03 | J36: 5.21532 | L36: 0 | N36: =IF(OR('3 Irrigation Schedule'!$C$29="",'3 Irrigation Schedule'!$C$31="",H36=""),"",(('3 Irrigation Schedule'!$C$29-'3 Irrigation Schedule'!$C$31)/100)*1000*M36) ->  | P36: =IF(H36="","",IF(H36=1,N36*(1-'3 Irrigation Schedule'!$C$27),S35-U35)) ->  | T36: =IF(H36="","",IF('3 Irrigation Schedule'!$P$19<O36,'3 Irrigation Schedule'!$P$19,O36)) ->  | V36: =IF(H36="","",U36/'3 Irrigation Schedule'!$M$19) -> 
D37: 2020 | E37: March | F37: 2020-03-04 | J37: 5.21532 | L37: 0 | N37: =IF(OR('3 Irrigation Schedule'!$C$29="",'3 Irrigation Schedule'!$C$31="",H37=""),"",(('3 Irrigation Schedule'!$C$29-'3 Irrigation Schedule'!$C$31)/100)*1000*M37) ->  | P37: =IF(H37="","",IF(H37=1,N37*(1-'3 Irrigation Schedule'!$C$27),S36-U36)) ->  | T37: =IF(H37="","",IF('3 Irrigation Schedule'!$P$19<O37,'3 Irrigation Schedule'!$P$19,O37)) ->  | V37: =IF(H37="","",U37/'3 Irrigation Schedule'!$M$19) -> 
D38: 2020 | E38: March | F38: 2020-03-05 | J38: 5.21532 | L38: 0 | N38: =IF(OR('3 Irrigation Schedule'!$C$29="",'3 Irrigation Schedule'!$C$31="",H38=""),"",(('3 Irrigation Schedule'!$C$29-'3 Irrigation Schedule'!$C$31)/100)*1000*M38) ->  | P38: =IF(H38="","",IF(H38=1,N38*(1-'3 Irrigation Schedule'!$C$27),S37-U37)) ->  | T38: =IF(H38="","",IF('3 Irrigation Schedule'!$P$19<O38,'3 Irrigation Schedule'!$P$19,O38)) ->  | V38: =IF(H38="","",U38/'3 Irrigation Schedule'!$M$19) -> 
D39: 2020 | E39: March | F39: 2020-03-06 | J39: 5.21532 | L39: 0 | N39: =IF(OR('3 Irrigation Schedule'!$C$29="",'3 Irrigation Schedule'!$C$31="",H39=""),"",(('3 Irrigation Schedule'!$C$29-'3 Irrigation Schedule'!$C$31)/100)*1000*M39) ->  | P39: =IF(H39="","",IF(H39=1,N39*(1-'3 Irrigation Schedule'!$C$27),S38-U38)) ->  | T39: =IF(H39="","",IF('3 Irrigation Schedule'!$P$19<O39,'3 Irrigation Schedule'!$P$19,O39)) ->  | V39: =IF(H39="","",U39/'3 Irrigation Schedule'!$M$19) -> 
D40: 2020 | E40: March | F40: 2020-03-07 | J40: 5.21532 | L40: 0 | N40: =IF(OR('3 Irrigation Schedule'!$C$29="",'3 Irrigation Schedule'!$C$31="",H40=""),"",(('3 Irrigation Schedule'!$C$29-'3 Irrigation Schedule'!$C$31)/100)*1000*M40) ->  | P40: =IF(H40="","",IF(H40=1,N40*(1-'3 Irrigation Schedule'!$C$27),S39-U39)) ->  | T40: =IF(H40="","",IF('3 Irrigation Schedule'!$P$19<O40,'3 Irrigation Schedule'!$P$19,O40)) ->  | V40: =IF(H40="","",U40/'3 Irrigation Schedule'!$M$19) -> 
D41: 2020 | E41: March | F41: 2020-03-08 | J41: 5.21532 | L41: 0 | N41: =IF(OR('3 Irrigation Schedule'!$C$29="",'3 Irrigation Schedule'!$C$31="",H41=""),"",(('3 Irrigation Schedule'!$C$29-'3 Irrigation Schedule'!$C$31)/100)*1000*M41) ->  | P41: =IF(H41="","",IF(H41=1,N41*(1-'3 Irrigation Schedule'!$C$27),S40-U40)) ->  | T41: =IF(H41="","",IF('3 Irrigation Schedule'!$P$19<O41,'3 Irrigation Schedule'!$P$19,O41)) ->  | V41: =IF(H41="","",U41/'3 Irrigation Schedule'!$M$19) -> 
D42: 2020 | E42: March | F42: 2020-03-09 | J42: 5.21532 | L42: 0 | N42: =IF(OR('3 Irrigation Schedule'!$C$29="",'3 Irrigation Schedule'!$C$31="",H42=""),"",(('3 Irrigation Schedule'!$C$29-'3 Irrigation Schedule'!$C$31)/100)*1000*M42) ->  | P42: =IF(H42="","",IF(H42=1,N42*(1-'3 Irrigation Schedule'!$C$27),S41-U41)) ->  | T42: =IF(H42="","",IF('3 Irrigation Schedule'!$P$19<O42,'3 Irrigation Schedule'!$P$19,O42)) ->  | V42: =IF(H42="","",U42/'3 Irrigation Schedule'!$M$19) -> 
D43: 2020 | E43: March | F43: 2020-03-10 | J43: 5.21532 | L43: 0 | N43: =IF(OR('3 Irrigation Schedule'!$C$29="",'3 Irrigation Schedule'!$C$31="",H43=""),"",(('3 Irrigation Schedule'!$C$29-'3 Irrigation Schedule'!$C$31)/100)*1000*M43) ->  | P43: =IF(H43="","",IF(H43=1,N43*(1-'3 Irrigation Schedule'!$C$27),S42-U42)) ->  | T43: =IF(H43="","",IF('3 Irrigation Schedule'!$P$19<O43,'3 Irrigation Schedule'!$P$19,O43)) ->  | V43: =IF(H43="","",U43/'3 Irrigation Schedule'!$M$19) -> 
D44: 2020 | E44: March | F44: 2020-03-11 | J44: 5.21532 | L44: 0 | N44: =IF(OR('3 Irrigation Schedule'!$C$29="",'3 Irrigation Schedule'!$C$31="",H44=""),"",(('3 Irrigation Schedule'!$C$29-'3 Irrigation Schedule'!$C$31)/100)*1000*M44) ->  | P44: =IF(H44="","",IF(H44=1,N44*(1-'3 Irrigation Schedule'!$C$27),S43-U43)) ->  | T44: =IF(H44="","",IF('3 Irrigation Schedule'!$P$19<O44,'3 Irrigation Schedule'!$P$19,O44)) ->  | V44: =IF(H44="","",U44/'3 Irrigation Schedule'!$M$19) -> 
D45: 2020 | E45: March | F45: 2020-03-12 | J45: 5.21532 | L45: 0 | N45: =IF(OR('3 Irrigation Schedule'!$C$29="",'3 Irrigation Schedule'!$C$31="",H45=""),"",(('3 Irrigation Schedule'!$C$29-'3 Irrigation Schedule'!$C$31)/100)*1000*M45) ->  | P45: =IF(H45="","",IF(H45=1,N45*(1-'3 Irrigation Schedule'!$C$27),S44-U44)) ->  | T45: =IF(H45="","",IF('3 Irrigation Schedule'!$P$19<O45,'3 Irrigation Schedule'!$P$19,O45)) ->  | V45: =IF(H45="","",U45/'3 Irrigation Schedule'!$M$19) -> 
D46: 2020 | E46: March | F46: 2020-03-13 | J46: 5.21532 | L46: 0 | N46: =IF(OR('3 Irrigation Schedule'!$C$29="",'3 Irrigation Schedule'!$C$31="",H46=""),"",(('3 Irrigation Schedule'!$C$29-'3 Irrigation Schedule'!$C$31)/100)*1000*M46) ->  | P46: =IF(H46="","",IF(H46=1,N46*(1-'3 Irrigation Schedule'!$C$27),S45-U45)) ->  | T46: =IF(H46="","",IF('3 Irrigation Schedule'!$P$19<O46,'3 Irrigation Schedule'!$P$19,O46)) ->  | V46: =IF(H46="","",U46/'3 Irrigation Schedule'!$M$19) -> 
D47: 2020 | E47: March | F47: 2020-03-14 | J47: 5.21532 | L47: 0 | N47: =IF(OR('3 Irrigation Schedule'!$C$29="",'3 Irrigation Schedule'!$C$31="",H47=""),"",(('3 Irrigation Schedule'!$C$29-'3 Irrigation Schedule'!$C$31)/100)*1000*M47) ->  | P47: =IF(H47="","",IF(H47=1,N47*(1-'3 Irrigation Schedule'!$C$27),S46-U46)) ->  | T47: =IF(H47="","",IF('3 Irrigation Schedule'!$P$19<O47,'3 Irrigation Schedule'!$P$19,O47)) ->  | V47: =IF(H47="","",U47/'3 Irrigation Schedule'!$M$19) -> 
D48: 2020 | E48: March | F48: 2020-03-15 | H48: 1 | I48: Initial | J48: 5.21532 | K48: 0.3 | L48: 1.564596 | M48: 0.3 | N48: =IF(OR('3 Irrigation Schedule'!$C$29="",'3 Irrigation Schedule'!$C$31="",H48=""),"",(('3 Irrigation Schedule'!$C$29-'3 Irrigation Schedule'!$C$31)/100)*1000*M48) -> 42 | O48: 23.1 | P48: =IF(H48="","",IF(H48=1,N48*(1-'3 Irrigation Schedule'!$C$27),S47-U47)) -> 21 | Q48: 1 | R48: 1.564596 | S48: 22.564596 | T48: =IF(H48="","",IF('3 Irrigation Schedule'!$P$19<O48,'3 Irrigation Schedule'!$P$19,O48)) -> 10 | U48: 10 | V48: =IF(H48="","",U48/'3 Irrigation Schedule'!$M$19) -> 11.11111111
D49: 2020 | E49: March | F49: 2020-03-16 | H49: 2 | I49: Initial | J49: 5.21532 | K49: 0.3 | L49: 1.564596 | M49: 0.312962963 | N49: =IF(OR('3 Irrigation Schedule'!$C$29="",'3 Irrigation Schedule'!$C$31="",H49=""),"",(('3 Irrigation Schedule'!$C$29-'3 Irrigation Schedule'!$C$31)/100)*1000*M49) -> 43.81481481 | O49: 24.09814815 | P49: =IF(H49="","",IF(H49=1,N49*(1-'3 Irrigation Schedule'!$C$27),S48-U48)) -> 12.564596 | Q49: =IF(H49="","",IF(P49>O49,(N49-P49)/(N49-O49),1)) -> 1 | R49: =IF(H49="","",L49*Q49) -> 1.564596 | S49: =IF(H49="","",P49+R49) -> 14.129192 | T49: =IF(H49="","",IF('3 Irrigation Schedule'!$P$19<O49,'3 Irrigation Schedule'!$P$19,O49)) -> 10 | U49: 10 | V49: =IF(H49="","",U49/'3 Irrigation Schedule'!$M$19) -> 11.11111111
D50: 2020 | E50: March | F50: 2020-03-17 | H50: 3 | I50: Initial | J50: 5.21532 | K50: 0.3 | L50: 1.564596 | M50: 0.3259259259 | N50: =IF(OR('3 Irrigation Schedule'!$C$29="",'3 Irrigation Schedule'!$C$31="",H50=""),"",(('3 Irrigation Schedule'!$C$29-'3 Irrigation Schedule'!$C$31)/100)*1000*M50) -> 45.62962963 | O50: 25.0962963 | P50: =IF(H50="","",IF(H50=1,N50*(1-'3 Irrigation Schedule'!$C$27),S49-U49)) -> 4.129192 | Q50: 1 | R50: 1.564596 | S50: 5.693788 | T50: =IF(H50="","",IF('3 Irrigation Schedule'!$P$19<O50,'3 Irrigation Schedule'!$P$19,O50)) -> 10 | U50: 0 | V50: =IF(H50="","",U50/'3 Irrigation Schedule'!$M$19) -> 0
D51: 2020 | E51: March | F51: 2020-03-18 | H51: 4 | I51: Initial | J51: 5.21532 | K51: 0.3 | L51: 1.564596 | M51: 0.3388888889 | N51: =IF(OR('3 Irrigation Schedule'!$C$29="",'3 Irrigation Schedule'!$C$31="",H51=""),"",(('3 Irrigation Schedule'!$C$29-'3 Irrigation Schedule'!$C$31)/100)*1000*M51) -> 47.44444444 | O51: 26.09444444 | P51: =IF(H51="","",IF(H51=1,N51*(1-'3 Irrigation Schedule'!$C$27),S50-U50)) -> 5.693788 | Q51: 1 | R51: 1.564596 | S51: 7.258384 | T51: =IF(H51="","",IF('3 Irrigation Schedule'!$P$19<O51,'3 Irrigation Schedule'!$P$19,O51)) -> 10 | U51: 0 | V51: =IF(H51="","",U51/'3 Irrigation Schedule'!$M$19) -> 0
D52: 2020 | E52: March | F52: 2020-03-19 | H52: 5 | I52: Initial | J52: 5.21532 | K52: 0.3 | L52: 1.564596 | M52: 0.3518518519 | N52: =IF(OR('3 Irrigation Schedule'!$C$29="",'3 Irrigation Schedule'!$C$31="",H52=""),"",(('3 Irrigation Schedule'!$C$29-'3 Irrigation Schedule'!$C$31)/100)*1000*M52) -> 49.25925926 | O52: 27.09259259 | P52: =IF(H52="","",IF(H52=1,N52*(1-'3 Irrigation Schedule'!$C$27),S51-U51)) -> 7.258384 | Q52: 1 | R52: 1.564596 | S52: 8.82298 | T52: =IF(H52="","",IF('3 Irrigation Schedule'!$P$19<O52,'3 Irrigation Schedule'!$P$19,O52)) -> 10 | U52: 0 | V52: =IF(H52="","",U52/'3 Irrigation Schedule'!$M$19) -> 0
D53: 2020 | E53: March | F53: 2020-03-20 | H53: 6 | I53: Initial | J53: 5.21532 | K53: 0.3 | L53: 1.564596 | M53: 0.3648148148 | N53: =IF(OR('3 Irrigation Schedule'!$C$29="",'3 Irrigation Schedule'!$C$31="",H53=""),"",(('3 Irrigation Schedule'!$C$29-'3 Irrigation Schedule'!$C$31)/100)*1000*M53) -> 51.07407407 | O53: 28.09074074 | P53: =IF(H53="","",IF(H53=1,N53*(1-'3 Irrigation Schedule'!$C$27),S52-U52)) -> 8.82298 | Q53: 1 | R53: 1.564596 | S53: 10.387576 | T53: =IF(H53="","",IF('3 Irrigation Schedule'!$P$19<O53,'3 Irrigation Schedule'!$P$19,O53)) -> 10 | U53: 10 | V53: =IF(H53="","",U53/'3 Irrigation Schedule'!$M$19) -> 11.11111111
D54: 2020 | E54: March | F54: 2020-03-21 | H54: 7 | I54: Initial | J54: 5.21532 | K54: 0.3 | L54: 1.564596 | M54: 0.3777777778 | N54: =IF(OR('3 Irrigation Schedule'!$C$29="",'3 Irrigation Schedule'!$C$31="",H54=""),"",(('3 Irrigation Schedule'!$C$29-'3 Irrigation Schedule'!$C$31)/100)*1000*M54) -> 52.88888889 | O54: 29.08888889 | P54: =IF(H54="","",IF(H54=1,N54*(1-'3 Irrigation Schedule'!$C$27),S53-U53)) -> 0.387576 | Q54: 1 | R54: 1.564596 | S54: 1.952172 | T54: =IF(H54="","",IF('3 Irrigation Schedule'!$P$19<O54,'3 Irrigation Schedule'!$P$19,O54)) -> 10 | U54: 0 | V54: =IF(H54="","",U54/'3 Irrigation Schedule'!$M$19) -> 0
D55: 2020 | E55: March | F55: 2020-03-22 | H55: 8 | I55: Initial | J55: 5.21532 | K55: 0.3 | L55: 1.564596 | M55: 0.3907407407 | N55: =IF(OR('3 Irrigation Schedule'!$C$29="",'3 Irrigation Schedule'!$C$31="",H55=""),"",(('3 Irrigation Schedule'!$C$29-'3 Irrigation Schedule'!$C$31)/100)*1000*M55) -> 54.7037037 | O55: 30.08703704 | P55: =IF(H55="","",IF(H55=1,N55*(1-'3 Irrigation Schedule'!$C$27),S54-U54)) -> 1.952172 | Q55: 1 | R55: 1.564596 | S55: 3.516768 | T55: =IF(H55="","",IF('3 Irrigation Schedule'!$P$19<O55,'3 Irrigation Schedule'!$P$19,O55)) -> 10 | U55: 0 | V55: =IF(H55="","",U55/'3 Irrigation Schedule'!$M$19) -> 0
D56: 2020 | E56: March | F56: 2020-03-23 | H56: 9 | I56: Initial | J56: 5.21532 | K56: 0.3 | L56: 1.564596 | M56: 0.4037037037 | N56: =IF(OR('3 Irrigation Schedule'!$C$29="",'3 Irrigation Schedule'!$C$31="",H56=""),"",(('3 Irrigation Schedule'!$C$29-'3 Irrigation Schedule'!$C$31)/100)*1000*M56) -> 56.51851852 | O56: 31.08518519 | P56: =IF(H56="","",IF(H56=1,N56*(1-'3 Irrigation Schedule'!$C$27),S55-U55)) -> 3.516768 | Q56: 1 | R56: 1.564596 | S56: 5.081364 | T56: =IF(H56="","",IF('3 Irrigation Schedule'!$P$19<O56,'3 Irrigation Schedule'!$P$19,O56)) -> 10 | U56: 0 | V56: =IF(H56="","",U56/'3 Irrigation Schedule'!$M$19) -> 0
D57: 2020 | E57: March | F57: 2020-03-24 | H57: 10 | I57: Initial | J57: 5.21532 | K57: 0.3 | L57: 1.564596 | M57: 0.4166666667 | N57: =IF(OR('3 Irrigation Schedule'!$C$29="",'3 Irrigation Schedule'!$C$31="",H57=""),"",(('3 Irrigation Schedule'!$C$29-'3 Irrigation Schedule'!$C$31)/100)*1000*M57) -> 58.33333333 | O57: 32.08333333 | P57: =IF(H57="","",IF(H57=1,N57*(1-'3 Irrigation Schedule'!$C$27),S56-U56)) -> 5.081364 | Q57: 1 | R57: 1.564596 | S57: 6.64596 | T57: =IF(H57="","",IF('3 Irrigation Schedule'!$P$19<O57,'3 Irrigation Schedule'!$P$19,O57)) -> 10 | U57: 0 | V57: =IF(H57="","",U57/'3 Irrigation Schedule'!$M$19) -> 0
D58: 2020 | E58: March | F58: 2020-03-25 | H58: 11 | I58: Initial | J58: 5.21532 | K58: 0.3 | L58: 1.564596 | M58: 0.4296296296 | N58: =IF(OR('3 Irrigation Schedule'!$C$29="",'3 Irrigation Schedule'!$C$31="",H58=""),"",(('3 Irrigation Schedule'!$C$29-'3 Irrigation Schedule'!$C$31)/100)*1000*M58) -> 60.14814815 | O58: 33.08148148 | P58: =IF(H58="","",IF(H58=1,N58*(1-'3 Irrigation Schedule'!$C$27),S57-U57)) -> 6.64596 | Q58: 1 | R58: 1.564596 | S58: 8.210556 | T58: =IF(H58="","",IF('3 Irrigation Schedule'!$P$19<O58,'3 Irrigation Schedule'!$P$19,O58)) -> 10 | U58: 0 | V58: =IF(H58="","",U58/'3 Irrigation Schedule'!$M$19) -> 0
D59: 2020 | E59: March | F59: 2020-03-26 | H59: 12 | I59: Initial | J59: 5.21532 | K59: 0.3 | L59: 1.564596 | M59: 0.4425925926 | N59: =IF(OR('3 Irrigation Schedule'!$C$29="",'3 Irrigation Schedule'!$C$31="",H59=""),"",(('3 Irrigation Schedule'!$C$29-'3 Irrigation Schedule'!$C$31)/100)*1000*M59) -> 61.96296296 | O59: 34.07962963 | P59: =IF(H59="","",IF(H59=1,N59*(1-'3 Irrigation Schedule'!$C$27),S58-U58)) -> 8.210556 | Q59: 1 | R59: 1.564596 | S59: 9.775152 | T59: =IF(H59="","",IF('3 Irrigation Schedule'!$P$19<O59,'3 Irrigation Schedule'!$P$19,O59)) -> 10 | U59: 0 | V59: =IF(H59="","",U59/'3 Irrigation Schedule'!$M$19) -> 0
D60: 2020 | E60: March | F60: 2020-03-27 | H60: 13 | I60: Initial | J60: 5.21532 | K60: 0.3 | L60: 1.564596 | M60: 0.4555555556 | N60: =IF(OR('3 Irrigation Schedule'!$C$29="",'3 Irrigation Schedule'!$C$31="",H60=""),"",(('3 Irrigation Schedule'!$C$29-'3 Irrigation Schedule'!$C$31)/100)*1000*M60) -> 63.77777778 | O60: 35.07777778 | P60: =IF(H60="","",IF(H60=1,N60*(1-'3 Irrigation Schedule'!$C$27),S59-U59)) -> 9.775152 | Q60: 1 | R60: 1.564596 | S60: 11.339748 | T60: =IF(H60="","",IF('3 Irrigation Schedule'!$P$19<O60,'3 Irrigation Schedule'!$P$19,O60)) -> 10 | U60: 10 | V60: =IF(H60="","",U60/'3 Irrigation Schedule'!$M$19) -> 11.11111111
D61: 2020 | E61: March | F61: 2020-03-28 | H61: 14 | I61: Initial | J61: 5.21532 | K61: 0.3 | L61: 1.564596 | M61: 0.4685185185 | N61: =IF(OR('3 Irrigation Schedule'!$C$29="",'3 Irrigation Schedule'!$C$31="",H61=""),"",(('3 Irrigation Schedule'!$C$29-'3 Irrigation Schedule'!$C$31)/100)*1000*M61) -> 65.59259259 | O61: 36.07592593 | P61: =IF(H61="","",IF(H61=1,N61*(1-'3 Irrigation Schedule'!$C$27),S60-U60)) -> 1.339748 | Q61: 1 | R61: 1.564596 | S61: 2.904344 | T61: =IF(H61="","",IF('3 Irrigation Schedule'!$P$19<O61,'3 Irrigation Schedule'!$P$19,O61)) -> 10 | U61: 0 | V61: =IF(H61="","",U61/'3 Irrigation Schedule'!$M$19) -> 0
D62: 2020 | E62: March | F62: 2020-03-29 | H62: 15 | I62: Initial | J62: 5.21532 | K62: 0.3 | L62: 1.564596 | M62: 0.4814814815 | N62: =IF(OR('3 Irrigation Schedule'!$C$29="",'3 Irrigation Schedule'!$C$31="",H62=""),"",(('3 Irrigation Schedule'!$C$29-'3 Irrigation Schedule'!$C$31)/100)*1000*M62) -> 67.40740741 | O62: 37.07407407 | P62: =IF(H62="","",IF(H62=1,N62*(1-'3 Irrigation Schedule'!$C$27),S61-U61)) -> 2.904344 | Q62: 1 | R62: 1.564596 | S62: 4.46894 | T62: =IF(H62="","",IF('3 Irrigation Schedule'!$P$19<O62,'3 Irrigation Schedule'!$P$19,O62)) -> 10 | U62: 0 | V62: =IF(H62="","",U62/'3 Irrigation Schedule'!$M$19) -> 0
D63: 2020 | E63: March | F63: 2020-03-30 | H63: 16 | I63: Initial | J63: 5.21532 | K63: 0.3 | L63: 1.564596 | M63: 0.4944444444 | N63: =IF(OR('3 Irrigation Schedule'!$C$29="",'3 Irrigation Schedule'!$C$31="",H63=""),"",(('3 Irrigation Schedule'!$C$29-'3 Irrigation Schedule'!$C$31)/100)*1000*M63) -> 69.22222222 | O63: 38.07222222 | P63: =IF(H63="","",IF(H63=1,N63*(1-'3 Irrigation Schedule'!$C$27),S62-U62)) -> 4.46894 | Q63: 1 | R63: 1.564596 | S63: 6.033536 | T63: =IF(H63="","",IF('3 Irrigation Schedule'!$P$19<O63,'3 Irrigation Schedule'!$P$19,O63)) -> 10 | U63: 0 | V63: =IF(H63="","",U63/'3 Irrigation Schedule'!$M$19) -> 0
D64: 2020 | E64: March | F64: 2020-03-31 | H64: 17 | I64: Initial | J64: 5.21532 | K64: 0.3 | L64: 1.564596 | M64: 0.5074074074 | N64: =IF(OR('3 Irrigation Schedule'!$C$29="",'3 Irrigation Schedule'!$C$31="",H64=""),"",(('3 Irrigation Schedule'!$C$29-'3 Irrigation Schedule'!$C$31)/100)*1000*M64) -> 71.03703704 | O64: 39.07037037 | P64: =IF(H64="","",IF(H64=1,N64*(1-'3 Irrigation Schedule'!$C$27),S63-U63)) -> 6.033536 | Q64: 1 | R64: 1.564596 | S64: 7.598132 | T64: =IF(H64="","",IF('3 Irrigation Schedule'!$P$19<O64,'3 Irrigation Schedule'!$P$19,O64)) -> 10 | U64: 0 | V64: =IF(H64="","",U64/'3 Irrigation Schedule'!$M$19) -> 0
D65: 2020 | E65: April | F65: 2020-04-01 | H65: 18 | I65: Initial | J65: 5.30544 | K65: 0.3 | L65: 1.591632 | M65: 0.5203703704 | N65: =IF(OR('3 Irrigation Schedule'!$C$29="",'3 Irrigation Schedule'!$C$31="",H65=""),"",(('3 Irrigation Schedule'!$C$29-'3 Irrigation Schedule'!$C$31)/100)*1000*M65) -> 72.85185185 | O65: 40.06851852 | P65: =IF(H65="","",IF(H65=1,N65*(1-'3 Irrigation Schedule'!$C$27),S64-U64)) -> 7.598132 | Q65: 1 | R65: 1.591632 | S65: 9.189764 | T65: =IF(H65="","",IF('3 Irrigation Schedule'!$P$19<O65,'3 Irrigation Schedule'!$P$19,O65)) -> 10 | U65: 0 | V65: =IF(H65="","",U65/'3 Irrigation Schedule'!$M$19) -> 0
D66: 2020 | E66: April | F66: 2020-04-02 | H66: 19 | I66: Initial | J66: 5.30544 | K66: 0.3 | L66: 1.591632 | M66: 0.5333333333 | N66: =IF(OR('3 Irrigation Schedule'!$C$29="",'3 Irrigation Schedule'!$C$31="",H66=""),"",(('3 Irrigation Schedule'!$C$29-'3 Irrigation Schedule'!$C$31)/100)*1000*M66) -> 74.66666667 | O66: 41.06666667 | P66: =IF(H66="","",IF(H66=1,N66*(1-'3 Irrigation Schedule'!$C$27),S65-U65)) -> 9.189764 | Q66: 1 | R66: 1.591632 | S66: 10.781396 | T66: =IF(H66="","",IF('3 Irrigation Schedule'!$P$19<O66,'3 Irrigation Schedule'!$P$19,O66)) -> 10 | U66: 10 | V66: =IF(H66="","",U66/'3 Irrigation Schedule'!$M$19) -> 11.11111111
D67: 2020 | E67: April | F67: 2020-04-03 | H67: 20 | I67: Initial | J67: 5.30544 | K67: 0.3 | L67: 1.591632 | M67: 0.5462962963 | N67: =IF(OR('3 Irrigation Schedule'!$C$29="",'3 Irrigation Schedule'!$C$31="",H67=""),"",(('3 Irrigation Schedule'!$C$29-'3 Irrigation Schedule'!$C$31)/100)*1000*M67) -> 76.48148148 | O67: 42.06481481 | P67: =IF(H67="","",IF(H67=1,N67*(1-'3 Irrigation Schedule'!$C$27),S66-U66)) -> 0.781396 | Q67: 1 | R67: 1.591632 | S67: 2.373028 | T67: =IF(H67="","",IF('3 Irrigation Schedule'!$P$19<O67,'3 Irrigation Schedule'!$P$19,O67)) -> 10 | U67: 0 | V67: =IF(H67="","",U67/'3 Irrigation Schedule'!$M$19) -> 0
D68: 2020 | E68: April | F68: 2020-04-04 | H68: 21 | I68: Development | J68: 5.30544 | K68: 0.3257142857 | L68: 1.7280576 | M68: 0.5592592593 | N68: =IF(OR('3 Irrigation Schedule'!$C$29="",'3 Irrigation Schedule'!$C$31="",H68=""),"",(('3 Irrigation Schedule'!$C$29-'3 Irrigation Schedule'!$C$31)/100)*1000*M68) -> 78.2962963 | O68: 43.06296296 | P68: =IF(H68="","",IF(H68=1,N68*(1-'3 Irrigation Schedule'!$C$27),S67-U67)) -> 2.373028 | Q68: 1 | R68: 1.7280576 | S68: 4.1010856 | T68: =IF(H68="","",IF('3 Irrigation Schedule'!$P$19<O68,'3 Irrigation Schedule'!$P$19,O68)) -> 10 | U68: 0 | V68: =IF(H68="","",U68/'3 Irrigation Schedule'!$M$19) -> 0
D69: 2020 | E69: April | F69: 2020-04-05 | H69: 22 | I69: Development | J69: 5.30544 | K69: 0.3514285714 | L69: 1.8644832 | M69: 0.5722222222 | N69: =IF(OR('3 Irrigation Schedule'!$C$29="",'3 Irrigation Schedule'!$C$31="",H69=""),"",(('3 Irrigation Schedule'!$C$29-'3 Irrigation Schedule'!$C$31)/100)*1000*M69) -> 80.11111111 | O69: 44.06111111 | P69: =IF(H69="","",IF(H69=1,N69*(1-'3 Irrigation Schedule'!$C$27),S68-U68)) -> 4.1010856 | Q69: 1 | R69: 1.8644832 | S69: 5.9655688 | T69: =IF(H69="","",IF('3 Irrigation Schedule'!$P$19<O69,'3 Irrigation Schedule'!$P$19,O69)) -> 10 | U69: 0 | V69: =IF(H69="","",U69/'3 Irrigation Schedule'!$M$19) -> 0
D70: 2020 | E70: April | F70: 2020-04-06 | H70: 23 | I70: Development | J70: 5.30544 | K70: 0.3771428571 | L70: 2.0009088 | M70: 0.5851851852 | N70: =IF(OR('3 Irrigation Schedule'!$C$29="",'3 Irrigation Schedule'!$C$31="",H70=""),"",(('3 Irrigation Schedule'!$C$29-'3 Irrigation Schedule'!$C$31)/100)*1000*M70) -> 81.92592593 | O70: 45.05925926 | P70: =IF(H70="","",IF(H70=1,N70*(1-'3 Irrigation Schedule'!$C$27),S69-U69)) -> 5.9655688 | Q70: 1 | R70: 2.0009088 | S70: 7.9664776 | T70: =IF(H70="","",IF('3 Irrigation Schedule'!$P$19<O70,'3 Irrigation Schedule'!$P$19,O70)) -> 10 | U70: 0 | V70: =IF(H70="","",U70/'3 Irrigation Schedule'!$M$19) -> 0
D71: 2020 | E71: April | F71: 2020-04-07 | H71: 24 | I71: Development | J71: 5.30544 | K71: 0.4028571429 | L71: 2.1373344 | M71: 0.5981481481 | N71: =IF(OR('3 Irrigation Schedule'!$C$29="",'3 Irrigation Schedule'!$C$31="",H71=""),"",(('3 Irrigation Schedule'!$C$29-'3 Irrigation Schedule'!$C$31)/100)*1000*M71) -> 83.74074074 | O71: 46.05740741 | P71: =IF(H71="","",IF(H71=1,N71*(1-'3 Irrigation Schedule'!$C$27),S70-U70)) -> 7.9664776 | Q71: 1 | R71: 2.1373344 | S71: 10.103812 | T71: =IF(H71="","",IF('3 Irrigation Schedule'!$P$19<O71,'3 Irrigation Schedule'!$P$19,O71)) -> 10 | U71: 10 | V71: =IF(H71="","",U71/'3 Irrigation Schedule'!$M$19) -> 11.11111111
D72: 2020 | E72: April | F72: 2020-04-08 | H72: 25 | I72: Development | J72: 5.30544 | K72: 0.4285714286 | L72: 2.27376 | M72: 0.6111111111 | N72: =IF(OR('3 Irrigation Schedule'!$C$29="",'3 Irrigation Schedule'!$C$31="",H72=""),"",(('3 Irrigation Schedule'!$C$29-'3 Irrigation Schedule'!$C$31)/100)*1000*M72) -> 85.55555556 | O72: 47.05555556 | P72: =IF(H72="","",IF(H72=1,N72*(1-'3 Irrigation Schedule'!$C$27),S71-U71)) -> 0.103812 | Q72: 1 | R72: 2.27376 | S72: 2.377572 | T72: =IF(H72="","",IF('3 Irrigation Schedule'!$P$19<O72,'3 Irrigation Schedule'!$P$19,O72)) -> 10 | U72: 0 | V72: =IF(H72="","",U72/'3 Irrigation Schedule'!$M$19) -> 0
D73: 2020 | E73: April | F73: 2020-04-09 | H73: 26 | I73: Development | J73: 5.30544 | K73: 0.4542857143 | L73: 2.4101856 | M73: 0.6240740741 | N73: =IF(OR('3 Irrigation Schedule'!$C$29="",'3 Irrigation Schedule'!$C$31="",H73=""),"",(('3 Irrigation Schedule'!$C$29-'3 Irrigation Schedule'!$C$31)/100)*1000*M73) -> 87.37037037 | O73: 48.0537037 | P73: =IF(H73="","",IF(H73=1,N73*(1-'3 Irrigation Schedule'!$C$27),S72-U72)) -> 2.377572 | Q73: 1 | R73: 2.4101856 | S73: 4.7877576 | T73: =IF(H73="","",IF('3 Irrigation Schedule'!$P$19<O73,'3 Irrigation Schedule'!$P$19,O73)) -> 10 | U73: 0 | V73: =IF(H73="","",U73/'3 Irrigation Schedule'!$M$19) -> 0
D74: 2020 | E74: April | F74: 2020-04-10 | H74: 27 | I74: Development | J74: 5.30544 | K74: 0.48 | L74: 2.5466112 | M74: 0.637037037 | N74: =IF(OR('3 Irrigation Schedule'!$C$29="",'3 Irrigation Schedule'!$C$31="",H74=""),"",(('3 Irrigation Schedule'!$C$29-'3 Irrigation Schedule'!$C$31)/100)*1000*M74) -> 89.18518519 | O74: 49.05185185 | P74: =IF(H74="","",IF(H74=1,N74*(1-'3 Irrigation Schedule'!$C$27),S73-U73)) -> 4.7877576 | Q74: 1 | R74: 2.5466112 | S74: 7.3343688 | T74: =IF(H74="","",IF('3 Irrigation Schedule'!$P$19<O74,'3 Irrigation Schedule'!$P$19,O74)) -> 10 | U74: 0 | V74: =IF(H74="","",U74/'3 Irrigation Schedule'!$M$19) -> 0
D75: 2020 | E75: April | F75: 2020-04-11 | H75: 28 | I75: Development | J75: 5.30544 | K75: 0.5057142857 | L75: 2.6830368 | M75: 0.65 | N75: =IF(OR('3 Irrigation Schedule'!$C$29="",'3 Irrigation Schedule'!$C$31="",H75=""),"",(('3 Irrigation Schedule'!$C$29-'3 Irrigation Schedule'!$C$31)/100)*1000*M75) -> 91 | O75: 50.05 | P75: =IF(H75="","",IF(H75=1,N75*(1-'3 Irrigation Schedule'!$C$27),S74-U74)) -> 7.3343688 | Q75: 1 | R75: 2.6830368 | S75: 10.0174056 | T75: =IF(H75="","",IF('3 Irrigation Schedule'!$P$19<O75,'3 Irrigation Schedule'!$P$19,O75)) -> 10 | U75: 10 | V75: =IF(H75="","",U75/'3 Irrigation Schedule'!$M$19) -> 11.11111111
D76: 2020 | E76: April | F76: 2020-04-12 | H76: 29 | I76: Development | J76: 5.30544 | K76: 0.5314285714 | L76: 2.8194624 | M76: 0.662962963 | N76: =IF(OR('3 Irrigation Schedule'!$C$29="",'3 Irrigation Schedule'!$C$31="",H76=""),"",(('3 Irrigation Schedule'!$C$29-'3 Irrigation Schedule'!$C$31)/100)*1000*M76) -> 92.81481481 | O76: 51.04814815 | P76: =IF(H76="","",IF(H76=1,N76*(1-'3 Irrigation Schedule'!$C$27),S75-U75)) -> 0.0174056 | Q76: 1 | R76: 2.8194624 | S76: 2.836868 | T76: =IF(H76="","",IF('3 Irrigation Schedule'!$P$19<O76,'3 Irrigation Schedule'!$P$19,O76)) -> 10 | U76: 0 | V76: =IF(H76="","",U76/'3 Irrigation Schedule'!$M$19) -> 0
D77: 2020 | E77: April | F77: 2020-04-13 | H77: 30 | I77: Development | J77: 5.30544 | K77: 0.5571428571 | L77: 2.955888 | M77: 0.6759259259 | N77: =IF(OR('3 Irrigation Schedule'!$C$29="",'3 Irrigation Schedule'!$C$31="",H77=""),"",(('3 Irrigation Schedule'!$C$29-'3 Irrigation Schedule'!$C$31)/100)*1000*M77) -> 94.62962963 | O77: 52.0462963 | P77: =IF(H77="","",IF(H77=1,N77*(1-'3 Irrigation Schedule'!$C$27),S76-U76)) -> 2.836868 | Q77: 1 | R77: 2.955888 | S77: 5.792756 | T77: =IF(H77="","",IF('3 Irrigation Schedule'!$P$19<O77,'3 Irrigation Schedule'!$P$19,O77)) -> 10 | U77: 0 | V77: =IF(H77="","",U77/'3 Irrigation Schedule'!$M$19) -> 0
D78: 2020 | E78: April | F78: 2020-04-14 | H78: 31 | I78: Development | J78: 5.30544 | K78: 0.5828571429 | L78: 3.0923136 | M78: 0.6888888889 | N78: =IF(OR('3 Irrigation Schedule'!$C$29="",'3 Irrigation Schedule'!$C$31="",H78=""),"",(('3 Irrigation Schedule'!$C$29-'3 Irrigation Schedule'!$C$31)/100)*1000*M78) -> 96.44444444 | O78: 53.04444444 | P78: =IF(H78="","",IF(H78=1,N78*(1-'3 Irrigation Schedule'!$C$27),S77-U77)) -> 5.792756 | Q78: 1 | R78: 3.0923136 | S78: 8.8850696 | T78: =IF(H78="","",IF('3 Irrigation Schedule'!$P$19<O78,'3 Irrigation Schedule'!$P$19,O78)) -> 10 | U78: 0 | V78: =IF(H78="","",U78/'3 Irrigation Schedule'!$M$19) -> 0
D79: 2020 | E79: April | F79: 2020-04-15 | H79: 32 | I79: Development | J79: 5.30544 | K79: 0.6085714286 | L79: 3.2287392 | M79: 0.7018518519 | N79: =IF(OR('3 Irrigation Schedule'!$C$29="",'3 Irrigation Schedule'!$C$31="",H79=""),"",(('3 Irrigation Schedule'!$C$29-'3 Irrigation Schedule'!$C$31)/100)*1000*M79) -> 98.25925926 | O79: 54.04259259 | P79: =IF(H79="","",IF(H79=1,N79*(1-'3 Irrigation Schedule'!$C$27),S78-U78)) -> 8.8850696 | Q79: 1 | R79: 3.2287392 | S79: 12.1138088 | T79: =IF(H79="","",IF('3 Irrigation Schedule'!$P$19<O79,'3 Irrigation Schedule'!$P$19,O79)) -> 10 | U79: 10 | V79: =IF(H79="","",U79/'3 Irrigation Schedule'!$M$19) -> 11.11111111
D80: 2020 | E80: April | F80: 2020-04-16 | H80: 33 | I80: Development | J80: 5.30544 | K80: 0.6342857143 | L80: 3.3651648 | M80: 0.7148148148 | N80: =IF(OR('3 Irrigation Schedule'!$C$29="",'3 Irrigation Schedule'!$C$31="",H80=""),"",(('3 Irrigation Schedule'!$C$29-'3 Irrigation Schedule'!$C$31)/100)*1000*M80) -> 100.0740741 | O80: 55.04074074 | P80: =IF(H80="","",IF(H80=1,N80*(1-'3 Irrigation Schedule'!$C$27),S79-U79)) -> 2.1138088 | Q80: 1 | R80: 3.3651648 | S80: 5.4789736 | T80: =IF(H80="","",IF('3 Irrigation Schedule'!$P$19<O80,'3 Irrigation Schedule'!$P$19,O80)) -> 10 | U80: 0 | V80: =IF(H80="","",U80/'3 Irrigation Schedule'!$M$19) -> 0
D81: 2020 | E81: April | F81: 2020-04-17 | H81: 34 | I81: Development | J81: 5.30544 | K81: 0.66 | L81: 3.5015904 | M81: 0.7277777778 | N81: =IF(OR('3 Irrigation Schedule'!$C$29="",'3 Irrigation Schedule'!$C$31="",H81=""),"",(('3 Irrigation Schedule'!$C$29-'3 Irrigation Schedule'!$C$31)/100)*1000*M81) -> 101.8888889 | O81: 56.03888889 | P81: =IF(H81="","",IF(H81=1,N81*(1-'3 Irrigation Schedule'!$C$27),S80-U80)) -> 5.4789736 | Q81: 1 | R81: 3.5015904 | S81: 8.980564 | T81: =IF(H81="","",IF('3 Irrigation Schedule'!$P$19<O81,'3 Irrigation Schedule'!$P$19,O81)) -> 10 | U81: 0 | V81: =IF(H81="","",U81/'3 Irrigation Schedule'!$M$19) -> 0
D82: 2020 | E82: April | F82: 2020-04-18 | H82: 35 | I82: Development | J82: 5.30544 | K82: 0.6857142857 | L82: 3.638016 | M82: 0.7407407407 | N82: =IF(OR('3 Irrigation Schedule'!$C$29="",'3 Irrigation Schedule'!$C$31="",H82=""),"",(('3 Irrigation Schedule'!$C$29-'3 Irrigation Schedule'!$C$31)/100)*1000*M82) -> 103.7037037 | O82: 57.03703704 | P82: =IF(H82="","",IF(H82=1,N82*(1-'3 Irrigation Schedule'!$C$27),S81-U81)) -> 8.980564 | Q82: 1 | R82: 3.638016 | S82: 12.61858 | T82: =IF(H82="","",IF('3 Irrigation Schedule'!$P$19<O82,'3 Irrigation Schedule'!$P$19,O82)) -> 10 | U82: 10 | V82: =IF(H82="","",U82/'3 Irrigation Schedule'!$M$19) -> 11.11111111
D83: 2020 | E83: April | F83: 2020-04-19 | H83: 36 | I83: Development | J83: 5.30544 | K83: 0.7114285714 | L83: 3.7744416 | M83: 0.7537037037 | N83: =IF(OR('3 Irrigation Schedule'!$C$29="",'3 Irrigation Schedule'!$C$31="",H83=""),"",(('3 Irrigation Schedule'!$C$29-'3 Irrigation Schedule'!$C$31)/100)*1000*M83) -> 105.5185185 | O83: 58.03518519 | P83: =IF(H83="","",IF(H83=1,N83*(1-'3 Irrigation Schedule'!$C$27),S82-U82)) -> 2.61858 | Q83: 1 | R83: 3.7744416 | S83: 6.3930216 | T83: =IF(H83="","",IF('3 Irrigation Schedule'!$P$19<O83,'3 Irrigation Schedule'!$P$19,O83)) -> 10 | U83: 0 | V83: =IF(H83="","",U83/'3 Irrigation Schedule'!$M$19) -> 0
D84: 2020 | E84: April | F84: 2020-04-20 | H84: 37 | I84: Development | J84: 5.30544 | K84: 0.7371428571 | L84: 3.9108672 | M84: 0.7666666667 | N84: =IF(OR('3 Irrigation Schedule'!$C$29="",'3 Irrigation Schedule'!$C$31="",H84=""),"",(('3 Irrigation Schedule'!$C$29-'3 Irrigation Schedule'!$C$31)/100)*1000*M84) -> 107.3333333 | O84: 59.03333333 | P84: =IF(H84="","",IF(H84=1,N84*(1-'3 Irrigation Schedule'!$C$27),S83-U83)) -> 6.3930216 | Q84: 1 | R84: 3.9108672 | S84: 10.3038888 | T84: =IF(H84="","",IF('3 Irrigation Schedule'!$P$19<O84,'3 Irrigation Schedule'!$P$19,O84)) -> 10 | U84: 10 | V84: =IF(H84="","",U84/'3 Irrigation Schedule'!$M$19) -> 11.11111111
D85: 2020 | E85: April | F85: 2020-04-21 | H85: 38 | I85: Development | J85: 5.30544 | K85: 0.7628571429 | L85: 4.0472928 | M85: 0.7796296296 | N85: =IF(OR('3 Irrigation Schedule'!$C$29="",'3 Irrigation Schedule'!$C$31="",H85=""),"",(('3 Irrigation Schedule'!$C$29-'3 Irrigation Schedule'!$C$31)/100)*1000*M85) -> 109.1481481 | O85: 60.03148148 | P85: =IF(H85="","",IF(H85=1,N85*(1-'3 Irrigation Schedule'!$C$27),S84-U84)) -> 0.3038888 | Q85: 1 | R85: 4.0472928 | S85: 4.3511816 | T85: =IF(H85="","",IF('3 Irrigation Schedule'!$P$19<O85,'3 Irrigation Schedule'!$P$19,O85)) -> 10 | U85: 0 | V85: =IF(H85="","",U85/'3 Irrigation Schedule'!$M$19) -> 0
D86: 2020 | E86: April | F86: 2020-04-22 | H86: 39 | I86: Development | J86: 5.30544 | K86: 0.7885714286 | L86: 4.1837184 | M86: 0.7925925926 | N86: =IF(OR('3 Irrigation Schedule'!$C$29="",'3 Irrigation Schedule'!$C$31="",H86=""),"",(('3 Irrigation Schedule'!$C$29-'3 Irrigation Schedule'!$C$31)/100)*1000*M86) -> 110.962963 | O86: 61.02962963 | P86: =IF(H86="","",IF(H86=1,N86*(1-'3 Irrigation Schedule'!$C$27),S85-U85)) -> 4.3511816 | Q86: 1 | R86: 4.1837184 | S86: 8.5349 | T86: =IF(H86="","",IF('3 Irrigation Schedule'!$P$19<O86,'3 Irrigation Schedule'!$P$19,O86)) -> 10 | U86: 0 | V86: =IF(H86="","",U86/'3 Irrigation Schedule'!$M$19) -> 0
D87: 2020 | E87: April | F87: 2020-04-23 | H87: 40 | I87: Development | J87: 5.30544 | K87: 0.8142857143 | L87: 4.320144 | M87: 0.8055555556 | N87: =IF(OR('3 Irrigation Schedule'!$C$29="",'3 Irrigation Schedule'!$C$31="",H87=""),"",(('3 Irrigation Schedule'!$C$29-'3 Irrigation Schedule'!$C$31)/100)*1000*M87) -> 112.7777778 | O87: 62.02777778 | P87: =IF(H87="","",IF(H87=1,N87*(1-'3 Irrigation Schedule'!$C$27),S86-U86)) -> 8.5349 | Q87: 1 | R87: 4.320144 | S87: 12.855044 | T87: =IF(H87="","",IF('3 Irrigation Schedule'!$P$19<O87,'3 Irrigation Schedule'!$P$19,O87)) -> 10 | U87: 10 | V87: =IF(H87="","",U87/'3 Irrigation Schedule'!$M$19) -> 11.11111111
D88: 2020 | E88: April | F88: 2020-04-24 | H88: 41 | I88: Development | J88: 5.30544 | K88: 0.84 | L88: 4.4565696 | M88: 0.8185185185 | N88: =IF(OR('3 Irrigation Schedule'!$C$29="",'3 Irrigation Schedule'!$C$31="",H88=""),"",(('3 Irrigation Schedule'!$C$29-'3 Irrigation Schedule'!$C$31)/100)*1000*M88) -> 114.5925926 | O88: 63.02592593 | P88: =IF(H88="","",IF(H88=1,N88*(1-'3 Irrigation Schedule'!$C$27),S87-U87)) -> 2.855044 | Q88: 1 | R88: 4.4565696 | S88: 7.3116136 | T88: =IF(H88="","",IF('3 Irrigation Schedule'!$P$19<O88,'3 Irrigation Schedule'!$P$19,O88)) -> 10 | U88: 0 | V88: =IF(H88="","",U88/'3 Irrigation Schedule'!$M$19) -> 0
D89: 2020 | E89: April | F89: 2020-04-25 | H89: 42 | I89: Development | J89: 5.30544 | K89: 0.8657142857 | L89: 4.5929952 | M89: 0.8314814815 | N89: =IF(OR('3 Irrigation Schedule'!$C$29="",'3 Irrigation Schedule'!$C$31="",H89=""),"",(('3 Irrigation Schedule'!$C$29-'3 Irrigation Schedule'!$C$31)/100)*1000*M89) -> 116.4074074 | O89: 64.02407407 | P89: =IF(H89="","",IF(H89=1,N89*(1-'3 Irrigation Schedule'!$C$27),S88-U88)) -> 7.3116136 | Q89: 1 | R89: 4.5929952 | S89: 11.9046088 | T89: =IF(H89="","",IF('3 Irrigation Schedule'!$P$19<O89,'3 Irrigation Schedule'!$P$19,O89)) -> 10 | U89: 10 | V89: =IF(H89="","",U89/'3 Irrigation Schedule'!$M$19) -> 11.11111111
D90: 2020 | E90: April | F90: 2020-04-26 | H90: 43 | I90: Development | J90: 5.30544 | K90: 0.8914285714 | L90: 4.7294208 | M90: 0.8444444444 | N90: =IF(OR('3 Irrigation Schedule'!$C$29="",'3 Irrigation Schedule'!$C$31="",H90=""),"",(('3 Irrigation Schedule'!$C$29-'3 Irrigation Schedule'!$C$31)/100)*1000*M90) -> 118.2222222 | O90: 65.02222222 | P90: =IF(H90="","",IF(H90=1,N90*(1-'3 Irrigation Schedule'!$C$27),S89-U89)) -> 1.9046088 | Q90: 1 | R90: 4.7294208 | S90: 6.6340296 | T90: =IF(H90="","",IF('3 Irrigation Schedule'!$P$19<O90,'3 Irrigation Schedule'!$P$19,O90)) -> 10 | U90: 0 | V90: =IF(H90="","",U90/'3 Irrigation Schedule'!$M$19) -> 0
D91: 2020 | E91: April | F91: 2020-04-27 | H91: 44 | I91: Development | J91: 5.30544 | K91: 0.9171428571 | L91: 4.8658464 | M91: 0.8574074074 | N91: =IF(OR('3 Irrigation Schedule'!$C$29="",'3 Irrigation Schedule'!$C$31="",H91=""),"",(('3 Irrigation Schedule'!$C$29-'3 Irrigation Schedule'!$C$31)/100)*1000*M91) -> 120.037037 | O91: 66.02037037 | P91: =IF(H91="","",IF(H91=1,N91*(1-'3 Irrigation Schedule'!$C$27),S90-U90)) -> 6.6340296 | Q91: 1 | R91: 4.8658464 | S91: 11.499876 | T91: =IF(H91="","",IF('3 Irrigation Schedule'!$P$19<O91,'3 Irrigation Schedule'!$P$19,O91)) -> 10 | U91: 10 | V91: =IF(H91="","",U91/'3 Irrigation Schedule'!$M$19) -> 11.11111111
D92: 2020 | E92: April | F92: 2020-04-28 | H92: 45 | I92: Development | J92: 5.30544 | K92: 0.9428571429 | L92: 5.002272 | M92: 0.8703703704 | N92: =IF(OR('3 Irrigation Schedule'!$C$29="",'3 Irrigation Schedule'!$C$31="",H92=""),"",(('3 Irrigation Schedule'!$C$29-'3 Irrigation Schedule'!$C$31)/100)*1000*M92) -> 121.8518519 | O92: 67.01851852 | P92: =IF(H92="","",IF(H92=1,N92*(1-'3 Irrigation Schedule'!$C$27),S91-U91)) -> 1.499876 | Q92: 1 | R92: 5.002272 | S92: 6.502148 | T92: =IF(H92="","",IF('3 Irrigation Schedule'!$P$19<O92,'3 Irrigation Schedule'!$P$19,O92)) -> 10 | U92: 0 | V92: =IF(H92="","",U92/'3 Irrigation Schedule'!$M$19) -> 0
D93: 2020 | E93: April | F93: 2020-04-29 | H93: 46 | I93: Development | J93: 5.30544 | K93: 0.9685714286 | L93: 5.1386976 | M93: 0.8833333333 | N93: =IF(OR('3 Irrigation Schedule'!$C$29="",'3 Irrigation Schedule'!$C$31="",H93=""),"",(('3 Irrigation Schedule'!$C$29-'3 Irrigation Schedule'!$C$31)/100)*1000*M93) -> 123.6666667 | O93: 68.01666667 | P93: =IF(H93="","",IF(H93=1,N93*(1-'3 Irrigation Schedule'!$C$27),S92-U92)) -> 6.502148 | Q93: 1 | R93: 5.1386976 | S93: 11.6408456 | T93: =IF(H93="","",IF('3 Irrigation Schedule'!$P$19<O93,'3 Irrigation Schedule'!$P$19,O93)) -> 10 | U93: 10 | V93: =IF(H93="","",U93/'3 Irrigation Schedule'!$M$19) -> 11.11111111
D94: 2020 | E94: April | F94: 2020-04-30 | H94: 47 | I94: Development | J94: 5.30544 | K94: 0.9942857143 | L94: 5.2751232 | M94: 0.8962962963 | N94: =IF(OR('3 Irrigation Schedule'!$C$29="",'3 Irrigation Schedule'!$C$31="",H94=""),"",(('3 Irrigation Schedule'!$C$29-'3 Irrigation Schedule'!$C$31)/100)*1000*M94) -> 125.4814815 | O94: 69.01481481 | P94: =IF(H94="","",IF(H94=1,N94*(1-'3 Irrigation Schedule'!$C$27),S93-U93)) -> 1.6408456 | Q94: 1 | R94: 5.2751232 | S94: 6.9159688 | T94: =IF(H94="","",IF('3 Irrigation Schedule'!$P$19<O94,'3 Irrigation Schedule'!$P$19,O94)) -> 10 | U94: 0 | V94: =IF(H94="","",U94/'3 Irrigation Schedule'!$M$19) -> 0
D95: 2020 | E95: May | F95: 2020-05-01 | H95: 48 | I95: Development | J95: 5.31832 | K95: 1.02 | L95: 5.4246864 | M95: 0.9092592593 | N95: =IF(OR('3 Irrigation Schedule'!$C$29="",'3 Irrigation Schedule'!$C$31="",H95=""),"",(('3 Irrigation Schedule'!$C$29-'3 Irrigation Schedule'!$C$31)/100)*1000*M95) -> 127.2962963 | O95: 70.01296296 | P95: =IF(H95="","",IF(H95=1,N95*(1-'3 Irrigation Schedule'!$C$27),S94-U94)) -> 6.9159688 | Q95: 1 | R95: 5.4246864 | S95: 12.3406552 | T95: =IF(H95="","",IF('3 Irrigation Schedule'!$P$19<O95,'3 Irrigation Schedule'!$P$19,O95)) -> 10 | U95: 10 | V95: =IF(H95="","",U95/'3 Irrigation Schedule'!$M$19) -> 11.11111111
D96: 2020 | E96: May | F96: 2020-05-02 | H96: 49 | I96: Development | J96: 5.31832 | K96: 1.045714286 | L96: 5.5614432 | M96: 0.9222222222 | N96: =IF(OR('3 Irrigation Schedule'!$C$29="",'3 Irrigation Schedule'!$C$31="",H96=""),"",(('3 Irrigation Schedule'!$C$29-'3 Irrigation Schedule'!$C$31)/100)*1000*M96) -> 129.1111111 | O96: 71.01111111 | P96: =IF(H96="","",IF(H96=1,N96*(1-'3 Irrigation Schedule'!$C$27),S95-U95)) -> 2.3406552 | Q96: 1 | R96: 5.5614432 | S96: 7.9020984 | T96: =IF(H96="","",IF('3 Irrigation Schedule'!$P$19<O96,'3 Irrigation Schedule'!$P$19,O96)) -> 10 | U96: 0 | V96: =IF(H96="","",U96/'3 Irrigation Schedule'!$M$19) -> 0
D97: 2020 | E97: May | F97: 2020-05-03 | H97: 50 | I97: Development | J97: 5.31832 | K97: 1.071428571 | L97: 5.6982 | M97: 0.9351851852 | N97: =IF(OR('3 Irrigation Schedule'!$C$29="",'3 Irrigation Schedule'!$C$31="",H97=""),"",(('3 Irrigation Schedule'!$C$29-'3 Irrigation Schedule'!$C$31)/100)*1000*M97) -> 130.9259259 | O97: 72.00925926 | P97: =IF(H97="","",IF(H97=1,N97*(1-'3 Irrigation Schedule'!$C$27),S96-U96)) -> 7.9020984 | Q97: 1 | R97: 5.6982 | S97: 13.6002984 | T97: =IF(H97="","",IF('3 Irrigation Schedule'!$P$19<O97,'3 Irrigation Schedule'!$P$19,O97)) -> 10 | U97: 10 | V97: =IF(H97="","",U97/'3 Irrigation Schedule'!$M$19) -> 11.11111111
D98: =IFERROR(TEXT(DATE(YEAR($F98),MONTH($F98),1),$D$7&$D$4),"") -> 2020 | E98: =IFERROR(TEXT(DATE(YEAR($F98),MONTH($F98),1),$D$7&$D$5),"") -> May | F98: 2020-05-04 | H98: 51 | I98: =IF(H98="","",IF(H98<=$I$27,"Initial",IF(AND(H98>$I$27,H98<=$I$28),"Development",IF(AND(H98>$I$28,H98<=$I$29),"Mid Season","Late Season")))) -> Development | J98: =IFERROR(VLOOKUP($E98,$B$19:$C$30,2,FALSE),"") -> 5.31832 | K98: =IF(H98="","",IF(H98<=$I$27,$L$27,IF(AND(H98>$I$27,H98<=$I$28),$L$27+((H98-$I$27)/$H$28)*($L$29-$L$27),IF(AND(H98>$I$28,H98<=$I$29),$L$29,$L$29+((H98-$I$29)/$H$30)*($L$30-$L$29))))) -> 1.097142857 | L98: 5.8349568 | M98: 0.9481481481 | N98: =IF(OR('3 Irrigation Schedule'!$C$29="",'3 Irrigation Schedule'!$C$31="",H98=""),"",(('3 Irrigation Schedule'!$C$29-'3 Irrigation Schedule'!$C$31)/100)*1000*M98) -> 132.7407407 | O98: 73.00740741 | P98: =IF(H98="","",IF(H98=1,N98*(1-'3 Irrigation Schedule'!$C$27),S97-U97)) -> 3.6002984 | Q98: 1 | R98: 5.8349568 | S98: 9.4352552 | T98: =IF(H98="","",IF('3 Irrigation Schedule'!$P$19<O98,'3 Irrigation Schedule'!$P$19,O98)) -> 10 | U98: 0 | V98: =IF(H98="","",U98/'3 Irrigation Schedule'!$M$19) -> 0
D99: 2020 | E99: May | F99: =IFERROR(IF(F98+1<=$N$7, F98+1,""),"") -> 2020-05-05 | H99: =IFERROR(IF(OR($F99-$J$27+1<=0,$F99>$K$30),"",$F99-$J$27+1),"") -> 52 | I99: Development | J99: 5.31832 | K99: 1.122857143 | L99: =IFERROR((J99*K99),0) -> 5.9717136 | M99: =IF(H99="","",IF(OR(H99=1,H99<$I$28),$M$27+(($M$28-$M$27)*((H99-1)/($I$28-1))),$M$28)) -> 0.9611111111 | N99: =IF(OR('3 Irrigation Schedule'!$C$29="",'3 Irrigation Schedule'!$C$31="",H99=""),"",(('3 Irrigation Schedule'!$C$29-'3 Irrigation Schedule'!$C$31)/100)*1000*M99) -> 134.5555556 | O99: =IF(H99="","",N99*$N$27) -> 74.00555556 | P99: =IF(H99="","",IF(H99=1,N99*(1-'3 Irrigation Schedule'!$C$27),S98-U98)) -> 9.4352552 | Q99: 1 | R99: 5.9717136 | S99: 15.4069688 | T99: =IF(H99="","",IF('3 Irrigation Schedule'!$P$19<O99,'3 Irrigation Schedule'!$P$19,O99)) -> 10 | U99: =IF(H99="","",IF(T99<=S99,T99,0)) -> 10 | V99: =IF(H99="","",U99/'3 Irrigation Schedule'!$M$19) -> 11.11111111
D100: 2020 | E100: May | F100: 2020-05-06 | H100: 53 | I100: Development | J100: 5.31832 | K100: 1.148571429 | L100: 6.1084704 | M100: 0.9740740741 | N100: =IF(OR('3 Irrigation Schedule'!$C$29="",'3 Irrigation Schedule'!$C$31="",H100=""),"",(('3 Irrigation Schedule'!$C$29-'3 Irrigation Schedule'!$C$31)/100)*1000*M100) -> 136.3703704 | O100: 75.0037037 | P100: =IF(H100="","",IF(H100=1,N100*(1-'3 Irrigation Schedule'!$C$27),S99-U99)) -> 5.4069688 | Q100: 1 | R100: 6.1084704 | S100: 11.5154392 | T100: =IF(H100="","",IF('3 Irrigation Schedule'!$P$19<O100,'3 Irrigation Schedule'!$P$19,O100)) -> 10 | U100: 10 | V100: =IF(H100="","",U100/'3 Irrigation Schedule'!$M$19) -> 11.11111111
D101: 2020 | E101: May | F101: 2020-05-07 | H101: 54 | I101: Development | J101: 5.31832 | K101: 1.174285714 | L101: 6.2452272 | M101: 0.987037037 | N101: =IF(OR('3 Irrigation Schedule'!$C$29="",'3 Irrigation Schedule'!$C$31="",H101=""),"",(('3 Irrigation Schedule'!$C$29-'3 Irrigation Schedule'!$C$31)/100)*1000*M101) -> 138.1851852 | O101: 76.00185185 | P101: =IF(H101="","",IF(H101=1,N101*(1-'3 Irrigation Schedule'!$C$27),S100-U100)) -> 1.5154392 | Q101: 1 | R101: 6.2452272 | S101: 7.7606664 | T101: =IF(H101="","",IF('3 Irrigation Schedule'!$P$19<O101,'3 Irrigation Schedule'!$P$19,O101)) -> 10 | U101: 0 | V101: =IF(H101="","",U101/'3 Irrigation Schedule'!$M$19) -> 0
D102: 2020 | E102: May | F102: 2020-05-08 | H102: 55 | I102: Development | J102: 5.31832 | K102: 1.2 | L102: 6.381984 | M102: 1 | N102: =IF(OR('3 Irrigation Schedule'!$C$29="",'3 Irrigation Schedule'!$C$31="",H102=""),"",(('3 Irrigation Schedule'!$C$29-'3 Irrigation Schedule'!$C$31)/100)*1000*M102) -> 140 | O102: 77 | P102: =IF(H102="","",IF(H102=1,N102*(1-'3 Irrigation Schedule'!$C$27),S101-U101)) -> 7.7606664 | Q102: 1 | R102: 6.381984 | S102: 14.1426504 | T102: =IF(H102="","",IF('3 Irrigation Schedule'!$P$19<O102,'3 Irrigation Schedule'!$P$19,O102)) -> 10 | U102: 10 | V102: =IF(H102="","",U102/'3 Irrigation Schedule'!$M$19) -> 11.11111111
D103: 2020 | E103: May | F103: 2020-05-09 | H103: 56 | I103: Mid Season | J103: 5.31832 | K103: 1.2 | L103: 6.381984 | M103: 1 | N103: =IF(OR('3 Irrigation Schedule'!$C$29="",'3 Irrigation Schedule'!$C$31="",H103=""),"",(('3 Irrigation Schedule'!$C$29-'3 Irrigation Schedule'!$C$31)/100)*1000*M103) -> 140 | O103: 77 | P103: =IF(H103="","",IF(H103=1,N103*(1-'3 Irrigation Schedule'!$C$27),S102-U102)) -> 4.1426504 | Q103: 1 | R103: 6.381984 | S103: 10.5246344 | T103: =IF(H103="","",IF('3 Irrigation Schedule'!$P$19<O103,'3 Irrigation Schedule'!$P$19,O103)) -> 10 | U103: 10 | V103: =IF(H103="","",U103/'3 Irrigation Schedule'!$M$19) -> 11.11111111
D104: 2020 | E104: May | F104: 2020-05-10 | H104: 57 | I104: Mid Season | J104: 5.31832 | K104: 1.2 | L104: 6.381984 | M104: 1 | N104: =IF(OR('3 Irrigation Schedule'!$C$29="",'3 Irrigation Schedule'!$C$31="",H104=""),"",(('3 Irrigation Schedule'!$C$29-'3 Irrigation Schedule'!$C$31)/100)*1000*M104) -> 140 | O104: 77 | P104: =IF(H104="","",IF(H104=1,N104*(1-'3 Irrigation Schedule'!$C$27),S103-U103)) -> 0.5246344 | Q104: 1 | R104: 6.381984 | S104: 6.9066184 | T104: =IF(H104="","",IF('3 Irrigation Schedule'!$P$19<O104,'3 Irrigation Schedule'!$P$19,O104)) -> 10 | U104: 0 | V104: =IF(H104="","",U104/'3 Irrigation Schedule'!$M$19) -> 0
D105: 2020 | E105: May | F105: 2020-05-11 | H105: 58 | I105: Mid Season | J105: 5.31832 | K105: 1.2 | L105: 6.381984 | M105: 1 | N105: =IF(OR('3 Irrigation Schedule'!$C$29="",'3 Irrigation Schedule'!$C$31="",H105=""),"",(('3 Irrigation Schedule'!$C$29-'3 Irrigation Schedule'!$C$31)/100)*1000*M105) -> 140 | O105: 77 | P105: =IF(H105="","",IF(H105=1,N105*(1-'3 Irrigation Schedule'!$C$27),S104-U104)) -> 6.9066184 | Q105: 1 | R105: 6.381984 | S105: 13.2886024 | T105: =IF(H105="","",IF('3 Irrigation Schedule'!$P$19<O105,'3 Irrigation Schedule'!$P$19,O105)) -> 10 | U105: 10 | V105: =IF(H105="","",U105/'3 Irrigation Schedule'!$M$19) -> 11.11111111
D106: 2020 | E106: May | F106: 2020-05-12 | H106: 59 | I106: Mid Season | J106: 5.31832 | K106: 1.2 | L106: 6.381984 | M106: 1 | N106: =IF(OR('3 Irrigation Schedule'!$C$29="",'3 Irrigation Schedule'!$C$31="",H106=""),"",(('3 Irrigation Schedule'!$C$29-'3 Irrigation Schedule'!$C$31)/100)*1000*M106) -> 140 | O106: 77 | P106: =IF(H106="","",IF(H106=1,N106*(1-'3 Irrigation Schedule'!$C$27),S105-U105)) -> 3.2886024 | Q106: 1 | R106: 6.381984 | S106: 9.6705864 | T106: =IF(H106="","",IF('3 Irrigation Schedule'!$P$19<O106,'3 Irrigation Schedule'!$P$19,O106)) -> 10 | U106: 0 | V106: =IF(H106="","",U106/'3 Irrigation Schedule'!$M$19) -> 0
D107: 2020 | E107: May | F107: 2020-05-13 | H107: 60 | I107: Mid Season | J107: 5.31832 | K107: 1.2 | L107: 6.381984 | M107: 1 | N107: =IF(OR('3 Irrigation Schedule'!$C$29="",'3 Irrigation Schedule'!$C$31="",H107=""),"",(('3 Irrigation Schedule'!$C$29-'3 Irrigation Schedule'!$C$31)/100)*1000*M107) -> 140 | O107: 77 | P107: =IF(H107="","",IF(H107=1,N107*(1-'3 Irrigation Schedule'!$C$27),S106-U106)) -> 9.6705864 | Q107: 1 | R107: 6.381984 | S107: 16.0525704 | T107: =IF(H107="","",IF('3 Irrigation Schedule'!$P$19<O107,'3 Irrigation Schedule'!$P$19,O107)) -> 10 | U107: 10 | V107: =IF(H107="","",U107/'3 Irrigation Schedule'!$M$19) -> 11.11111111
D108: 2020 | E108: May | F108: 2020-05-14 | H108: 61 | I108: Mid Season | J108: 5.31832 | K108: 1.2 | L108: 6.381984 | M108: 1 | N108: =IF(OR('3 Irrigation Schedule'!$C$29="",'3 Irrigation Schedule'!$C$31="",H108=""),"",(('3 Irrigation Schedule'!$C$29-'3 Irrigation Schedule'!$C$31)/100)*1000*M108) -> 140 | O108: 77 | P108: =IF(H108="","",IF(H108=1,N108*(1-'3 Irrigation Schedule'!$C$27),S107-U107)) -> 6.0525704 | Q108: 1 | R108: 6.381984 | S108: 12.4345544 | T108: =IF(H108="","",IF('3 Irrigation Schedule'!$P$19<O108,'3 Irrigation Schedule'!$P$19,O108)) -> 10 | U108: 10 | V108: =IF(H108="","",U108/'3 Irrigation Schedule'!$M$19) -> 11.11111111
D109: 2020 | E109: May | F109: 2020-05-15 | H109: 62 | I109: Mid Season | J109: 5.31832 | K109: 1.2 | L109: 6.381984 | M109: 1 | N109: =IF(OR('3 Irrigation Schedule'!$C$29="",'3 Irrigation Schedule'!$C$31="",H109=""),"",(('3 Irrigation Schedule'!$C$29-'3 Irrigation Schedule'!$C$31)/100)*1000*M109) -> 140 | O109: 77 | P109: =IF(H109="","",IF(H109=1,N109*(1-'3 Irrigation Schedule'!$C$27),S108-U108)) -> 2.4345544 | Q109: 1 | R109: 6.381984 | S109: 8.8165384 | T109: =IF(H109="","",IF('3 Irrigation Schedule'!$P$19<O109,'3 Irrigation Schedule'!$P$19,O109)) -> 10 | U109: 0 | V109: =IF(H109="","",U109/'3 Irrigation Schedule'!$M$19) -> 0
D110: 2020 | E110: May | F110: 2020-05-16 | H110: 63 | I110: Mid Season | J110: 5.31832 | K110: 1.2 | L110: 6.381984 | M110: 1 | N110: =IF(OR('3 Irrigation Schedule'!$C$29="",'3 Irrigation Schedule'!$C$31="",H110=""),"",(('3 Irrigation Schedule'!$C$29-'3 Irrigation Schedule'!$C$31)/100)*1000*M110) -> 140 | O110: 77 | P110: =IF(H110="","",IF(H110=1,N110*(1-'3 Irrigation Schedule'!$C$27),S109-U109)) -> 8.8165384 | Q110: 1 | R110: 6.381984 | S110: 15.1985224 | T110: =IF(H110="","",IF('3 Irrigation Schedule'!$P$19<O110,'3 Irrigation Schedule'!$P$19,O110)) -> 10 | U110: 10 | V110: =IF(H110="","",U110/'3 Irrigation Schedule'!$M$19) -> 11.11111111
D111: 2020 | E111: May | F111: 2020-05-17 | H111: 64 | I111: Mid Season | J111: 5.31832 | K111: 1.2 | L111: 6.381984 | M111: 1 | N111: =IF(OR('3 Irrigation Schedule'!$C$29="",'3 Irrigation Schedule'!$C$31="",H111=""),"",(('3 Irrigation Schedule'!$C$29-'3 Irrigation Schedule'!$C$31)/100)*1000*M111) -> 140 | O111: 77 | P111: =IF(H111="","",IF(H111=1,N111*(1-'3 Irrigation Schedule'!$C$27),S110-U110)) -> 5.1985224 | Q111: 1 | R111: 6.381984 | S111: 11.5805064 | T111: =IF(H111="","",IF('3 Irrigation Schedule'!$P$19<O111,'3 Irrigation Schedule'!$P$19,O111)) -> 10 | U111: 10 | V111: =IF(H111="","",U111/'3 Irrigation Schedule'!$M$19) -> 11.11111111
D112: 2020 | E112: May | F112: 2020-05-18 | H112: 65 | I112: Mid Season | J112: 5.31832 | K112: 1.2 | L112: 6.381984 | M112: 1 | N112: =IF(OR('3 Irrigation Schedule'!$C$29="",'3 Irrigation Schedule'!$C$31="",H112=""),"",(('3 Irrigation Schedule'!$C$29-'3 Irrigation Schedule'!$C$31)/100)*1000*M112) -> 140 | O112: 77 | P112: =IF(H112="","",IF(H112=1,N112*(1-'3 Irrigation Schedule'!$C$27),S111-U111)) -> 1.5805064 | Q112: 1 | R112: 6.381984 | S112: 7.9624904 | T112: =IF(H112="","",IF('3 Irrigation Schedule'!$P$19<O112,'3 Irrigation Schedule'!$P$19,O112)) -> 10 | U112: 0 | V112: =IF(H112="","",U112/'3 Irrigation Schedule'!$M$19) -> 0
D113: 2020 | E113: May | F113: 2020-05-19 | H113: 66 | I113: Mid Season | J113: 5.31832 | K113: 1.2 | L113: 6.381984 | M113: 1 | N113: =IF(OR('3 Irrigation Schedule'!$C$29="",'3 Irrigation Schedule'!$C$31="",H113=""),"",(('3 Irrigation Schedule'!$C$29-'3 Irrigation Schedule'!$C$31)/100)*1000*M113) -> 140 | O113: 77 | P113: =IF(H113="","",IF(H113=1,N113*(1-'3 Irrigation Schedule'!$C$27),S112-U112)) -> 7.9624904 | Q113: =IF(H113="","",IF(P113>O113,(N113-P113)/(N113-O113),1)) -> 1 | R113: =IF(H113="","",L113*Q113) -> 6.381984 | S113: =IF(H113="","",P113+R113) -> 14.3444744 | T113: =IF(H113="","",IF('3 Irrigation Schedule'!$P$19<O113,'3 Irrigation Schedule'!$P$19,O113)) -> 10 | U113: 10 | V113: =IF(H113="","",U113/'3 Irrigation Schedule'!$M$19) -> 11.11111111
D114: 2020 | E114: May | F114: 2020-05-20 | H114: 67 | I114: Mid Season | J114: 5.31832 | K114: 1.2 | L114: 6.381984 | M114: 1 | N114: =IF(OR('3 Irrigation Schedule'!$C$29="",'3 Irrigation Schedule'!$C$31="",H114=""),"",(('3 Irrigation Schedule'!$C$29-'3 Irrigation Schedule'!$C$31)/100)*1000*M114) -> 140 | O114: 77 | P114: =IF(H114="","",IF(H114=1,N114*(1-'3 Irrigation Schedule'!$C$27),S113-U113)) -> 4.3444744 | Q114: 1 | R114: 6.381984 | S114: 10.7264584 | T114: =IF(H114="","",IF('3 Irrigation Schedule'!$P$19<O114,'3 Irrigation Schedule'!$P$19,O114)) -> 10 | U114: 10 | V114: =IF(H114="","",U114/'3 Irrigation Schedule'!$M$19) -> 11.11111111
D115: 2020 | E115: May | F115: 2020-05-21 | H115: 68 | I115: Mid Season | J115: 5.31832 | K115: 1.2 | L115: 6.381984 | M115: 1 | N115: =IF(OR('3 Irrigation Schedule'!$C$29="",'3 Irrigation Schedule'!$C$31="",H115=""),"",(('3 Irrigation Schedule'!$C$29-'3 Irrigation Schedule'!$C$31)/100)*1000*M115) -> 140 | O115: 77 | P115: =IF(H115="","",IF(H115=1,N115*(1-'3 Irrigation Schedule'!$C$27),S114-U114)) -> 0.7264584 | Q115: 1 | R115: 6.381984 | S115: 7.1084424 | T115: =IF(H115="","",IF('3 Irrigation Schedule'!$P$19<O115,'3 Irrigation Schedule'!$P$19,O115)) -> 10 | U115: 0 | V115: =IF(H115="","",U115/'3 Irrigation Schedule'!$M$19) -> 0
D116: 2020 | E116: May | F116: 2020-05-22 | H116: 69 | I116: Mid Season | J116: 5.31832 | K116: 1.2 | L116: 6.381984 | M116: 1 | N116: =IF(OR('3 Irrigation Schedule'!$C$29="",'3 Irrigation Schedule'!$C$31="",H116=""),"",(('3 Irrigation Schedule'!$C$29-'3 Irrigation Schedule'!$C$31)/100)*1000*M116) -> 140 | O116: 77 | P116: =IF(H116="","",IF(H116=1,N116*(1-'3 Irrigation Schedule'!$C$27),S115-U115)) -> 7.1084424 | Q116: 1 | R116: 6.381984 | S116: 13.4904264 | T116: =IF(H116="","",IF('3 Irrigation Schedule'!$P$19<O116,'3 Irrigation Schedule'!$P$19,O116)) -> 10 | U116: 10 | V116: =IF(H116="","",U116/'3 Irrigation Schedule'!$M$19) -> 11.11111111
D117: 2020 | E117: May | F117: 2020-05-23 | H117: 70 | I117: Mid Season | J117: 5.31832 | K117: 1.2 | L117: 6.381984 | M117: 1 | N117: =IF(OR('3 Irrigation Schedule'!$C$29="",'3 Irrigation Schedule'!$C$31="",H117=""),"",(('3 Irrigation Schedule'!$C$29-'3 Irrigation Schedule'!$C$31)/100)*1000*M117) -> 140 | O117: 77 | P117: =IF(H117="","",IF(H117=1,N117*(1-'3 Irrigation Schedule'!$C$27),S116-U116)) -> 3.4904264 | Q117: 1 | R117: 6.381984 | S117: 9.8724104 | T117: =IF(H117="","",IF('3 Irrigation Schedule'!$P$19<O117,'3 Irrigation Schedule'!$P$19,O117)) -> 10 | U117: 0 | V117: =IF(H117="","",U117/'3 Irrigation Schedule'!$M$19) -> 0
D118: 2020 | E118: May | F118: 2020-05-24 | H118: 71 | I118: Mid Season | J118: 5.31832 | K118: 1.2 | L118: 6.381984 | M118: 1 | N118: =IF(OR('3 Irrigation Schedule'!$C$29="",'3 Irrigation Schedule'!$C$31="",H118=""),"",(('3 Irrigation Schedule'!$C$29-'3 Irrigation Schedule'!$C$31)/100)*1000*M118) -> 140 | O118: 77 | P118: =IF(H118="","",IF(H118=1,N118*(1-'3 Irrigation Schedule'!$C$27),S117-U117)) -> 9.8724104 | Q118: 1 | R118: 6.381984 | S118: 16.2543944 | T118: =IF(H118="","",IF('3 Irrigation Schedule'!$P$19<O118,'3 Irrigation Schedule'!$P$19,O118)) -> 10 | U118: 10 | V118: =IF(H118="","",U118/'3 Irrigation Schedule'!$M$19) -> 11.11111111
D119: 2020 | E119: May | F119: 2020-05-25 | H119: 72 | I119: Mid Season | J119: 5.31832 | K119: 1.2 | L119: 6.381984 | M119: 1 | N119: =IF(OR('3 Irrigation Schedule'!$C$29="",'3 Irrigation Schedule'!$C$31="",H119=""),"",(('3 Irrigation Schedule'!$C$29-'3 Irrigation Schedule'!$C$31)/100)*1000*M119) -> 140 | O119: 77 | P119: =IF(H119="","",IF(H119=1,N119*(1-'3 Irrigation Schedule'!$C$27),S118-U118)) -> 6.2543944 | Q119: 1 | R119: 6.381984 | S119: 12.6363784 | T119: =IF(H119="","",IF('3 Irrigation Schedule'!$P$19<O119,'3 Irrigation Schedule'!$P$19,O119)) -> 10 | U119: 10 | V119: =IF(H119="","",U119/'3 Irrigation Schedule'!$M$19) -> 11.11111111
D120: 2020 | E120: May | F120: 2020-05-26 | H120: 73 | I120: Mid Season | J120: 5.31832 | K120: 1.2 | L120: 6.381984 | M120: 1 | N120: =IF(OR('3 Irrigation Schedule'!$C$29="",'3 Irrigation Schedule'!$C$31="",H120=""),"",(('3 Irrigation Schedule'!$C$29-'3 Irrigation Schedule'!$C$31)/100)*1000*M120) -> 140 | O120: 77 | P120: =IF(H120="","",IF(H120=1,N120*(1-'3 Irrigation Schedule'!$C$27),S119-U119)) -> 2.6363784 | Q120: 1 | R120: 6.381984 | S120: 9.0183624 | T120: =IF(H120="","",IF('3 Irrigation Schedule'!$P$19<O120,'3 Irrigation Schedule'!$P$19,O120)) -> 10 | U120: 0 | V120: =IF(H120="","",U120/'3 Irrigation Schedule'!$M$19) -> 0
D121: 2020 | E121: May | F121: 2020-05-27 | H121: 74 | I121: Mid Season | J121: 5.31832 | K121: 1.2 | L121: 6.381984 | M121: 1 | N121: =IF(OR('3 Irrigation Schedule'!$C$29="",'3 Irrigation Schedule'!$C$31="",H121=""),"",(('3 Irrigation Schedule'!$C$29-'3 Irrigation Schedule'!$C$31)/100)*1000*M121) -> 140 | O121: 77 | P121: =IF(H121="","",IF(H121=1,N121*(1-'3 Irrigation Schedule'!$C$27),S120-U120)) -> 9.0183624 | Q121: 1 | R121: 6.381984 | S121: 15.4003464 | T121: =IF(H121="","",IF('3 Irrigation Schedule'!$P$19<O121,'3 Irrigation Schedule'!$P$19,O121)) -> 10 | U121: 10 | V121: =IF(H121="","",U121/'3 Irrigation Schedule'!$M$19) -> 11.11111111
D122: 2020 | E122: May | F122: 2020-05-28 | H122: 75 | I122: Mid Season | J122: 5.31832 | K122: 1.2 | L122: 6.381984 | M122: 1 | N122: =IF(OR('3 Irrigation Schedule'!$C$29="",'3 Irrigation Schedule'!$C$31="",H122=""),"",(('3 Irrigation Schedule'!$C$29-'3 Irrigation Schedule'!$C$31)/100)*1000*M122) -> 140 | O122: 77 | P122: =IF(H122="","",IF(H122=1,N122*(1-'3 Irrigation Schedule'!$C$27),S121-U121)) -> 5.4003464 | Q122: 1 | R122: 6.381984 | S122: 11.7823304 | T122: =IF(H122="","",IF('3 Irrigation Schedule'!$P$19<O122,'3 Irrigation Schedule'!$P$19,O122)) -> 10 | U122: 10 | V122: =IF(H122="","",U122/'3 Irrigation Schedule'!$M$19) -> 11.11111111
D123: 2020 | E123: May | F123: 2020-05-29 | H123: 76 | I123: Mid Season | J123: 5.31832 | K123: 1.2 | L123: 6.381984 | M123: 1 | N123: =IF(OR('3 Irrigation Schedule'!$C$29="",'3 Irrigation Schedule'!$C$31="",H123=""),"",(('3 Irrigation Schedule'!$C$29-'3 Irrigation Schedule'!$C$31)/100)*1000*M123) -> 140 | O123: 77 | P123: =IF(H123="","",IF(H123=1,N123*(1-'3 Irrigation Schedule'!$C$27),S122-U122)) -> 1.7823304 | Q123: 1 | R123: 6.381984 | S123: 8.1643144 | T123: =IF(H123="","",IF('3 Irrigation Schedule'!$P$19<O123,'3 Irrigation Schedule'!$P$19,O123)) -> 10 | U123: 0 | V123: =IF(H123="","",U123/'3 Irrigation Schedule'!$M$19) -> 0
D124: 2020 | E124: May | F124: 2020-05-30 | H124: 77 | I124: Mid Season | J124: 5.31832 | K124: 1.2 | L124: 6.381984 | M124: 1 | N124: =IF(OR('3 Irrigation Schedule'!$C$29="",'3 Irrigation Schedule'!$C$31="",H124=""),"",(('3 Irrigation Schedule'!$C$29-'3 Irrigation Schedule'!$C$31)/100)*1000*M124) -> 140 | O124: 77 | P124: =IF(H124="","",IF(H124=1,N124*(1-'3 Irrigation Schedule'!$C$27),S123-U123)) -> 8.1643144 | Q124: 1 | R124: 6.381984 | S124: 14.5462984 | T124: =IF(H124="","",IF('3 Irrigation Schedule'!$P$19<O124,'3 Irrigation Schedule'!$P$19,O124)) -> 10 | U124: 10 | V124: =IF(H124="","",U124/'3 Irrigation Schedule'!$M$19) -> 11.11111111
D125: 2020 | E125: May | F125: 2020-05-31 | H125: 78 | I125: Mid Season | J125: 5.31832 | K125: 1.2 | L125: 6.381984 | M125: 1 | N125: =IF(OR('3 Irrigation Schedule'!$C$29="",'3 Irrigation Schedule'!$C$31="",H125=""),"",(('3 Irrigation Schedule'!$C$29-'3 Irrigation Schedule'!$C$31)/100)*1000*M125) -> 140 | O125: 77 | P125: =IF(H125="","",IF(H125=1,N125*(1-'3 Irrigation Schedule'!$C$27),S124-U124)) -> 4.5462984 | Q125: 1 | R125: 6.381984 | S125: 10.9282824 | T125: =IF(H125="","",IF('3 Irrigation Schedule'!$P$19<O125,'3 Irrigation Schedule'!$P$19,O125)) -> 10 | U125: 10 | V125: =IF(H125="","",U125/'3 Irrigation Schedule'!$M$19) -> 11.11111111
D126: 2020 | E126: June | F126: 2020-06-01 | H126: 79 | I126: Mid Season | J126: 5.2668 | K126: 1.2 | L126: 6.32016 | M126: 1 | N126: =IF(OR('3 Irrigation Schedule'!$C$29="",'3 Irrigation Schedule'!$C$31="",H126=""),"",(('3 Irrigation Schedule'!$C$29-'3 Irrigation Schedule'!$C$31)/100)*1000*M126) -> 140 | O126: 77 | P126: =IF(H126="","",IF(H126=1,N126*(1-'3 Irrigation Schedule'!$C$27),S125-U125)) -> 0.9282824 | Q126: 1 | R126: 6.32016 | S126: 7.2484424 | T126: =IF(H126="","",IF('3 Irrigation Schedule'!$P$19<O126,'3 Irrigation Schedule'!$P$19,O126)) -> 10 | U126: 0 | V126: =IF(H126="","",U126/'3 Irrigation Schedule'!$M$19) -> 0
D127: 2020 | E127: June | F127: 2020-06-02 | H127: 80 | I127: Mid Season | J127: 5.2668 | K127: 1.2 | L127: 6.32016 | M127: 1 | N127: =IF(OR('3 Irrigation Schedule'!$C$29="",'3 Irrigation Schedule'!$C$31="",H127=""),"",(('3 Irrigation Schedule'!$C$29-'3 Irrigation Schedule'!$C$31)/100)*1000*M127) -> 140 | O127: 77 | P127: =IF(H127="","",IF(H127=1,N127*(1-'3 Irrigation Schedule'!$C$27),S126-U126)) -> 7.2484424 | Q127: 1 | R127: 6.32016 | S127: 13.5686024 | T127: =IF(H127="","",IF('3 Irrigation Schedule'!$P$19<O127,'3 Irrigation Schedule'!$P$19,O127)) -> 10 | U127: 10 | V127: =IF(H127="","",U127/'3 Irrigation Schedule'!$M$19) -> 11.11111111
D128: 2020 | E128: June | F128: 2020-06-03 | H128: 81 | I128: Mid Season | J128: 5.2668 | K128: 1.2 | L128: 6.32016 | M128: 1 | N128: =IF(OR('3 Irrigation Schedule'!$C$29="",'3 Irrigation Schedule'!$C$31="",H128=""),"",(('3 Irrigation Schedule'!$C$29-'3 Irrigation Schedule'!$C$31)/100)*1000*M128) -> 140 | O128: 77 | P128: =IF(H128="","",IF(H128=1,N128*(1-'3 Irrigation Schedule'!$C$27),S127-U127)) -> 3.5686024 | Q128: 1 | R128: 6.32016 | S128: 9.8887624 | T128: =IF(H128="","",IF('3 Irrigation Schedule'!$P$19<O128,'3 Irrigation Schedule'!$P$19,O128)) -> 10 | U128: 0 | V128: =IF(H128="","",U128/'3 Irrigation Schedule'!$M$19) -> 0
D129: 2020 | E129: June | F129: 2020-06-04 | H129: 82 | I129: Mid Season | J129: 5.2668 | K129: 1.2 | L129: 6.32016 | M129: 1 | N129: =IF(OR('3 Irrigation Schedule'!$C$29="",'3 Irrigation Schedule'!$C$31="",H129=""),"",(('3 Irrigation Schedule'!$C$29-'3 Irrigation Schedule'!$C$31)/100)*1000*M129) -> 140 | O129: 77 | P129: =IF(H129="","",IF(H129=1,N129*(1-'3 Irrigation Schedule'!$C$27),S128-U128)) -> 9.8887624 | Q129: 1 | R129: 6.32016 | S129: 16.2089224 | T129: =IF(H129="","",IF('3 Irrigation Schedule'!$P$19<O129,'3 Irrigation Schedule'!$P$19,O129)) -> 10 | U129: 10 | V129: =IF(H129="","",U129/'3 Irrigation Schedule'!$M$19) -> 11.11111111
D130: 2020 | E130: June | F130: 2020-06-05 | H130: 83 | I130: Mid Season | J130: 5.2668 | K130: 1.2 | L130: 6.32016 | M130: 1 | N130: =IF(OR('3 Irrigation Schedule'!$C$29="",'3 Irrigation Schedule'!$C$31="",H130=""),"",(('3 Irrigation Schedule'!$C$29-'3 Irrigation Schedule'!$C$31)/100)*1000*M130) -> 140 | O130: 77 | P130: =IF(H130="","",IF(H130=1,N130*(1-'3 Irrigation Schedule'!$C$27),S129-U129)) -> 6.2089224 | Q130: 1 | R130: 6.32016 | S130: 12.5290824 | T130: =IF(H130="","",IF('3 Irrigation Schedule'!$P$19<O130,'3 Irrigation Schedule'!$P$19,O130)) -> 10 | U130: 10 | V130: =IF(H130="","",U130/'3 Irrigation Schedule'!$M$19) -> 11.11111111
D131: 2020 | E131: June | F131: 2020-06-06 | H131: 84 | I131: Mid Season | J131: 5.2668 | K131: 1.2 | L131: 6.32016 | M131: 1 | N131: =IF(OR('3 Irrigation Schedule'!$C$29="",'3 Irrigation Schedule'!$C$31="",H131=""),"",(('3 Irrigation Schedule'!$C$29-'3 Irrigation Schedule'!$C$31)/100)*1000*M131) -> 140 | O131: 77 | P131: =IF(H131="","",IF(H131=1,N131*(1-'3 Irrigation Schedule'!$C$27),S130-U130)) -> 2.5290824 | Q131: 1 | R131: 6.32016 | S131: 8.8492424 | T131: =IF(H131="","",IF('3 Irrigation Schedule'!$P$19<O131,'3 Irrigation Schedule'!$P$19,O131)) -> 10 | U131: 0 | V131: =IF(H131="","",U131/'3 Irrigation Schedule'!$M$19) -> 0
D132: 2020 | E132: June | F132: 2020-06-07 | H132: 85 | I132: Mid Season | J132: 5.2668 | K132: 1.2 | L132: 6.32016 | M132: 1 | N132: =IF(OR('3 Irrigation Schedule'!$C$29="",'3 Irrigation Schedule'!$C$31="",H132=""),"",(('3 Irrigation Schedule'!$C$29-'3 Irrigation Schedule'!$C$31)/100)*1000*M132) -> 140 | O132: 77 | P132: =IF(H132="","",IF(H132=1,N132*(1-'3 Irrigation Schedule'!$C$27),S131-U131)) -> 8.8492424 | Q132: 1 | R132: 6.32016 | S132: 15.1694024 | T132: =IF(H132="","",IF('3 Irrigation Schedule'!$P$19<O132,'3 Irrigation Schedule'!$P$19,O132)) -> 10 | U132: 10 | V132: =IF(H132="","",U132/'3 Irrigation Schedule'!$M$19) -> 11.11111111
D133: 2020 | E133: June | F133: 2020-06-08 | H133: 86 | I133: Mid Season | J133: 5.2668 | K133: 1.2 | L133: 6.32016 | M133: 1 | N133: =IF(OR('3 Irrigation Schedule'!$C$29="",'3 Irrigation Schedule'!$C$31="",H133=""),"",(('3 Irrigation Schedule'!$C$29-'3 Irrigation Schedule'!$C$31)/100)*1000*M133) -> 140 | O133: 77 | P133: =IF(H133="","",IF(H133=1,N133*(1-'3 Irrigation Schedule'!$C$27),S132-U132)) -> 5.1694024 | Q133: 1 | R133: 6.32016 | S133: 11.4895624 | T133: =IF(H133="","",IF('3 Irrigation Schedule'!$P$19<O133,'3 Irrigation Schedule'!$P$19,O133)) -> 10 | U133: 10 | V133: =IF(H133="","",U133/'3 Irrigation Schedule'!$M$19) -> 11.11111111
D134: 2020 | E134: June | F134: 2020-06-09 | H134: 87 | I134: Mid Season | J134: 5.2668 | K134: 1.2 | L134: 6.32016 | M134: 1 | N134: =IF(OR('3 Irrigation Schedule'!$C$29="",'3 Irrigation Schedule'!$C$31="",H134=""),"",(('3 Irrigation Schedule'!$C$29-'3 Irrigation Schedule'!$C$31)/100)*1000*M134) -> 140 | O134: 77 | P134: =IF(H134="","",IF(H134=1,N134*(1-'3 Irrigation Schedule'!$C$27),S133-U133)) -> 1.4895624 | Q134: 1 | R134: 6.32016 | S134: 7.8097224 | T134: =IF(H134="","",IF('3 Irrigation Schedule'!$P$19<O134,'3 Irrigation Schedule'!$P$19,O134)) -> 10 | U134: 0 | V134: =IF(H134="","",U134/'3 Irrigation Schedule'!$M$19) -> 0
D135: 2020 | E135: June | F135: 2020-06-10 | H135: 88 | I135: Mid Season | J135: 5.2668 | K135: 1.2 | L135: 6.32016 | M135: 1 | N135: =IF(OR('3 Irrigation Schedule'!$C$29="",'3 Irrigation Schedule'!$C$31="",H135=""),"",(('3 Irrigation Schedule'!$C$29-'3 Irrigation Schedule'!$C$31)/100)*1000*M135) -> 140 | O135: 77 | P135: =IF(H135="","",IF(H135=1,N135*(1-'3 Irrigation Schedule'!$C$27),S134-U134)) -> 7.8097224 | Q135: 1 | R135: 6.32016 | S135: 14.1298824 | T135: =IF(H135="","",IF('3 Irrigation Schedule'!$P$19<O135,'3 Irrigation Schedule'!$P$19,O135)) -> 10 | U135: 10 | V135: =IF(H135="","",U135/'3 Irrigation Schedule'!$M$19) -> 11.11111111
D136: 2020 | E136: June | F136: 2020-06-11 | H136: 89 | I136: Mid Season | J136: 5.2668 | K136: 1.2 | L136: 6.32016 | M136: 1 | N136: =IF(OR('3 Irrigation Schedule'!$C$29="",'3 Irrigation Schedule'!$C$31="",H136=""),"",(('3 Irrigation Schedule'!$C$29-'3 Irrigation Schedule'!$C$31)/100)*1000*M136) -> 140 | O136: 77 | P136: =IF(H136="","",IF(H136=1,N136*(1-'3 Irrigation Schedule'!$C$27),S135-U135)) -> 4.1298824 | Q136: 1 | R136: 6.32016 | S136: 10.4500424 | T136: =IF(H136="","",IF('3 Irrigation Schedule'!$P$19<O136,'3 Irrigation Schedule'!$P$19,O136)) -> 10 | U136: 10 | V136: =IF(H136="","",U136/'3 Irrigation Schedule'!$M$19) -> 11.11111111
D137: 2020 | E137: June | F137: 2020-06-12 | H137: 90 | I137: Mid Season | J137: 5.2668 | K137: 1.2 | L137: 6.32016 | M137: 1 | N137: =IF(OR('3 Irrigation Schedule'!$C$29="",'3 Irrigation Schedule'!$C$31="",H137=""),"",(('3 Irrigation Schedule'!$C$29-'3 Irrigation Schedule'!$C$31)/100)*1000*M137) -> 140 | O137: 77 | P137: =IF(H137="","",IF(H137=1,N137*(1-'3 Irrigation Schedule'!$C$27),S136-U136)) -> 0.4500424 | Q137: 1 | R137: 6.32016 | S137: 6.7702024 | T137: =IF(H137="","",IF('3 Irrigation Schedule'!$P$19<O137,'3 Irrigation Schedule'!$P$19,O137)) -> 10 | U137: 0 | V137: =IF(H137="","",U137/'3 Irrigation Schedule'!$M$19) -> 0
D138: 2020 | E138: June | F138: 2020-06-13 | H138: 91 | I138: Mid Season | J138: 5.2668 | K138: 1.2 | L138: 6.32016 | M138: 1 | N138: =IF(OR('3 Irrigation Schedule'!$C$29="",'3 Irrigation Schedule'!$C$31="",H138=""),"",(('3 Irrigation Schedule'!$C$29-'3 Irrigation Schedule'!$C$31)/100)*1000*M138) -> 140 | O138: 77 | P138: =IF(H138="","",IF(H138=1,N138*(1-'3 Irrigation Schedule'!$C$27),S137-U137)) -> 6.7702024 | Q138: 1 | R138: 6.32016 | S138: 13.0903624 | T138: =IF(H138="","",IF('3 Irrigation Schedule'!$P$19<O138,'3 Irrigation Schedule'!$P$19,O138)) -> 10 | U138: 10 | V138: =IF(H138="","",U138/'3 Irrigation Schedule'!$M$19) -> 11.11111111
D139: 2020 | E139: June | F139: 2020-06-14 | H139: 92 | I139: Mid Season | J139: 5.2668 | K139: 1.2 | L139: 6.32016 | M139: 1 | N139: =IF(OR('3 Irrigation Schedule'!$C$29="",'3 Irrigation Schedule'!$C$31="",H139=""),"",(('3 Irrigation Schedule'!$C$29-'3 Irrigation Schedule'!$C$31)/100)*1000*M139) -> 140 | O139: 77 | P139: =IF(H139="","",IF(H139=1,N139*(1-'3 Irrigation Schedule'!$C$27),S138-U138)) -> 3.0903624 | Q139: 1 | R139: 6.32016 | S139: 9.4105224 | T139: =IF(H139="","",IF('3 Irrigation Schedule'!$P$19<O139,'3 Irrigation Schedule'!$P$19,O139)) -> 10 | U139: 0 | V139: =IF(H139="","",U139/'3 Irrigation Schedule'!$M$19) -> 0
D140: 2020 | E140: June | F140: 2020-06-15 | H140: 93 | I140: Mid Season | J140: 5.2668 | K140: 1.2 | L140: 6.32016 | M140: 1 | N140: =IF(OR('3 Irrigation Schedule'!$C$29="",'3 Irrigation Schedule'!$C$31="",H140=""),"",(('3 Irrigation Schedule'!$C$29-'3 Irrigation Schedule'!$C$31)/100)*1000*M140) -> 140 | O140: 77 | P140: =IF(H140="","",IF(H140=1,N140*(1-'3 Irrigation Schedule'!$C$27),S139-U139)) -> 9.4105224 | Q140: 1 | R140: 6.32016 | S140: 15.7306824 | T140: =IF(H140="","",IF('3 Irrigation Schedule'!$P$19<O140,'3 Irrigation Schedule'!$P$19,O140)) -> 10 | U140: 10 | V140: =IF(H140="","",U140/'3 Irrigation Schedule'!$M$19) -> 11.11111111
D141: 2020 | E141: June | F141: 2020-06-16 | H141: 94 | I141: Mid Season | J141: 5.2668 | K141: 1.2 | L141: 6.32016 | M141: 1 | N141: =IF(OR('3 Irrigation Schedule'!$C$29="",'3 Irrigation Schedule'!$C$31="",H141=""),"",(('3 Irrigation Schedule'!$C$29-'3 Irrigation Schedule'!$C$31)/100)*1000*M141) -> 140 | O141: 77 | P141: =IF(H141="","",IF(H141=1,N141*(1-'3 Irrigation Schedule'!$C$27),S140-U140)) -> 5.7306824 | Q141: 1 | R141: 6.32016 | S141: 12.0508424 | T141: =IF(H141="","",IF('3 Irrigation Schedule'!$P$19<O141,'3 Irrigation Schedule'!$P$19,O141)) -> 10 | U141: 10 | V141: =IF(H141="","",U141/'3 Irrigation Schedule'!$M$19) -> 11.11111111
D142: 2020 | E142: June | F142: 2020-06-17 | H142: 95 | I142: Mid Season | J142: 5.2668 | K142: 1.2 | L142: 6.32016 | M142: 1 | N142: =IF(OR('3 Irrigation Schedule'!$C$29="",'3 Irrigation Schedule'!$C$31="",H142=""),"",(('3 Irrigation Schedule'!$C$29-'3 Irrigation Schedule'!$C$31)/100)*1000*M142) -> 140 | O142: 77 | P142: =IF(H142="","",IF(H142=1,N142*(1-'3 Irrigation Schedule'!$C$27),S141-U141)) -> 2.0508424 | Q142: 1 | R142: 6.32016 | S142: 8.3710024 | T142: =IF(H142="","",IF('3 Irrigation Schedule'!$P$19<O142,'3 Irrigation Schedule'!$P$19,O142)) -> 10 | U142: 0 | V142: =IF(H142="","",U142/'3 Irrigation Schedule'!$M$19) -> 0
D143: 2020 | E143: June | F143: 2020-06-18 | H143: 96 | I143: Late Season | J143: 5.2668 | K143: 1.176666667 | L143: 6.197268 | M143: 1 | N143: =IF(OR('3 Irrigation Schedule'!$C$29="",'3 Irrigation Schedule'!$C$31="",H143=""),"",(('3 Irrigation Schedule'!$C$29-'3 Irrigation Schedule'!$C$31)/100)*1000*M143) -> 140 | O143: 77 | P143: =IF(H143="","",IF(H143=1,N143*(1-'3 Irrigation Schedule'!$C$27),S142-U142)) -> 8.3710024 | Q143: 1 | R143: 6.197268 | S143: 14.5682704 | T143: =IF(H143="","",IF('3 Irrigation Schedule'!$P$19<O143,'3 Irrigation Schedule'!$P$19,O143)) -> 10 | U143: 10 | V143: =IF(H143="","",U143/'3 Irrigation Schedule'!$M$19) -> 11.11111111
D144: 2020 | E144: June | F144: 2020-06-19 | H144: 97 | I144: Late Season | J144: 5.2668 | K144: 1.153333333 | L144: 6.074376 | M144: 1 | N144: =IF(OR('3 Irrigation Schedule'!$C$29="",'3 Irrigation Schedule'!$C$31="",H144=""),"",(('3 Irrigation Schedule'!$C$29-'3 Irrigation Schedule'!$C$31)/100)*1000*M144) -> 140 | O144: 77 | P144: =IF(H144="","",IF(H144=1,N144*(1-'3 Irrigation Schedule'!$C$27),S143-U143)) -> 4.5682704 | Q144: 1 | R144: 6.074376 | S144: 10.6426464 | T144: =IF(H144="","",IF('3 Irrigation Schedule'!$P$19<O144,'3 Irrigation Schedule'!$P$19,O144)) -> 10 | U144: 10 | V144: =IF(H144="","",U144/'3 Irrigation Schedule'!$M$19) -> 11.11111111
D145: 2020 | E145: June | F145: 2020-06-20 | H145: 98 | I145: Late Season | J145: 5.2668 | K145: 1.13 | L145: 5.951484 | M145: 1 | N145: =IF(OR('3 Irrigation Schedule'!$C$29="",'3 Irrigation Schedule'!$C$31="",H145=""),"",(('3 Irrigation Schedule'!$C$29-'3 Irrigation Schedule'!$C$31)/100)*1000*M145) -> 140 | O145: 77 | P145: =IF(H145="","",IF(H145=1,N145*(1-'3 Irrigation Schedule'!$C$27),S144-U144)) -> 0.6426464 | Q145: 1 | R145: 5.951484 | S145: 6.5941304 | T145: =IF(H145="","",IF('3 Irrigation Schedule'!$P$19<O145,'3 Irrigation Schedule'!$P$19,O145)) -> 10 | U145: 0 | V145: =IF(H145="","",U145/'3 Irrigation Schedule'!$M$19) -> 0
D146: 2020 | E146: June | F146: 2020-06-21 | H146: 99 | I146: Late Season | J146: 5.2668 | K146: 1.106666667 | L146: 5.828592 | M146: 1 | N146: =IF(OR('3 Irrigation Schedule'!$C$29="",'3 Irrigation Schedule'!$C$31="",H146=""),"",(('3 Irrigation Schedule'!$C$29-'3 Irrigation Schedule'!$C$31)/100)*1000*M146) -> 140 | O146: 77 | P146: =IF(H146="","",IF(H146=1,N146*(1-'3 Irrigation Schedule'!$C$27),S145-U145)) -> 6.5941304 | Q146: 1 | R146: 5.828592 | S146: 12.4227224 | T146: =IF(H146="","",IF('3 Irrigation Schedule'!$P$19<O146,'3 Irrigation Schedule'!$P$19,O146)) -> 10 | U146: 10 | V146: =IF(H146="","",U146/'3 Irrigation Schedule'!$M$19) -> 11.11111111
D147: 2020 | E147: June | F147: 2020-06-22 | H147: 100 | I147: Late Season | J147: 5.2668 | K147: 1.083333333 | L147: 5.7057 | M147: 1 | N147: =IF(OR('3 Irrigation Schedule'!$C$29="",'3 Irrigation Schedule'!$C$31="",H147=""),"",(('3 Irrigation Schedule'!$C$29-'3 Irrigation Schedule'!$C$31)/100)*1000*M147) -> 140 | O147: 77 | P147: =IF(H147="","",IF(H147=1,N147*(1-'3 Irrigation Schedule'!$C$27),S146-U146)) -> 2.4227224 | Q147: 1 | R147: 5.7057 | S147: 8.1284224 | T147: =IF(H147="","",IF('3 Irrigation Schedule'!$P$19<O147,'3 Irrigation Schedule'!$P$19,O147)) -> 10 | U147: 0 | V147: =IF(H147="","",U147/'3 Irrigation Schedule'!$M$19) -> 0
D148: 2020 | E148: June | F148: 2020-06-23 | H148: 101 | I148: Late Season | J148: 5.2668 | K148: 1.06 | L148: 5.582808 | M148: 1 | N148: =IF(OR('3 Irrigation Schedule'!$C$29="",'3 Irrigation Schedule'!$C$31="",H148=""),"",(('3 Irrigation Schedule'!$C$29-'3 Irrigation Schedule'!$C$31)/100)*1000*M148) -> 140 | O148: 77 | P148: =IF(H148="","",IF(H148=1,N148*(1-'3 Irrigation Schedule'!$C$27),S147-U147)) -> 8.1284224 | Q148: 1 | R148: 5.582808 | S148: 13.7112304 | T148: =IF(H148="","",IF('3 Irrigation Schedule'!$P$19<O148,'3 Irrigation Schedule'!$P$19,O148)) -> 10 | U148: 10 | V148: =IF(H148="","",U148/'3 Irrigation Schedule'!$M$19) -> 11.11111111
D149: 2020 | E149: June | F149: 2020-06-24 | H149: 102 | I149: Late Season | J149: 5.2668 | K149: 1.036666667 | L149: 5.459916 | M149: 1 | N149: =IF(OR('3 Irrigation Schedule'!$C$29="",'3 Irrigation Schedule'!$C$31="",H149=""),"",(('3 Irrigation Schedule'!$C$29-'3 Irrigation Schedule'!$C$31)/100)*1000*M149) -> 140 | O149: 77 | P149: =IF(H149="","",IF(H149=1,N149*(1-'3 Irrigation Schedule'!$C$27),S148-U148)) -> 3.7112304 | Q149: 1 | R149: 5.459916 | S149: 9.1711464 | T149: =IF(H149="","",IF('3 Irrigation Schedule'!$P$19<O149,'3 Irrigation Schedule'!$P$19,O149)) -> 10 | U149: 0 | V149: =IF(H149="","",U149/'3 Irrigation Schedule'!$M$19) -> 0
D150: 2020 | E150: June | F150: 2020-06-25 | H150: 103 | I150: Late Season | J150: 5.2668 | K150: 1.013333333 | L150: 5.337024 | M150: 1 | N150: =IF(OR('3 Irrigation Schedule'!$C$29="",'3 Irrigation Schedule'!$C$31="",H150=""),"",(('3 Irrigation Schedule'!$C$29-'3 Irrigation Schedule'!$C$31)/100)*1000*M150) -> 140 | O150: 77 | P150: =IF(H150="","",IF(H150=1,N150*(1-'3 Irrigation Schedule'!$C$27),S149-U149)) -> 9.1711464 | Q150: 1 | R150: 5.337024 | S150: 14.5081704 | T150: =IF(H150="","",IF('3 Irrigation Schedule'!$P$19<O150,'3 Irrigation Schedule'!$P$19,O150)) -> 10 | U150: 10 | V150: =IF(H150="","",U150/'3 Irrigation Schedule'!$M$19) -> 11.11111111
D151: 2020 | E151: June | F151: 2020-06-26 | H151: 104 | I151: Late Season | J151: 5.2668 | K151: 0.99 | L151: 5.214132 | M151: 1 | N151: =IF(OR('3 Irrigation Schedule'!$C$29="",'3 Irrigation Schedule'!$C$31="",H151=""),"",(('3 Irrigation Schedule'!$C$29-'3 Irrigation Schedule'!$C$31)/100)*1000*M151) -> 140 | O151: 77 | P151: =IF(H151="","",IF(H151=1,N151*(1-'3 Irrigation Schedule'!$C$27),S150-U150)) -> 4.5081704 | Q151: 1 | R151: 5.214132 | S151: 9.7223024 | T151: =IF(H151="","",IF('3 Irrigation Schedule'!$P$19<O151,'3 Irrigation Schedule'!$P$19,O151)) -> 10 | U151: 0 | V151: =IF(H151="","",U151/'3 Irrigation Schedule'!$M$19) -> 0
D152: 2020 | E152: June | F152: 2020-06-27 | H152: 105 | I152: Late Season | J152: 5.2668 | K152: 0.9666666667 | L152: 5.09124 | M152: 1 | N152: =IF(OR('3 Irrigation Schedule'!$C$29="",'3 Irrigation Schedule'!$C$31="",H152=""),"",(('3 Irrigation Schedule'!$C$29-'3 Irrigation Schedule'!$C$31)/100)*1000*M152) -> 140 | O152: 77 | P152: =IF(H152="","",IF(H152=1,N152*(1-'3 Irrigation Schedule'!$C$27),S151-U151)) -> 9.7223024 | Q152: 1 | R152: 5.09124 | S152: 14.8135424 | T152: =IF(H152="","",IF('3 Irrigation Schedule'!$P$19<O152,'3 Irrigation Schedule'!$P$19,O152)) -> 10 | U152: 10 | V152: =IF(H152="","",U152/'3 Irrigation Schedule'!$M$19) -> 11.11111111
D153: 2020 | E153: June | F153: 2020-06-28 | H153: 106 | I153: Late Season | J153: 5.2668 | K153: 0.9433333333 | L153: 4.968348 | M153: 1 | N153: =IF(OR('3 Irrigation Schedule'!$C$29="",'3 Irrigation Schedule'!$C$31="",H153=""),"",(('3 Irrigation Schedule'!$C$29-'3 Irrigation Schedule'!$C$31)/100)*1000*M153) -> 140 | O153: 77 | P153: =IF(H153="","",IF(H153=1,N153*(1-'3 Irrigation Schedule'!$C$27),S152-U152)) -> 4.8135424 | Q153: 1 | R153: 4.968348 | S153: 9.7818904 | T153: =IF(H153="","",IF('3 Irrigation Schedule'!$P$19<O153,'3 Irrigation Schedule'!$P$19,O153)) -> 10 | U153: 0 | V153: =IF(H153="","",U153/'3 Irrigation Schedule'!$M$19) -> 0
D154: 2020 | E154: June | F154: 2020-06-29 | H154: 107 | I154: Late Season | J154: 5.2668 | K154: 0.92 | L154: 4.845456 | M154: 1 | N154: =IF(OR('3 Irrigation Schedule'!$C$29="",'3 Irrigation Schedule'!$C$31="",H154=""),"",(('3 Irrigation Schedule'!$C$29-'3 Irrigation Schedule'!$C$31)/100)*1000*M154) -> 140 | O154: 77 | P154: =IF(H154="","",IF(H154=1,N154*(1-'3 Irrigation Schedule'!$C$27),S153-U153)) -> 9.7818904 | Q154: 1 | R154: 4.845456 | S154: 14.6273464 | T154: =IF(H154="","",IF('3 Irrigation Schedule'!$P$19<O154,'3 Irrigation Schedule'!$P$19,O154)) -> 10 | U154: 10 | V154: =IF(H154="","",U154/'3 Irrigation Schedule'!$M$19) -> 11.11111111
D155: 2020 | E155: June | F155: 2020-06-30 | H155: 108 | I155: Late Season | J155: 5.2668 | K155: 0.8966666667 | L155: 4.722564 | M155: 1 | N155: =IF(OR('3 Irrigation Schedule'!$C$29="",'3 Irrigation Schedule'!$C$31="",H155=""),"",(('3 Irrigation Schedule'!$C$29-'3 Irrigation Schedule'!$C$31)/100)*1000*M155) -> 140 | O155: 77 | P155: =IF(H155="","",IF(H155=1,N155*(1-'3 Irrigation Schedule'!$C$27),S154-U154)) -> 4.6273464 | Q155: 1 | R155: 4.722564 | S155: 9.3499104 | T155: =IF(H155="","",IF('3 Irrigation Schedule'!$P$19<O155,'3 Irrigation Schedule'!$P$19,O155)) -> 10 | U155: 0 | V155: =IF(H155="","",U155/'3 Irrigation Schedule'!$M$19) -> 0
D156: 2020 | E156: July | F156: 2020-07-01 | H156: 109 | I156: Late Season | J156: 5.2024 | K156: 0.8733333333 | L156: 4.543429333 | M156: 1 | N156: =IF(OR('3 Irrigation Schedule'!$C$29="",'3 Irrigation Schedule'!$C$31="",H156=""),"",(('3 Irrigation Schedule'!$C$29-'3 Irrigation Schedule'!$C$31)/100)*1000*M156) -> 140 | O156: 77 | P156: =IF(H156="","",IF(H156=1,N156*(1-'3 Irrigation Schedule'!$C$27),S155-U155)) -> 9.3499104 | Q156: 1 | R156: 4.543429333 | S156: 13.89333973 | T156: =IF(H156="","",IF('3 Irrigation Schedule'!$P$19<O156,'3 Irrigation Schedule'!$P$19,O156)) -> 10 | U156: 10 | V156: =IF(H156="","",U156/'3 Irrigation Schedule'!$M$19) -> 11.11111111
D157: 2020 | E157: July | F157: 2020-07-02 | H157: 110 | I157: Late Season | J157: 5.2024 | K157: 0.85 | L157: 4.42204 | M157: 1 | N157: =IF(OR('3 Irrigation Schedule'!$C$29="",'3 Irrigation Schedule'!$C$31="",H157=""),"",(('3 Irrigation Schedule'!$C$29-'3 Irrigation Schedule'!$C$31)/100)*1000*M157) -> 140 | O157: 77 | P157: =IF(H157="","",IF(H157=1,N157*(1-'3 Irrigation Schedule'!$C$27),S156-U156)) -> 3.893339733 | Q157: 1 | R157: 4.42204 | S157: 8.315379733 | T157: =IF(H157="","",IF('3 Irrigation Schedule'!$P$19<O157,'3 Irrigation Schedule'!$P$19,O157)) -> 10 | U157: 0 | V157: =IF(H157="","",U157/'3 Irrigation Schedule'!$M$19) -> 0
D158: 2020 | E158: July | F158: 2020-07-03 | H158: 111 | I158: Late Season | J158: 5.2024 | K158: 0.8266666667 | L158: 4.300650667 | M158: 1 | N158: =IF(OR('3 Irrigation Schedule'!$C$29="",'3 Irrigation Schedule'!$C$31="",H158=""),"",(('3 Irrigation Schedule'!$C$29-'3 Irrigation Schedule'!$C$31)/100)*1000*M158) -> 140 | O158: 77 | P158: =IF(H158="","",IF(H158=1,N158*(1-'3 Irrigation Schedule'!$C$27),S157-U157)) -> 8.315379733 | Q158: 1 | R158: 4.300650667 | S158: 12.6160304 | T158: =IF(H158="","",IF('3 Irrigation Schedule'!$P$19<O158,'3 Irrigation Schedule'!$P$19,O158)) -> 10 | U158: 10 | V158: =IF(H158="","",U158/'3 Irrigation Schedule'!$M$19) -> 11.11111111
D159: 2020 | E159: July | F159: 2020-07-04 | H159: 112 | I159: Late Season | J159: 5.2024 | K159: 0.8033333333 | L159: 4.179261333 | M159: 1 | N159: =IF(OR('3 Irrigation Schedule'!$C$29="",'3 Irrigation Schedule'!$C$31="",H159=""),"",(('3 Irrigation Schedule'!$C$29-'3 Irrigation Schedule'!$C$31)/100)*1000*M159) -> 140 | O159: 77 | P159: =IF(H159="","",IF(H159=1,N159*(1-'3 Irrigation Schedule'!$C$27),S158-U158)) -> 2.6160304 | Q159: 1 | R159: 4.179261333 | S159: 6.795291733 | T159: =IF(H159="","",IF('3 Irrigation Schedule'!$P$19<O159,'3 Irrigation Schedule'!$P$19,O159)) -> 10 | U159: 0 | V159: =IF(H159="","",U159/'3 Irrigation Schedule'!$M$19) -> 0
D160: 2020 | E160: July | F160: 2020-07-05 | H160: 113 | I160: Late Season | J160: 5.2024 | K160: 0.78 | L160: 4.057872 | M160: 1 | N160: =IF(OR('3 Irrigation Schedule'!$C$29="",'3 Irrigation Schedule'!$C$31="",H160=""),"",(('3 Irrigation Schedule'!$C$29-'3 Irrigation Schedule'!$C$31)/100)*1000*M160) -> 140 | O160: 77 | P160: =IF(H160="","",IF(H160=1,N160*(1-'3 Irrigation Schedule'!$C$27),S159-U159)) -> 6.795291733 | Q160: 1 | R160: 4.057872 | S160: 10.85316373 | T160: =IF(H160="","",IF('3 Irrigation Schedule'!$P$19<O160,'3 Irrigation Schedule'!$P$19,O160)) -> 10 | U160: 10 | V160: =IF(H160="","",U160/'3 Irrigation Schedule'!$M$19) -> 11.11111111
D161: 2020 | E161: July | F161: 2020-07-06 | H161: 114 | I161: Late Season | J161: 5.2024 | K161: 0.7566666667 | L161: 3.936482667 | M161: 1 | N161: =IF(OR('3 Irrigation Schedule'!$C$29="",'3 Irrigation Schedule'!$C$31="",H161=""),"",(('3 Irrigation Schedule'!$C$29-'3 Irrigation Schedule'!$C$31)/100)*1000*M161) -> 140 | O161: 77 | P161: =IF(H161="","",IF(H161=1,N161*(1-'3 Irrigation Schedule'!$C$27),S160-U160)) -> 0.8531637333 | Q161: 1 | R161: 3.936482667 | S161: 4.7896464 | T161: =IF(H161="","",IF('3 Irrigation Schedule'!$P$19<O161,'3 Irrigation Schedule'!$P$19,O161)) -> 10 | U161: 0 | V161: =IF(H161="","",U161/'3 Irrigation Schedule'!$M$19) -> 0
D162: =IFERROR(TEXT(DATE(YEAR($F162),MONTH($F162),1),$D$7&$D$4),"") -> 2020 | E162: =IFERROR(TEXT(DATE(YEAR($F162),MONTH($F162),1),$D$7&$D$5),"") -> July | F162: 2020-07-07 | H162: 115 | I162: =IF(H162="","",IF(H162<=$I$27,"Initial",IF(AND(H162>$I$27,H162<=$I$28),"Development",IF(AND(H162>$I$28,H162<=$I$29),"Mid Season","Late Season")))) -> Late Season | J162: =IFERROR(VLOOKUP($E162,$B$19:$C$30,2,FALSE),"") -> 5.2024 | K162: =IF(H162="","",IF(H162<=$I$27,$L$27,IF(AND(H162>$I$27,H162<=$I$28),$L$27+((H162-$I$27)/$H$28)*($L$29-$L$27),IF(AND(H162>$I$28,H162<=$I$29),$L$29,$L$29+((H162-$I$29)/$H$30)*($L$30-$L$29))))) -> 0.7333333333 | L162: 3.815093333 | M162: 1 | N162: =IF(OR('3 Irrigation Schedule'!$C$29="",'3 Irrigation Schedule'!$C$31="",H162=""),"",(('3 Irrigation Schedule'!$C$29-'3 Irrigation Schedule'!$C$31)/100)*1000*M162) -> 140 | O162: 77 | P162: =IF(H162="","",IF(H162=1,N162*(1-'3 Irrigation Schedule'!$C$27),S161-U161)) -> 4.7896464 | Q162: 1 | R162: 3.815093333 | S162: 8.604739733 | T162: =IF(H162="","",IF('3 Irrigation Schedule'!$P$19<O162,'3 Irrigation Schedule'!$P$19,O162)) -> 10 | U162: 0 | V162: =IF(H162="","",U162/'3 Irrigation Schedule'!$M$19) -> 0
D163: 2020 | E163: July | F163: =IFERROR(IF(F162+1<=$N$7, F162+1,""),"") -> 2020-07-08 | H163: =IFERROR(IF(OR($F163-$J$27+1<=0,$F163>$K$30),"",$F163-$J$27+1),"") -> 116 | I163: Late Season | J163: 5.2024 | K163: 0.71 | L163: =IFERROR((J163*K163),0) -> 3.693704 | M163: =IF(H163="","",IF(OR(H163=1,H163<$I$28),$M$27+(($M$28-$M$27)*((H163-1)/($I$28-1))),$M$28)) -> 1 | N163: =IF(OR('3 Irrigation Schedule'!$C$29="",'3 Irrigation Schedule'!$C$31="",H163=""),"",(('3 Irrigation Schedule'!$C$29-'3 Irrigation Schedule'!$C$31)/100)*1000*M163) -> 140 | O163: =IF(H163="","",N163*$N$27) -> 77 | P163: =IF(H163="","",IF(H163=1,N163*(1-'3 Irrigation Schedule'!$C$27),S162-U162)) -> 8.604739733 | Q163: 1 | R163: 3.693704 | S163: 12.29844373 | T163: =IF(H163="","",IF('3 Irrigation Schedule'!$P$19<O163,'3 Irrigation Schedule'!$P$19,O163)) -> 10 | U163: =IF(H163="","",IF(T163<=S163,T163,0)) -> 10 | V163: =IF(H163="","",U163/'3 Irrigation Schedule'!$M$19) -> 11.11111111
D164: 2020 | E164: July | F164: 2020-07-09 | H164: 117 | I164: Late Season | J164: 5.2024 | K164: 0.6866666667 | L164: 3.572314667 | M164: 1 | N164: =IF(OR('3 Irrigation Schedule'!$C$29="",'3 Irrigation Schedule'!$C$31="",H164=""),"",(('3 Irrigation Schedule'!$C$29-'3 Irrigation Schedule'!$C$31)/100)*1000*M164) -> 140 | O164: 77 | P164: =IF(H164="","",IF(H164=1,N164*(1-'3 Irrigation Schedule'!$C$27),S163-U163)) -> 2.298443733 | Q164: 1 | R164: 3.572314667 | S164: 5.8707584 | T164: =IF(H164="","",IF('3 Irrigation Schedule'!$P$19<O164,'3 Irrigation Schedule'!$P$19,O164)) -> 10 | U164: 0 | V164: =IF(H164="","",U164/'3 Irrigation Schedule'!$M$19) -> 0
D165: 2020 | E165: July | F165: 2020-07-10 | H165: 118 | I165: Late Season | J165: 5.2024 | K165: 0.6633333333 | L165: 3.450925333 | M165: 1 | N165: =IF(OR('3 Irrigation Schedule'!$C$29="",'3 Irrigation Schedule'!$C$31="",H165=""),"",(('3 Irrigation Schedule'!$C$29-'3 Irrigation Schedule'!$C$31)/100)*1000*M165) -> 140 | O165: 77 | P165: =IF(H165="","",IF(H165=1,N165*(1-'3 Irrigation Schedule'!$C$27),S164-U164)) -> 5.8707584 | Q165: 1 | R165: 3.450925333 | S165: 9.321683733 | T165: =IF(H165="","",IF('3 Irrigation Schedule'!$P$19<O165,'3 Irrigation Schedule'!$P$19,O165)) -> 10 | U165: 0 | V165: =IF(H165="","",U165/'3 Irrigation Schedule'!$M$19) -> 0
D166: 2020 | E166: July | F166: 2020-07-11 | H166: 119 | I166: Late Season | J166: 5.2024 | K166: 0.64 | L166: 3.329536 | M166: 1 | N166: =IF(OR('3 Irrigation Schedule'!$C$29="",'3 Irrigation Schedule'!$C$31="",H166=""),"",(('3 Irrigation Schedule'!$C$29-'3 Irrigation Schedule'!$C$31)/100)*1000*M166) -> 140 | O166: 77 | P166: =IF(H166="","",IF(H166=1,N166*(1-'3 Irrigation Schedule'!$C$27),S165-U165)) -> 9.321683733 | Q166: 1 | R166: 3.329536 | S166: 12.65121973 | T166: =IF(H166="","",IF('3 Irrigation Schedule'!$P$19<O166,'3 Irrigation Schedule'!$P$19,O166)) -> 10 | U166: 10 | V166: =IF(H166="","",U166/'3 Irrigation Schedule'!$M$19) -> 11.11111111
D167: 2020 | E167: July | F167: 2020-07-12 | H167: 120 | I167: Late Season | J167: 5.2024 | K167: 0.6166666667 | L167: 3.208146667 | M167: 1 | N167: =IF(OR('3 Irrigation Schedule'!$C$29="",'3 Irrigation Schedule'!$C$31="",H167=""),"",(('3 Irrigation Schedule'!$C$29-'3 Irrigation Schedule'!$C$31)/100)*1000*M167) -> 140 | O167: 77 | P167: =IF(H167="","",IF(H167=1,N167*(1-'3 Irrigation Schedule'!$C$27),S166-U166)) -> 2.651219733 | Q167: 1 | R167: 3.208146667 | S167: 5.8593664 | T167: =IF(H167="","",IF('3 Irrigation Schedule'!$P$19<O167,'3 Irrigation Schedule'!$P$19,O167)) -> 10 | U167: 0 | V167: =IF(H167="","",U167/'3 Irrigation Schedule'!$M$19) -> 0
D168: 2020 | E168: July | F168: 2020-07-13 | H168: 121 | I168: Late Season | J168: 5.2024 | K168: 0.5933333333 | L168: 3.086757333 | M168: 1 | N168: =IF(OR('3 Irrigation Schedule'!$C$29="",'3 Irrigation Schedule'!$C$31="",H168=""),"",(('3 Irrigation Schedule'!$C$29-'3 Irrigation Schedule'!$C$31)/100)*1000*M168) -> 140 | O168: 77 | P168: =IF(H168="","",IF(H168=1,N168*(1-'3 Irrigation Schedule'!$C$27),S167-U167)) -> 5.8593664 | Q168: 1 | R168: 3.086757333 | S168: 8.946123733 | T168: =IF(H168="","",IF('3 Irrigation Schedule'!$P$19<O168,'3 Irrigation Schedule'!$P$19,O168)) -> 10 | U168: 0 | V168: =IF(H168="","",U168/'3 Irrigation Schedule'!$M$19) -> 0
D169: 2020 | E169: July | F169: 2020-07-14 | H169: 122 | I169: Late Season | J169: 5.2024 | K169: 0.57 | L169: 2.965368 | M169: 1 | N169: =IF(OR('3 Irrigation Schedule'!$C$29="",'3 Irrigation Schedule'!$C$31="",H169=""),"",(('3 Irrigation Schedule'!$C$29-'3 Irrigation Schedule'!$C$31)/100)*1000*M169) -> 140 | O169: 77 | P169: =IF(H169="","",IF(H169=1,N169*(1-'3 Irrigation Schedule'!$C$27),S168-U168)) -> 8.946123733 | Q169: 1 | R169: 2.965368 | S169: 11.91149173 | T169: =IF(H169="","",IF('3 Irrigation Schedule'!$P$19<O169,'3 Irrigation Schedule'!$P$19,O169)) -> 10 | U169: 10 | V169: =IF(H169="","",U169/'3 Irrigation Schedule'!$M$19) -> 11.11111111
D170: 2020 | E170: July | F170: 2020-07-15 | H170: 123 | I170: Late Season | J170: 5.2024 | K170: 0.5466666667 | L170: 2.843978667 | M170: 1 | N170: =IF(OR('3 Irrigation Schedule'!$C$29="",'3 Irrigation Schedule'!$C$31="",H170=""),"",(('3 Irrigation Schedule'!$C$29-'3 Irrigation Schedule'!$C$31)/100)*1000*M170) -> 140 | O170: 77 | P170: =IF(H170="","",IF(H170=1,N170*(1-'3 Irrigation Schedule'!$C$27),S169-U169)) -> 1.911491733 | Q170: 1 | R170: 2.843978667 | S170: 4.7554704 | T170: =IF(H170="","",IF('3 Irrigation Schedule'!$P$19<O170,'3 Irrigation Schedule'!$P$19,O170)) -> 10 | U170: 0 | V170: =IF(H170="","",U170/'3 Irrigation Schedule'!$M$19) -> 0
D171: 2020 | E171: July | F171: 2020-07-16 | H171: 124 | I171: Late Season | J171: 5.2024 | K171: 0.5233333333 | L171: 2.722589333 | M171: 1 | N171: =IF(OR('3 Irrigation Schedule'!$C$29="",'3 Irrigation Schedule'!$C$31="",H171=""),"",(('3 Irrigation Schedule'!$C$29-'3 Irrigation Schedule'!$C$31)/100)*1000*M171) -> 140 | O171: 77 | P171: =IF(H171="","",IF(H171=1,N171*(1-'3 Irrigation Schedule'!$C$27),S170-U170)) -> 4.7554704 | Q171: 1 | R171: 2.722589333 | S171: 7.478059733 | T171: =IF(H171="","",IF('3 Irrigation Schedule'!$P$19<O171,'3 Irrigation Schedule'!$P$19,O171)) -> 10 | U171: 0 | V171: =IF(H171="","",U171/'3 Irrigation Schedule'!$M$19) -> 0
D172: 2020 | E172: July | F172: 2020-07-17 | H172: 125 | I172: Late Season | J172: 5.2024 | K172: 0.5 | L172: 2.6012 | M172: 1 | N172: =IF(OR('3 Irrigation Schedule'!$C$29="",'3 Irrigation Schedule'!$C$31="",H172=""),"",(('3 Irrigation Schedule'!$C$29-'3 Irrigation Schedule'!$C$31)/100)*1000*M172) -> 140 | O172: 77 | P172: =IF(H172="","",IF(H172=1,N172*(1-'3 Irrigation Schedule'!$C$27),S171-U171)) -> 7.478059733 | Q172: 1 | R172: 2.6012 | S172: 10.07925973 | T172: =IF(H172="","",IF('3 Irrigation Schedule'!$P$19<O172,'3 Irrigation Schedule'!$P$19,O172)) -> 10 | U172: 10 | V172: =IF(H172="","",U172/'3 Irrigation Schedule'!$M$19) -> 11.11111111
D173: 2020 | E173: July | F173: 2020-07-18 | J173: 5.2024 | L173: 0 | N173: =IF(OR('3 Irrigation Schedule'!$C$29="",'3 Irrigation Schedule'!$C$31="",H173=""),"",(('3 Irrigation Schedule'!$C$29-'3 Irrigation Schedule'!$C$31)/100)*1000*M173) ->  | P173: =IF(H173="","",IF(H173=1,N173*(1-'3 Irrigation Schedule'!$C$27),S172-U172)) ->  | T173: =IF(H173="","",IF('3 Irrigation Schedule'!$P$19<O173,'3 Irrigation Schedule'!$P$19,O173)) ->  | V173: =IF(H173="","",U173/'3 Irrigation Schedule'!$M$19) -> 
D174: 2020 | E174: July | F174: 2020-07-19 | J174: 5.2024 | L174: 0 | N174: =IF(OR('3 Irrigation Schedule'!$C$29="",'3 Irrigation Schedule'!$C$31="",H174=""),"",(('3 Irrigation Schedule'!$C$29-'3 Irrigation Schedule'!$C$31)/100)*1000*M174) ->  | P174: =IF(H174="","",IF(H174=1,N174*(1-'3 Irrigation Schedule'!$C$27),S173-U173)) ->  | T174: =IF(H174="","",IF('3 Irrigation Schedule'!$P$19<O174,'3 Irrigation Schedule'!$P$19,O174)) ->  | V174: =IF(H174="","",U174/'3 Irrigation Schedule'!$M$19) -> 
D175: 2020 | E175: July | F175: 2020-07-20 | J175: 5.2024 | L175: 0 | N175: =IF(OR('3 Irrigation Schedule'!$C$29="",'3 Irrigation Schedule'!$C$31="",H175=""),"",(('3 Irrigation Schedule'!$C$29-'3 Irrigation Schedule'!$C$31)/100)*1000*M175) ->  | P175: =IF(H175="","",IF(H175=1,N175*(1-'3 Irrigation Schedule'!$C$27),S174-U174)) ->  | T175: =IF(H175="","",IF('3 Irrigation Schedule'!$P$19<O175,'3 Irrigation Schedule'!$P$19,O175)) ->  | V175: =IF(H175="","",U175/'3 Irrigation Schedule'!$M$19) -> 
D176: 2020 | E176: July | F176: 2020-07-21 | J176: 5.2024 | L176: 0 | N176: =IF(OR('3 Irrigation Schedule'!$C$29="",'3 Irrigation Schedule'!$C$31="",H176=""),"",(('3 Irrigation Schedule'!$C$29-'3 Irrigation Schedule'!$C$31)/100)*1000*M176) ->  | P176: =IF(H176="","",IF(H176=1,N176*(1-'3 Irrigation Schedule'!$C$27),S175-U175)) ->  | T176: =IF(H176="","",IF('3 Irrigation Schedule'!$P$19<O176,'3 Irrigation Schedule'!$P$19,O176)) ->  | V176: =IF(H176="","",U176/'3 Irrigation Schedule'!$M$19) -> 
D177: 2020 | E177: July | F177: 2020-07-22 | J177: 5.2024 | L177: 0 | N177: =IF(OR('3 Irrigation Schedule'!$C$29="",'3 Irrigation Schedule'!$C$31="",H177=""),"",(('3 Irrigation Schedule'!$C$29-'3 Irrigation Schedule'!$C$31)/100)*1000*M177) ->  | P177: =IF(H177="","",IF(H177=1,N177*(1-'3 Irrigation Schedule'!$C$27),S176-U176)) ->  | Q177: =IF(H177="","",IF(P177>O177,(N177-P177)/(N177-O177),1)) ->  | R177: =IF(H177="","",L177*Q177) ->  | S177: =IF(H177="","",P177+R177) ->  | T177: =IF(H177="","",IF('3 Irrigation Schedule'!$P$19<O177,'3 Irrigation Schedule'!$P$19,O177)) ->  | V177: =IF(H177="","",U177/'3 Irrigation Schedule'!$M$19) -> 
D178: 2020 | E178: July | F178: 2020-07-23 | J178: 5.2024 | L178: 0 | N178: =IF(OR('3 Irrigation Schedule'!$C$29="",'3 Irrigation Schedule'!$C$31="",H178=""),"",(('3 Irrigation Schedule'!$C$29-'3 Irrigation Schedule'!$C$31)/100)*1000*M178) ->  | P178: =IF(H178="","",IF(H178=1,N178*(1-'3 Irrigation Schedule'!$C$27),S177-U177)) ->  | T178: =IF(H178="","",IF('3 Irrigation Schedule'!$P$19<O178,'3 Irrigation Schedule'!$P$19,O178)) ->  | V178: =IF(H178="","",U178/'3 Irrigation Schedule'!$M$19) -> 
D179: 2020 | E179: July | F179: 2020-07-24 | J179: 5.2024 | L179: 0 | N179: =IF(OR('3 Irrigation Schedule'!$C$29="",'3 Irrigation Schedule'!$C$31="",H179=""),"",(('3 Irrigation Schedule'!$C$29-'3 Irrigation Schedule'!$C$31)/100)*1000*M179) ->  | P179: =IF(H179="","",IF(H179=1,N179*(1-'3 Irrigation Schedule'!$C$27),S178-U178)) ->  | T179: =IF(H179="","",IF('3 Irrigation Schedule'!$P$19<O179,'3 Irrigation Schedule'!$P$19,O179)) ->  | V179: =IF(H179="","",U179/'3 Irrigation Schedule'!$M$19) -> 
D180: 2020 | E180: July | F180: 2020-07-25 | J180: 5.2024 | L180: 0 | N180: =IF(OR('3 Irrigation Schedule'!$C$29="",'3 Irrigation Schedule'!$C$31="",H180=""),"",(('3 Irrigation Schedule'!$C$29-'3 Irrigation Schedule'!$C$31)/100)*1000*M180) ->  | P180: =IF(H180="","",IF(H180=1,N180*(1-'3 Irrigation Schedule'!$C$27),S179-U179)) ->  | T180: =IF(H180="","",IF('3 Irrigation Schedule'!$P$19<O180,'3 Irrigation Schedule'!$P$19,O180)) ->  | V180: =IF(H180="","",U180/'3 Irrigation Schedule'!$M$19) -> 
D181: 2020 | E181: July | F181: 2020-07-26 | J181: 5.2024 | L181: 0 | N181: =IF(OR('3 Irrigation Schedule'!$C$29="",'3 Irrigation Schedule'!$C$31="",H181=""),"",(('3 Irrigation Schedule'!$C$29-'3 Irrigation Schedule'!$C$31)/100)*1000*M181) ->  | P181: =IF(H181="","",IF(H181=1,N181*(1-'3 Irrigation Schedule'!$C$27),S180-U180)) ->  | T181: =IF(H181="","",IF('3 Irrigation Schedule'!$P$19<O181,'3 Irrigation Schedule'!$P$19,O181)) ->  | V181: =IF(H181="","",U181/'3 Irrigation Schedule'!$M$19) -> 
D182: 2020 | E182: July | F182: 2020-07-27 | J182: 5.2024 | L182: 0 | N182: =IF(OR('3 Irrigation Schedule'!$C$29="",'3 Irrigation Schedule'!$C$31="",H182=""),"",(('3 Irrigation Schedule'!$C$29-'3 Irrigation Schedule'!$C$31)/100)*1000*M182) ->  | P182: =IF(H182="","",IF(H182=1,N182*(1-'3 Irrigation Schedule'!$C$27),S181-U181)) ->  | T182: =IF(H182="","",IF('3 Irrigation Schedule'!$P$19<O182,'3 Irrigation Schedule'!$P$19,O182)) ->  | V182: =IF(H182="","",U182/'3 Irrigation Schedule'!$M$19) -> 
D183: 2020 | E183: July | F183: 2020-07-28 | J183: 5.2024 | L183: 0 | N183: =IF(OR('3 Irrigation Schedule'!$C$29="",'3 Irrigation Schedule'!$C$31="",H183=""),"",(('3 Irrigation Schedule'!$C$29-'3 Irrigation Schedule'!$C$31)/100)*1000*M183) ->  | P183: =IF(H183="","",IF(H183=1,N183*(1-'3 Irrigation Schedule'!$C$27),S182-U182)) ->  | T183: =IF(H183="","",IF('3 Irrigation Schedule'!$P$19<O183,'3 Irrigation Schedule'!$P$19,O183)) ->  | V183: =IF(H183="","",U183/'3 Irrigation Schedule'!$M$19) -> 
D184: 2020 | E184: July | F184: 2020-07-29 | J184: 5.2024 | L184: 0 | N184: =IF(OR('3 Irrigation Schedule'!$C$29="",'3 Irrigation Schedule'!$C$31="",H184=""),"",(('3 Irrigation Schedule'!$C$29-'3 Irrigation Schedule'!$C$31)/100)*1000*M184) ->  | P184: =IF(H184="","",IF(H184=1,N184*(1-'3 Irrigation Schedule'!$C$27),S183-U183)) ->  | T184: =IF(H184="","",IF('3 Irrigation Schedule'!$P$19<O184,'3 Irrigation Schedule'!$P$19,O184)) ->  | V184: =IF(H184="","",U184/'3 Irrigation Schedule'!$M$19) -> 
D185: 2020 | E185: July | F185: 2020-07-30 | J185: 5.2024 | L185: 0 | N185: =IF(OR('3 Irrigation Schedule'!$C$29="",'3 Irrigation Schedule'!$C$31="",H185=""),"",(('3 Irrigation Schedule'!$C$29-'3 Irrigation Schedule'!$C$31)/100)*1000*M185) ->  | P185: =IF(H185="","",IF(H185=1,N185*(1-'3 Irrigation Schedule'!$C$27),S184-U184)) ->  | T185: =IF(H185="","",IF('3 Irrigation Schedule'!$P$19<O185,'3 Irrigation Schedule'!$P$19,O185)) ->  | V185: =IF(H185="","",U185/'3 Irrigation Schedule'!$M$19) -> 
D186: 2020 | E186: July | F186: 2020-07-31 | J186: 5.2024 | L186: 0 | N186: =IF(OR('3 Irrigation Schedule'!$C$29="",'3 Irrigation Schedule'!$C$31="",H186=""),"",(('3 Irrigation Schedule'!$C$29-'3 Irrigation Schedule'!$C$31)/100)*1000*M186) ->  | P186: =IF(H186="","",IF(H186=1,N186*(1-'3 Irrigation Schedule'!$C$27),S185-U185)) ->  | T186: =IF(H186="","",IF('3 Irrigation Schedule'!$P$19<O186,'3 Irrigation Schedule'!$P$19,O186)) ->  | V186: =IF(H186="","",U186/'3 Irrigation Schedule'!$M$19) -> 
D187: 2020 | E187: August | F187: 2020-08-01 | J187: 5.2024 | L187: 0 | N187: =IF(OR('3 Irrigation Schedule'!$C$29="",'3 Irrigation Schedule'!$C$31="",H187=""),"",(('3 Irrigation Schedule'!$C$29-'3 Irrigation Schedule'!$C$31)/100)*1000*M187) ->  | P187: =IF(H187="","",IF(H187=1,N187*(1-'3 Irrigation Schedule'!$C$27),S186-U186)) ->  | T187: =IF(H187="","",IF('3 Irrigation Schedule'!$P$19<O187,'3 Irrigation Schedule'!$P$19,O187)) ->  | V187: =IF(H187="","",U187/'3 Irrigation Schedule'!$M$19) -> 
D188: 2020 | E188: August | F188: 2020-08-02 | J188: 5.2024 | L188: 0 | N188: =IF(OR('3 Irrigation Schedule'!$C$29="",'3 Irrigation Schedule'!$C$31="",H188=""),"",(('3 Irrigation Schedule'!$C$29-'3 Irrigation Schedule'!$C$31)/100)*1000*M188) ->  | P188: =IF(H188="","",IF(H188=1,N188*(1-'3 Irrigation Schedule'!$C$27),S187-U187)) ->  | T188: =IF(H188="","",IF('3 Irrigation Schedule'!$P$19<O188,'3 Irrigation Schedule'!$P$19,O188)) ->  | V188: =IF(H188="","",U188/'3 Irrigation Schedule'!$M$19) -> 
D189: 2020 | E189: August | F189: 2020-08-03 | J189: 5.2024 | L189: 0 | N189: =IF(OR('3 Irrigation Schedule'!$C$29="",'3 Irrigation Schedule'!$C$31="",H189=""),"",(('3 Irrigation Schedule'!$C$29-'3 Irrigation Schedule'!$C$31)/100)*1000*M189) ->  | P189: =IF(H189="","",IF(H189=1,N189*(1-'3 Irrigation Schedule'!$C$27),S188-U188)) ->  | T189: =IF(H189="","",IF('3 Irrigation Schedule'!$P$19<O189,'3 Irrigation Schedule'!$P$19,O189)) ->  | V189: =IF(H189="","",U189/'3 Irrigation Schedule'!$M$19) -> 
D190: 2020 | E190: August | F190: 2020-08-04 | J190: 5.2024 | L190: 0 | N190: =IF(OR('3 Irrigation Schedule'!$C$29="",'3 Irrigation Schedule'!$C$31="",H190=""),"",(('3 Irrigation Schedule'!$C$29-'3 Irrigation Schedule'!$C$31)/100)*1000*M190) ->  | P190: =IF(H190="","",IF(H190=1,N190*(1-'3 Irrigation Schedule'!$C$27),S189-U189)) ->  | T190: =IF(H190="","",IF('3 Irrigation Schedule'!$P$19<O190,'3 Irrigation Schedule'!$P$19,O190)) ->  | V190: =IF(H190="","",U190/'3 Irrigation Schedule'!$M$19) -> 
D191: 2020 | E191: August | F191: 2020-08-05 | J191: 5.2024 | L191: 0 | N191: =IF(OR('3 Irrigation Schedule'!$C$29="",'3 Irrigation Schedule'!$C$31="",H191=""),"",(('3 Irrigation Schedule'!$C$29-'3 Irrigation Schedule'!$C$31)/100)*1000*M191) ->  | P191: =IF(H191="","",IF(H191=1,N191*(1-'3 Irrigation Schedule'!$C$27),S190-U190)) ->  | T191: =IF(H191="","",IF('3 Irrigation Schedule'!$P$19<O191,'3 Irrigation Schedule'!$P$19,O191)) ->  | V191: =IF(H191="","",U191/'3 Irrigation Schedule'!$M$19) -> 
D192: 2020 | E192: August | F192: 2020-08-06 | J192: 5.2024 | L192: 0 | N192: =IF(OR('3 Irrigation Schedule'!$C$29="",'3 Irrigation Schedule'!$C$31="",H192=""),"",(('3 Irrigation Schedule'!$C$29-'3 Irrigation Schedule'!$C$31)/100)*1000*M192) ->  | P192: =IF(H192="","",IF(H192=1,N192*(1-'3 Irrigation Schedule'!$C$27),S191-U191)) ->  | T192: =IF(H192="","",IF('3 Irrigation Schedule'!$P$19<O192,'3 Irrigation Schedule'!$P$19,O192)) ->  | V192: =IF(H192="","",U192/'3 Irrigation Schedule'!$M$19) -> 
D193: 2020 | E193: August | F193: 2020-08-07 | J193: 5.2024 | L193: 0 | N193: =IF(OR('3 Irrigation Schedule'!$C$29="",'3 Irrigation Schedule'!$C$31="",H193=""),"",(('3 Irrigation Schedule'!$C$29-'3 Irrigation Schedule'!$C$31)/100)*1000*M193) ->  | P193: =IF(H193="","",IF(H193=1,N193*(1-'3 Irrigation Schedule'!$C$27),S192-U192)) ->  | T193: =IF(H193="","",IF('3 Irrigation Schedule'!$P$19<O193,'3 Irrigation Schedule'!$P$19,O193)) ->  | V193: =IF(H193="","",U193/'3 Irrigation Schedule'!$M$19) -> 
D194: 2020 | E194: August | F194: 2020-08-08 | J194: 5.2024 | L194: 0 | N194: =IF(OR('3 Irrigation Schedule'!$C$29="",'3 Irrigation Schedule'!$C$31="",H194=""),"",(('3 Irrigation Schedule'!$C$29-'3 Irrigation Schedule'!$C$31)/100)*1000*M194) ->  | P194: =IF(H194="","",IF(H194=1,N194*(1-'3 Irrigation Schedule'!$C$27),S193-U193)) ->  | T194: =IF(H194="","",IF('3 Irrigation Schedule'!$P$19<O194,'3 Irrigation Schedule'!$P$19,O194)) ->  | V194: =IF(H194="","",U194/'3 Irrigation Schedule'!$M$19) -> 
D195: 2020 | E195: August | F195: 2020-08-09 | J195: 5.2024 | L195: 0 | N195: =IF(OR('3 Irrigation Schedule'!$C$29="",'3 Irrigation Schedule'!$C$31="",H195=""),"",(('3 Irrigation Schedule'!$C$29-'3 Irrigation Schedule'!$C$31)/100)*1000*M195) ->  | P195: =IF(H195="","",IF(H195=1,N195*(1-'3 Irrigation Schedule'!$C$27),S194-U194)) ->  | T195: =IF(H195="","",IF('3 Irrigation Schedule'!$P$19<O195,'3 Irrigation Schedule'!$P$19,O195)) ->  | V195: =IF(H195="","",U195/'3 Irrigation Schedule'!$M$19) -> 
D196: 2020 | E196: August | F196: 2020-08-10 | J196: 5.2024 | L196: 0 | N196: =IF(OR('3 Irrigation Schedule'!$C$29="",'3 Irrigation Schedule'!$C$31="",H196=""),"",(('3 Irrigation Schedule'!$C$29-'3 Irrigation Schedule'!$C$31)/100)*1000*M196) ->  | P196: =IF(H196="","",IF(H196=1,N196*(1-'3 Irrigation Schedule'!$C$27),S195-U195)) ->  | T196: =IF(H196="","",IF('3 Irrigation Schedule'!$P$19<O196,'3 Irrigation Schedule'!$P$19,O196)) ->  | V196: =IF(H196="","",U196/'3 Irrigation Schedule'!$M$19) -> 
D197: 2020 | E197: August | F197: 2020-08-11 | J197: 5.2024 | L197: 0 | N197: =IF(OR('3 Irrigation Schedule'!$C$29="",'3 Irrigation Schedule'!$C$31="",H197=""),"",(('3 Irrigation Schedule'!$C$29-'3 Irrigation Schedule'!$C$31)/100)*1000*M197) ->  | P197: =IF(H197="","",IF(H197=1,N197*(1-'3 Irrigation Schedule'!$C$27),S196-U196)) ->  | T197: =IF(H197="","",IF('3 Irrigation Schedule'!$P$19<O197,'3 Irrigation Schedule'!$P$19,O197)) ->  | V197: =IF(H197="","",U197/'3 Irrigation Schedule'!$M$19) -> 
D198: 2020 | E198: August | F198: 2020-08-12 | J198: 5.2024 | L198: 0 | N198: =IF(OR('3 Irrigation Schedule'!$C$29="",'3 Irrigation Schedule'!$C$31="",H198=""),"",(('3 Irrigation Schedule'!$C$29-'3 Irrigation Schedule'!$C$31)/100)*1000*M198) ->  | P198: =IF(H198="","",IF(H198=1,N198*(1-'3 Irrigation Schedule'!$C$27),S197-U197)) ->  | T198: =IF(H198="","",IF('3 Irrigation Schedule'!$P$19<O198,'3 Irrigation Schedule'!$P$19,O198)) ->  | V198: =IF(H198="","",U198/'3 Irrigation Schedule'!$M$19) -> 
D199: 2020 | E199: August | F199: 2020-08-13 | J199: 5.2024 | L199: 0 | N199: =IF(OR('3 Irrigation Schedule'!$C$29="",'3 Irrigation Schedule'!$C$31="",H199=""),"",(('3 Irrigation Schedule'!$C$29-'3 Irrigation Schedule'!$C$31)/100)*1000*M199) ->  | P199: =IF(H199="","",IF(H199=1,N199*(1-'3 Irrigation Schedule'!$C$27),S198-U198)) ->  | T199: =IF(H199="","",IF('3 Irrigation Schedule'!$P$19<O199,'3 Irrigation Schedule'!$P$19,O199)) ->  | V199: =IF(H199="","",U199/'3 Irrigation Schedule'!$M$19) -> 
D200: 2020 | E200: August | F200: 2020-08-14 | J200: 5.2024 | L200: 0 | N200: =IF(OR('3 Irrigation Schedule'!$C$29="",'3 Irrigation Schedule'!$C$31="",H200=""),"",(('3 Irrigation Schedule'!$C$29-'3 Irrigation Schedule'!$C$31)/100)*1000*M200) ->  | P200: =IF(H200="","",IF(H200=1,N200*(1-'3 Irrigation Schedule'!$C$27),S199-U199)) ->  | T200: =IF(H200="","",IF('3 Irrigation Schedule'!$P$19<O200,'3 Irrigation Schedule'!$P$19,O200)) ->  | V200: =IF(H200="","",U200/'3 Irrigation Schedule'!$M$19) -> 
D201: 2020 | E201: August | F201: 2020-08-15 | J201: 5.2024 | L201: 0 | N201: =IF(OR('3 Irrigation Schedule'!$C$29="",'3 Irrigation Schedule'!$C$31="",H201=""),"",(('3 Irrigation Schedule'!$C$29-'3 Irrigation Schedule'!$C$31)/100)*1000*M201) ->  | P201: =IF(H201="","",IF(H201=1,N201*(1-'3 Irrigation Schedule'!$C$27),S200-U200)) ->  | T201: =IF(H201="","",IF('3 Irrigation Schedule'!$P$19<O201,'3 Irrigation Schedule'!$P$19,O201)) ->  | V201: =IF(H201="","",U201/'3 Irrigation Schedule'!$M$19) -> 
D202: 2020 | E202: August | F202: 2020-08-16 | J202: 5.2024 | L202: 0 | N202: =IF(OR('3 Irrigation Schedule'!$C$29="",'3 Irrigation Schedule'!$C$31="",H202=""),"",(('3 Irrigation Schedule'!$C$29-'3 Irrigation Schedule'!$C$31)/100)*1000*M202) ->  | P202: =IF(H202="","",IF(H202=1,N202*(1-'3 Irrigation Schedule'!$C$27),S201-U201)) ->  | T202: =IF(H202="","",IF('3 Irrigation Schedule'!$P$19<O202,'3 Irrigation Schedule'!$P$19,O202)) ->  | V202: =IF(H202="","",U202/'3 Irrigation Schedule'!$M$19) -> 
... 926 more rows

Sheet General Calculation (hidden)
B1: Available climatic Data | C1: Option | D1: Status
C2: Option 1 | D2: TRUE | E2: Blaney-Criddle method
C3: Option 2 | D3: FALSE | E3: Hargreaves method
C4: Option 3 | D4: FALSE | E4: FAO Penman-Monteith method
C5: Option 4 | D5: FALSE | E5: Reference evapotranspiration
B7: Hemisphere | C7: North | D7: East
C8: South | D8: West
B10: Option 1 | C10: Blaney-Criddle method
C11: latitude | D11: =IF($D$2=TRUE,MROUND('1 Geographic Data'!$C$37,5),"") -> 5 | E11: degree
C12: Hemisphere | D12: =IF($D$2=TRUE,'1 Geographic Data'!$F$37,"") -> North
D14: ='1 Geographic Data'!B22 -> January | E14: ='1 Geographic Data'!C22 -> February | F14: ='1 Geographic Data'!D22 -> March | G14: ='1 Geographic Data'!E22 -> April | H14: ='1 Geographic Data'!F22 -> May | I14: ='1 Geographic Data'!G22 -> June | J14: ='1 Geographic Data'!H22 -> July | K14: ='1 Geographic Data'!I22 -> August | L14: ='1 Geographic Data'!J22 -> September | M14: ='1 Geographic Data'!K22 -> October | N14: ='1 Geographic Data'!L22 -> November | O14: ='1 Geographic Data'!M22 -> December
C15: =IF($D$2= TRUE,'1 Geographic Data'!A23,'1 Geographic Data'!A23) -> Mean daily temperature [°C] | D15: =IF($D$2= TRUE,'1 Geographic Data'!B23,"") -> 25.5 | E15: =IF($D$2= TRUE,'1 Geographic Data'!C23,"") -> 25 | F15: =IF($D$2= TRUE,'1 Geographic Data'!D23,"") -> 24.6 | G15: =IF($D$2= TRUE,'1 Geographic Data'!E23,"") -> 23.8 | H15: =IF($D$2= TRUE,'1 Geographic Data'!F23,"") -> 23.9 | I15: =IF($D$2= TRUE,'1 Geographic Data'!G23,"") -> 23.5 | J15: =IF($D$2= TRUE,'1 Geographic Data'!H23,"") -> 23 | K15: =IF($D$2= TRUE,'1 Geographic Data'!I23,"") -> 23 | L15: =IF($D$2= TRUE,'1 Geographic Data'!J23,"") -> 23.6 | M15: =IF($D$2= TRUE,'1 Geographic Data'!K23,"") -> 23.9 | N15: =IF($D$2= TRUE,'1 Geographic Data'!L23,"") -> 23.6 | O15: =IF($D$2= TRUE,'1 Geographic Data'!M23,"") -> 24
C16: Daytime hours: | D16: =IF($D$2= TRUE, IF($D$12="North",INDEX(F21:F33,VLOOKUP($D$11,$D$21:$E$33,2,FALSE)),INDEX(F35:F47,VLOOKUP($D$11,$D$21:$E$33,2,FALSE))),"") -> 0.27 | E16: =IF($D$2= TRUE, IF($D$12="North",INDEX(G21:G33,VLOOKUP($D$11,$D$21:$E$33,2,FALSE)),INDEX(G35:G47,VLOOKUP($D$11,$D$21:$E$33,2,FALSE))),"") -> 0.27 | F16: 0.27 | G16: 0.28 | H16: 0.28 | I16: 0.28 | J16: 0.28 | K16: 0.28 | L16: 0.28 | M16: 0.27 | N16: 0.27 | O16: =IF($D$2= TRUE, IF($D$12="North",INDEX(Q21:Q33,VLOOKUP($D$11,$D$21:$E$33,2,FALSE)),INDEX(Q35:Q47,VLOOKUP($D$11,$D$21:$E$33,2,FALSE))),"") -> 0.27
C17: Reference Evapotranspiration | D17: =IF($D$2= TRUE, D16*(0.46*D15+8),"") -> 5.3271 | E17: =IF($D$2= TRUE, E16*(0.46*E15+8),"") -> 5.265 | F17: 5.21532 | G17: 5.30544 | H17: 5.31832 | I17: 5.2668 | J17: 5.2024 | K17: 5.2024 | L17: 5.27968 | M17: 5.12838 | N17: 5.09112 | O17: =IF($D$2= TRUE, O16*(0.46*O15+8),"") -> 5.1408
C19: Mean daily percentage (p) of annual daytime hours for different latitudes
C20: North | D20: Latitude | E20: # | F20: =D14 -> January | G20: =E14 -> February | H20: March | I20: April | J20: May | K20: June | L20: July | M20: August | N20: September | O20: October | P20: November | Q20: December
D21: 60 | E21: 1 | F21: 0.15 | G21: 0.2 | H21: 0.26 | I21: 0.32 | J21: 0.38 | K21: 0.41 | L21: 0.4 | M21: 0.34 | N21: 0.28 | O21: 0.22 | P21: 0.17 | Q21: 0.13
D22: 55 | E22: 2 | F22: 0.17 | G22: 0.21 | H22: 0.26 | I22: 0.32 | J22: 0.36 | K22: 0.39 | L22: 0.38 | M22: 0.33 | N22: 0.28 | O22: 0.23 | P22: 0.18 | Q22: 0.16
D23: 50 | E23: 3 | F23: 0.19 | G23: 0.23 | H23: 0.27 | I23: 0.31 | J23: 0.34 | K23: 0.36 | L23: 0.35 | M23: 0.32 | N23: 0.28 | O23: 0.24 | P23: 0.2 | Q23: 0.18
D24: 45 | E24: 4 | F24: 0.2 | G24: 0.23 | H24: 0.27 | I24: 0.3 | J24: 0.34 | K24: 0.35 | L24: 0.34 | M24: 0.32 | N24: 0.28 | O24: 0.24 | P24: 0.21 | Q24: 0.2
D25: 40 | E25: 5 | F25: 0.22 | G25: 0.24 | H25: 0.27 | I25: 0.3 | J25: 0.32 | K25: 0.34 | L25: 0.33 | M25: 0.31 | N25: 0.28 | O25: 0.25 | P25: 0.22 | Q25: 0.21
D26: 35 | E26: 6 | F26: 0.23 | G26: 0.25 | H26: 0.27 | I26: 0.29 | J26: 0.31 | K26: 0.32 | L26: 0.32 | M26: 0.3 | N26: 0.28 | O26: 0.25 | P26: 0.23 | Q26: 0.22
D27: 30 | E27: 7 | F27: 0.24 | G27: 0.25 | H27: 0.27 | I27: 0.29 | J27: 0.31 | K27: 0.32 | L27: 0.31 | M27: 0.3 | N27: 0.28 | O27: 0.26 | P27: 0.24 | Q27: 0.23
D28: 25 | E28: 8 | F28: 0.24 | G28: 0.26 | H28: 0.27 | I28: 0.29 | J28: 0.3 | K28: 0.31 | L28: 0.31 | M28: 0.29 | N28: 0.28 | O28: 0.26 | P28: 0.25 | Q28: 0.24
D29: 20 | E29: 9 | F29: 0.25 | G29: 0.26 | H29: 0.27 | I29: 0.28 | J29: 0.29 | K29: 0.3 | L29: 0.3 | M29: 0.29 | N29: 0.28 | O29: 0.26 | P29: 0.25 | Q29: 0.25
D30: 15 | E30: 10 | F30: 0.26 | G30: 0.26 | H30: 0.27 | I30: 0.28 | J30: 0.29 | K30: 0.29 | L30: 0.29 | M30: 0.28 | N30: 0.28 | O30: 0.27 | P30: 0.26 | Q30: 0.25
D31: 10 | E31: 11 | F31: 0.26 | G31: 0.27 | H31: 0.27 | I31: 0.28 | J31: 0.28 | K31: 0.29 | L31: 0.29 | M31: 0.28 | N31: 0.28 | O31: 0.27 | P31: 0.26 | Q31: 0.26
D32: 5 | E32: 12 | F32: 0.27 | G32: 0.27 | H32: 0.27 | I32: 0.28 | J32: 0.28 | K32: 0.28 | L32: 0.28 | M32: 0.28 | N32: 0.28 | O32: 0.27 | P32: 0.27 | Q32: 0.27
D33: 0 | E33: 13 | F33: 0.27 | G33: 0.27 | H33: 0.27 | I33: 0.27 | J33: 0.27 | K33: 0.27 | L33: 0.27 | M33: 0.27 | N33: 0.27 | O33: 0.27 | P33: 0.27 | Q33: 0.27
C34: South | D34: Latitude | E34: # | F34: =D14 -> January | G34: =E14 -> February | H34: March | I34: April | J34: May | K34: June | L34: July | M34: August | N34: September | O34: October | P34: November | Q34: December
D35: 60 | E35: 1 | F35: 0.4 | G35: 0.34 | H35: 0.28 | I35: 0.22 | J35: 0.17 | K35: 0.13 | L35: 0.15 | M35: 0.2 | N35: 0.26 | O35: 0.32 | P35: 0.38 | Q35: 0.41
D36: 55 | E36: 2 | F36: 0.38 | G36: 0.33 | H36: 0.28 | I36: 0.23 | J36: 0.18 | K36: 0.16 | L36: 0.17 | M36: 0.21 | N36: 0.26 | O36: 0.32 | P36: 0.36 | Q36: 0.39
D37: 50 | E37: 3 | F37: 0.35 | G37: 0.32 | H37: 0.28 | I37: 0.24 | J37: 0.2 | K37: 0.18 | L37: 0.19 | M37: 0.23 | N37: 0.27 | O37: 0.31 | P37: 0.34 | Q37: 0.36
D38: 45 | E38: 4 | F38: 0.34 | G38: 0.32 | H38: 0.28 | I38: 0.24 | J38: 0.21 | K38: 0.2 | L38: 0.2 | M38: 0.23 | N38: 0.27 | O38: 0.3 | P38: 0.34 | Q38: 0.35
D39: 40 | E39: 5 | F39: 0.33 | G39: 0.31 | H39: 0.28 | I39: 0.25 | J39: 0.22 | K39: 0.21 | L39: 0.22 | M39: 0.24 | N39: 0.27 | O39: 0.3 | P39: 0.32 | Q39: 0.34
D40: 35 | E40: 6 | F40: 0.32 | G40: 0.3 | H40: 0.28 | I40: 0.25 | J40: 0.23 | K40: 0.22 | L40: 0.23 | M40: 0.25 | N40: 0.27 | O40: 0.29 | P40: 0.31 | Q40: 0.32
D41: 30 | E41: 7 | F41: 0.31 | G41: 0.3 | H41: 0.28 | I41: 0.26 | J41: 0.24 | K41: 0.23 | L41: 0.24 | M41: 0.25 | N41: 0.27 | O41: 0.29 | P41: 0.31 | Q41: 0.32
D42: 25 | E42: 8 | F42: 0.31 | G42: 0.29 | H42: 0.28 | I42: 0.26 | J42: 0.25 | K42: 0.24 | L42: 0.24 | M42: 0.26 | N42: 0.27 | O42: 0.29 | P42: 0.3 | Q42: 0.31
D43: 20 | E43: 9 | F43: 0.3 | G43: 0.29 | H43: 0.28 | I43: 0.26 | J43: 0.25 | K43: 0.25 | L43: 0.25 | M43: 0.26 | N43: 0.27 | O43: 0.28 | P43: 0.29 | Q43: 0.3
D44: 15 | E44: 10 | F44: 0.29 | G44: 0.28 | H44: 0.28 | I44: 0.27 | J44: 0.26 | K44: 0.25 | L44: 0.26 | M44: 0.26 | N44: 0.27 | O44: 0.28 | P44: 0.29 | Q44: 0.29
D45: 10 | E45: 11 | F45: 0.29 | G45: 0.28 | H45: 0.28 | I45: 0.27 | J45: 0.26 | K45: 0.26 | L45: 0.26 | M45: 0.27 | N45: 0.27 | O45: 0.28 | P45: 0.28 | Q45: 0.29
D46: 5 | E46: 12 | F46: 0.28 | G46: 0.28 | H46: 0.28 | I46: 0.27 | J46: 0.27 | K46: 0.27 | L46: 0.27 | M46: 0.27 | N46: 0.27 | O46: 0.28 | P46: 0.28 | Q46: 0.28
D47: 0 | E47: 13 | F47: 0.27 | G47: 0.27 | H47: 0.27 | I47: 0.27 | J47: 0.27 | K47: 0.27 | L47: 0.27 | M47: 0.27 | N47: 0.27 | O47: 0.27 | P47: 0.27 | Q47: 0.27
B49: Option 2 | C49: Hargreaves method
C50: latitude | D50: =IF($D$3=TRUE,'1 Geographic Data'!$C$37,"") ->  | E50: degree | F50: =IF($D$3=TRUE,'1 Geographic Data'!$F$37,"") ->  | G50: ="==>" -> ==> | H50: =IF($D$3= TRUE, IF(F50="North",PI()*$D$50/180, PI()*-$D$50/180),"") ->  | I50: Radians
C51: Longitude | D51: =IF($D$3=TRUE,'1 Geographic Data'!$C$38,"") ->  | E51: degree | F51: =IF($D$3=TRUE,'1 Geographic Data'!$F$38,"") -> 
D53: =D14 -> January | E53: February | F53: March | G53: April | H53: May | I53: June | J53: July | K53: August | L53: September | M53: October | N53: November | O53: December
C54: =IF($D$4= TRUE,'1 Geographic Data'!A24,'1 Geographic Data'!A24) -> Maximum daily temperature [°C] | D54: =IF($D$3= TRUE,'1 Geographic Data'!B24, "") ->  | E54: =IF($D$3= TRUE,'1 Geographic Data'!C24, "") ->  | F54: =IF($D$3= TRUE,'1 Geographic Data'!D24, "") ->  | G54: =IF($D$3= TRUE,'1 Geographic Data'!E24, "") ->  | H54: =IF($D$3= TRUE,'1 Geographic Data'!F24, "") ->  | I54: =IF($D$3= TRUE,'1 Geographic Data'!G24, "") ->  | J54: =IF($D$3= TRUE,'1 Geographic Data'!H24, "") ->  | K54: =IF($D$3= TRUE,'1 Geographic Data'!I24, "") ->  | L54: =IF($D$3= TRUE,'1 Geographic Data'!J24, "") ->  | M54: =IF($D$3= TRUE,'1 Geographic Data'!K24, "") ->  | N54: =IF($D$3= TRUE,'1 Geographic Data'!L24, "") ->  | O54: =IF($D$3= TRUE,'1 Geographic Data'!M24, "") -> 
C55: =IF($D$4= TRUE,'1 Geographic Data'!A25,'1 Geographic Data'!A25) -> Minimum daily temperature [°C] | D55: =IF($D$3= TRUE,'1 Geographic Data'!B25, "") ->  | E55: =IF($D$3= TRUE,'1 Geographic Data'!C25, "") ->  | F55: =IF($D$3= TRUE,'1 Geographic Data'!D25, "") ->  | G55: =IF($D$3= TRUE,'1 Geographic Data'!E25, "") ->  | H55: =IF($D$3= TRUE,'1 Geographic Data'!F25, "") ->  | I55: =IF($D$3= TRUE,'1 Geographic Data'!G25, "") ->  | J55: =IF($D$3= TRUE,'1 Geographic Data'!H25, "") ->  | K55: =IF($D$3= TRUE,'1 Geographic Data'!I25, "") ->  | L55: =IF($D$3= TRUE,'1 Geographic Data'!J25, "") ->  | M55: =IF($D$3= TRUE,'1 Geographic Data'!K25, "") ->  | N55: =IF($D$3= TRUE,'1 Geographic Data'!L25, "") ->  | O55: =IF($D$3= TRUE,'1 Geographic Data'!M25, "") -> 
C56: Reference Evapotranspiration | D56: =D65 ->  | E56: =E65 -> 
C58: Mean Temp. [°C] | D58: =IF($D$3= TRUE,(D54+D55)/2,"") ->  | E58: =IF($D$3= TRUE,(E54+E55)/2,"") -> 
C59: Month | D59: 1 | E59: 2 | F59: 3 | G59: 4 | H59: 5 | I59: 6 | J59: 7 | K59: 8 | L59: 9 | M59: 10 | N59: 11 | O59: 12
C60: J | D60: =IF($D$3= TRUE,TRUNC((30.4*D59)-15),"") ->  | E60: =IF($D$3= TRUE,TRUNC((30.4*E59)-15),"") -> 
C61: dr | D61: =IF($D$3= TRUE,1+(0.033*COS(2*PI()*D60/365)),"") ->  | E61: =IF($D$3= TRUE,1+(0.033*COS(2*PI()*E60/365)),"") -> 
C62: Solar Decl. δ [Rad] | D62: =IF($D$3= TRUE,0.4093*SIN((2*PI()*D60/365)-1.39),"") ->  | E62: =IF($D$3= TRUE,0.4093*SIN((2*PI()*E60/365)-1.39),"") -> 
C63: Sunset Angle [Rad] | D63: =IF($D$3= TRUE,ACOS(-TAN($H$50)*TAN(D62)),"") -> 
C64: Ra [MJ m-2 day-1] | D64: =IF($D$3= TRUE,(24*60*0.082*D61/PI())*((D63*SIN($H$50)*SIN(D62))+(COS($H$50)*COS(D62)*SIN(D63))),"") -> 
C65: ETo [mm day-1] | D65: =IF($D$3= TRUE,0.408*0.0023*(D58+17.8)*(D54-D55)^0.5*D64,"") ->  | E65: =IF($D$3= TRUE,0.408*0.0023*(E58+17.8)*(E54-E55)^0.5*E64,"") -> 
B68: Option 3 | C68: FAO Penman-Monteith method
C69: latitude | D69: =IF($D$4=TRUE,'1 Geographic Data'!$C$37,"") ->  | E69: degree | F69: =IF($D$4=TRUE,'1 Geographic Data'!$F$37,"") ->  | G69: ="==>" -> ==> | H69: =IF($D$4= TRUE,IF(F69="North",PI()*$D$69/180, PI()*-$D$69/180),"") ->  | I69: Radians
C70: Longitude | D70: =IF($D$4=TRUE,'1 Geographic Data'!$C$38,"") ->  | E70: degree | F70: =IF($D$4=TRUE,'1 Geographic Data'!$F$38,"") -> 
C71: Altitude | D71: =IF($D$4=TRUE,'1 Geographic Data'!$C$35,"") ->  | E71: meter
C73: Angstrom values | D73: as | E73: 0.25 | G73: albedo α | H73: 0.23
D74: bs | E74: 0.5
D76: =D14 -> January | E76: February | F76: March | G76: April | H76: May | I76: June | J76: July | K76: August | L76: September | M76: October | N76: November | O76: December
C77: =IF($D$4= TRUE,'1 Geographic Data'!A24,'1 Geographic Data'!A24) -> Maximum daily temperature [°C] | D77: =IF($D$4= TRUE,'1 Geographic Data'!B24,"") ->  | E77: =IF($D$4= TRUE,'1 Geographic Data'!C24,"") ->  | F77: =IF($D$4= TRUE,'1 Geographic Data'!D24,"") ->  | G77: =IF($D$4= TRUE,'1 Geographic Data'!E24,"") ->  | H77: =IF($D$4= TRUE,'1 Geographic Data'!F24,"") ->  | I77: =IF($D$4= TRUE,'1 Geographic Data'!G24,"") ->  | J77: =IF($D$4= TRUE,'1 Geographic Data'!H24,"") ->  | K77: =IF($D$4= TRUE,'1 Geographic Data'!I24,"") ->  | L77: =IF($D$4= TRUE,'1 Geographic Data'!J24,"") ->  | M77: =IF($D$4= TRUE,'1 Geographic Data'!K24,"") ->  | N77: =IF($D$4= TRUE,'1 Geographic Data'!L24,"") ->  | O77: =IF($D$4= TRUE,'1 Geographic Data'!M24,"") -> 
C78: =IF($D$4= TRUE,'1 Geographic Data'!A25,'1 Geographic Data'!A25) -> Minimum daily temperature [°C] | D78: =IF($D$4= TRUE,'1 Geographic Data'!B25,"") ->  | E78: =IF($D$4= TRUE,'1 Geographic Data'!C25,"") ->  | F78: =IF($D$4= TRUE,'1 Geographic Data'!D25,"") ->  | G78: =IF($D$4= TRUE,'1 Geographic Data'!E25,"") ->  | H78: =IF($D$4= TRUE,'1 Geographic Data'!F25,"") ->  | I78: =IF($D$4= TRUE,'1 Geographic Data'!G25,"") ->  | J78: =IF($D$4= TRUE,'1 Geographic Data'!H25,"") ->  | K78: =IF($D$4= TRUE,'1 Geographic Data'!I25,"") ->  | L78: =IF($D$4= TRUE,'1 Geographic Data'!J25,"") ->  | M78: =IF($D$4= TRUE,'1 Geographic Data'!K25,"") ->  | N78: =IF($D$4= TRUE,'1 Geographic Data'!L25,"") ->  | O78: =IF($D$4= TRUE,'1 Geographic Data'!M25,"") -> 
C79: =IF($D$4= TRUE,'1 Geographic Data'!A26,'1 Geographic Data'!A26) -> Relative humidity [%] | D79: =IF($D$4= TRUE,'1 Geographic Data'!B26,"") ->  | E79: =IF($D$4= TRUE,'1 Geographic Data'!C26,"") ->  | F79: =IF($D$4= TRUE,'1 Geographic Data'!D26,"") ->  | G79: =IF($D$4= TRUE,'1 Geographic Data'!E26,"") ->  | H79: =IF($D$4= TRUE,'1 Geographic Data'!F26,"") ->  | I79: =IF($D$4= TRUE,'1 Geographic Data'!G26,"") ->  | J79: =IF($D$4= TRUE,'1 Geographic Data'!H26,"") ->  | K79: =IF($D$4= TRUE,'1 Geographic Data'!I26,"") ->  | L79: =IF($D$4= TRUE,'1 Geographic Data'!J26,"") ->  | M79: =IF($D$4= TRUE,'1 Geographic Data'!K26,"") ->  | N79: =IF($D$4= TRUE,'1 Geographic Data'!L26,"") ->  | O79: =IF($D$4= TRUE,'1 Geographic Data'!M26,"") -> 
C80: =IF($D$4= TRUE,'1 Geographic Data'!A27,'1 Geographic Data'!A27) -> Wind speed [m/s] | D80: =IF($D$4= TRUE,'1 Geographic Data'!B27,"") ->  | E80: =IF($D$4= TRUE,'1 Geographic Data'!C27,"") ->  | F80: =IF($D$4= TRUE,'1 Geographic Data'!D27,"") ->  | G80: =IF($D$4= TRUE,'1 Geographic Data'!E27,"") ->  | H80: =IF($D$4= TRUE,'1 Geographic Data'!F27,"") ->  | I80: =IF($D$4= TRUE,'1 Geographic Data'!G27,"") ->  | J80: =IF($D$4= TRUE,'1 Geographic Data'!H27,"") ->  | K80: =IF($D$4= TRUE,'1 Geographic Data'!I27,"") ->  | L80: =IF($D$4= TRUE,'1 Geographic Data'!J27,"") ->  | M80: =IF($D$4= TRUE,'1 Geographic Data'!K27,"") ->  | N80: =IF($D$4= TRUE,'1 Geographic Data'!L27,"") ->  | O80: =IF($D$4= TRUE,'1 Geographic Data'!M27,"") -> 
C81: =IF($D$4= TRUE,'1 Geographic Data'!A28,'1 Geographic Data'!A28) -> Sunshine [hours] | D81: =IF($D$4= TRUE,'1 Geographic Data'!B28,"") ->  | E81: =IF($D$4= TRUE,'1 Geographic Data'!C28,"") ->  | F81: =IF($D$4= TRUE,'1 Geographic Data'!D28,"") ->  | G81: =IF($D$4= TRUE,'1 Geographic Data'!E28,"") ->  | H81: =IF($D$4= TRUE,'1 Geographic Data'!F28,"") ->  | I81: =IF($D$4= TRUE,'1 Geographic Data'!G28,"") ->  | J81: =IF($D$4= TRUE,'1 Geographic Data'!H28,"") ->  | K81: =IF($D$4= TRUE,'1 Geographic Data'!I28,"") ->  | L81: =IF($D$4= TRUE,'1 Geographic Data'!J28,"") ->  | M81: =IF($D$4= TRUE,'1 Geographic Data'!K28,"") ->  | N81: =IF($D$4= TRUE,'1 Geographic Data'!L28,"") ->  | O81: =IF($D$4= TRUE,'1 Geographic Data'!M28,"") -> 
C82: Reference Evapotranspiration | D82: =D106 ->  | E82: =E106 -> 
C84: Mean Temp. [°C] | D84: =IF($D$4= TRUE,(D77+D78)/2,"") ->  | E84: =IF($D$4= TRUE,(E77+E78)/2,"") -> 
C85: Delta [kPa °C-1] | D85: =IF($D$4= TRUE,4098*(0.6108*EXP((17.27*D84)/(D84+237.3)))/(D84+237.3)^2,"") -> 
C86: e° (Tmax) [KPa] | D86: =IF($D$4= TRUE,0.6108*EXP((17.27*D77)/(D77+237.3)),"") -> 
C87: e° (Tmin) [KPa]
C88: es [KPa] | D88: =IF($D$4= TRUE,(D86+D87)/2,"") ->  | E88: =IF($D$4= TRUE,(E86+E87)/2,"") -> 
C89: ea [KPa] | D89: =IF($D$4= TRUE,D79*D88/100,"") -> 
C90: (es - ea) [KPa] | D90: =IF($D$4= TRUE,D88-D89,"") ->  | E90: =IF($D$4= TRUE,E88-E89,"") -> 
C91: Atm. P [KPa] | D91: =IF($D$4= TRUE,101.3*((293-0.0065*$D$71)/293)^5.26,"") -> 
C92: Gamma, γ [kPa °C-1] | D92: =IF($D$4= TRUE,0.000665*D91,"") ->  | E92: =IF($D$4= TRUE,0.000665*E91,"") -> 
C93: Month | D93: 1 | E93: 2 | F93: 3 | G93: 4 | H93: 5 | I93: 6 | J93: 7 | K93: 8 | L93: 9 | M93: 10 | N93: 11 | O93: 12
C94: J | D94: =IF($D$4= TRUE,TRUNC((30.4*D93)-15),"") ->  | E94: =IF($D$4= TRUE,TRUNC((30.4*E93)-15),"") -> 
C95: dr | D95: =IF($D$4= TRUE,1+(0.033*COS(2*PI()*D94/365)),"") ->  | E95: =IF($D$4= TRUE,1+(0.033*COS(2*PI()*E94/365)),"") -> 
C96: Solar Decl. δ [Rad] | D96: =IF($D$4= TRUE,0.4093*SIN((2*PI()*D94/365)-1.39),"") ->  | E96: =IF($D$4= TRUE,0.4093*SIN((2*PI()*E94/365)-1.39),"") -> 
C97: Sunset Angle [Rad] | D97: =IF($D$4= TRUE,ACOS(-TAN($H$69)*TAN(D96)),"") -> 
C98: Ra [MJ m-2 day-1] | D98: =IF($D$4= TRUE,(24*60*0.082*D95/PI())*((D97*SIN($H$69)*SIN(D96))+(COS($H$69)*COS(D96)*SIN(D97))),"") -> 
C99: Daylight hours N | D99: =IF($D$4= TRUE,24*D97/PI(),"") ->  | E99: =IF($D$4= TRUE,24*E97/PI(),"") -> 
C100: Rs [MJ m-2 day-1] | D100: =IF($D$4= TRUE,($E$73+($E$74*D81/D99))*D98,"") -> 
C101: Rso [MJ m-2 day-1] | D101: =IF($D$4= TRUE,($E$73+$E$74)*D98,"") -> 
C102: Rns [MJ m-2 day-1] | D102: =IF($D$4= TRUE,(1-$H$73)*D100,"") -> 
C103: Rnl [MJ m-2 day-1] | D103: =IF($D$4= TRUE,4.903*10^-9*(((D77+273.16)^4+(D78+273.16)^4)/2)*(0.34-(0.14*SQRT(D89)))*((1.35*D100/D101)-0.35),"") -> 
C104: Rn [MJ m-2 day-1] | D104: =IF($D$4= TRUE,D102-D103,"") ->  | E104: =IF($D$4= TRUE,E102-E103,"") -> 
C105: Gmonth [MJ m-2 day-1] | D105: =IF($D$4= TRUE,0.14*(D84-O84),"") ->  | E105: =IF($D$4= TRUE,0.14*(E84-D84),"") -> 
C106: ETo [mm day-1] | D106: =IF($D$4= TRUE,((0.408*D85*(D104-D105))+(D92*900*D80*D90/(D84+273)))/(D85+(D92*(1+(0.34*D80)))),"") -> 
B108: Option 4 | C108: Reference evapotranspiration
D109: =D14 -> January | E109: February | F109: March | G109: April | H109: May | I109: June | J109: July | K109: August | L109: September | M109: October | N109: November | O109: December
C110: =IF($D$5= TRUE,'1 Geographic Data'!A23,'1 Geographic Data'!A23) -> Mean daily temperature [°C] | D110: =IF($D$5= TRUE,'1 Geographic Data'!B23,'1 Geographic Data'!B23) -> 25.5 | E110: =IF($D$5= TRUE,'1 Geographic Data'!C23,'1 Geographic Data'!C23) -> 25 | F110: =IF($D$5= TRUE,'1 Geographic Data'!D23,'1 Geographic Data'!D23) -> 24.6 | G110: =IF($D$5= TRUE,'1 Geographic Data'!E23,'1 Geographic Data'!E23) -> 23.8 | H110: =IF($D$5= TRUE,'1 Geographic Data'!F23,'1 Geographic Data'!F23) -> 23.9 | I110: =IF($D$5= TRUE,'1 Geographic Data'!G23,'1 Geographic Data'!G23) -> 23.5 | J110: =IF($D$5= TRUE,'1 Geographic Data'!H23,'1 Geographic Data'!H23) -> 23 | K110: =IF($D$5= TRUE,'1 Geographic Data'!I23,'1 Geographic Data'!I23) -> 23 | L110: =IF($D$5= TRUE,'1 Geographic Data'!J23,'1 Geographic Data'!J23) -> 23.6 | M110: =IF($D$5= TRUE,'1 Geographic Data'!K23,'1 Geographic Data'!K23) -> 23.9 | N110: =IF($D$5= TRUE,'1 Geographic Data'!L23,'1 Geographic Data'!L23) -> 23.6 | O110: =IF($D$5= TRUE,'1 Geographic Data'!M23,'1 Geographic Data'!M23) -> 24
C111: =IF($D$5= TRUE,'1 Geographic Data'!A29,'1 Geographic Data'!A29) -> Reference evapotranspiration [mm/day] | D111: =IF($D$5= TRUE,'1 Geographic Data'!B29,"") ->  | E111: =IF($D$5= TRUE,'1 Geographic Data'!C29,"") ->  | F111: =IF($D$5= TRUE,'1 Geographic Data'!D29,"") ->  | G111: =IF($D$5= TRUE,'1 Geographic Data'!E29,"") ->  | H111: =IF($D$5= TRUE,'1 Geographic Data'!F29,"") ->  | I111: =IF($D$5= TRUE,'1 Geographic Data'!G29,"") ->  | J111: =IF($D$5= TRUE,'1 Geographic Data'!H29,"") ->  | K111: =IF($D$5= TRUE,'1 Geographic Data'!I29,"") ->  | L111: =IF($D$5= TRUE,'1 Geographic Data'!J29,"") ->  | M111: =IF($D$5= TRUE,'1 Geographic Data'!K29,"") ->  | N111: =IF($D$5= TRUE,'1 Geographic Data'!L29,"") ->  | O111: =IF($D$5= TRUE,'1 Geographic Data'!M29,"") -> 
D114: =D14 -> January | E114: February | F114: March | G114: April | H114: May | I114: June | J114: July | K114: August | L114: September | M114: October | N114: November | O114: December
B115: Final Values | C115: Reference Evapotranspiration | D115: =IF($D$2= TRUE, D17, IF($D$3= TRUE, D56,IF($D$4= TRUE, D82,D111))) -> 5.3271 | E115: 5.265 | F115: 5.21532 | G115: 5.30544 | H115: 5.31832 | I115: 5.2668 | J115: 5.2024 | K115: 5.2024 | L115: 5.27968 | M115: 5.12838 | N115: 5.09112 | O115: 5.1408
C116: ='1 Geographic Data'!$A$23 -> Mean daily temperature [°C] | D116: =IF($D$2= TRUE, D15, IF($D$3= TRUE, D58,IF($D$4= TRUE, D84,D110))) -> 25.5 | E116: 25 | F116: 24.6 | G116: 23.8 | H116: 23.9 | I116: 23.5 | J116: 23 | K116: 23 | L116: 23.6 | M116: 23.9 | N116: 23.6 | O116: 24
C117: ='1 Geographic Data'!A30 -> Rainfall [mm/month] | D117: ='1 Geographic Data'!B30 -> 45 | E117: ='1 Geographic Data'!C30 -> 33 | F117: ='1 Geographic Data'!D30 -> 69.3 | G117: ='1 Geographic Data'!E30 -> 142.8 | H117: ='1 Geographic Data'!F30 -> 109.8 | I117: ='1 Geographic Data'!G30 -> 38.1 | J117: ='1 Geographic Data'!H30 -> 27 | K117: ='1 Geographic Data'!I30 -> 21.6 | L117: ='1 Geographic Data'!J30 -> 18.3 | M117: ='1 Geographic Data'!K30 -> 48.3 | N117: ='1 Geographic Data'!L30 -> 97.2 | O117: ='1 Geographic Data'!M30 -> 86.1
A120: Calculation of crop water requiremnet and irrigation requirement
C122: Year | D122: ='Crop Calculation Sheet'!J11 -> 2020 | E122: ='Crop Calculation Sheet'!K11 -> 2020 | F122: ='Crop Calculation Sheet'!L11 -> 2020 | G122: ='Crop Calculation Sheet'!M11 -> 2020 | H122: ='Crop Calculation Sheet'!N11 -> 2020 | I122: ='Crop Calculation Sheet'!O11 -> 2020 | J122: ='Crop Calculation Sheet'!P11 -> 2020 | K122: ='Crop Calculation Sheet'!Q11 -> 2020 | L122: ='Crop Calculation Sheet'!R11 -> 2020 | M122: ='Crop Calculation Sheet'!S11 -> 2020 | N122: ='Crop Calculation Sheet'!T11 -> 2021 | O122: ='Crop Calculation Sheet'!U11 -> 2021
C123: Month of the year | D123: ='Crop Calculation Sheet'!J12 -> March | E123: ='Crop Calculation Sheet'!K12 -> April | F123: ='Crop Calculation Sheet'!L12 -> May | G123: ='Crop Calculation Sheet'!M12 -> June | H123: ='Crop Calculation Sheet'!N12 -> July | I123: ='Crop Calculation Sheet'!O12 -> August | J123: ='Crop Calculation Sheet'!P12 -> September | K123: ='Crop Calculation Sheet'!Q12 -> October | L123: ='Crop Calculation Sheet'!R12 -> November | M123: ='Crop Calculation Sheet'!S12 -> December | N123: ='Crop Calculation Sheet'!T12 -> January | O123: ='Crop Calculation Sheet'!U12 -> February
C124: Days per month | D124: ='Crop Calculation Sheet'!J14 -> 31 | E124: ='Crop Calculation Sheet'!K14 -> 30 | F124: ='Crop Calculation Sheet'!L14 -> 31 | G124: ='Crop Calculation Sheet'!M14 -> 30 | H124: ='Crop Calculation Sheet'!N14 -> 31 | I124: ='Crop Calculation Sheet'!O14 -> 31 | J124: ='Crop Calculation Sheet'!P14 -> 30 | K124: ='Crop Calculation Sheet'!Q14 -> 31 | L124: ='Crop Calculation Sheet'!R14 -> 30 | M124: ='Crop Calculation Sheet'!S14 -> 31 | N124: ='Crop Calculation Sheet'!T14 -> 31 | O124: ='Crop Calculation Sheet'!U14 -> 28
C125: =$C$115 -> Reference Evapotranspiration | D125: ='Crop Calculation Sheet'!J15 -> 5.21532 | E125: ='Crop Calculation Sheet'!K15 -> 5.30544 | F125: ='Crop Calculation Sheet'!L15 -> 5.31832 | G125: ='Crop Calculation Sheet'!M15 -> 5.2668 | H125: ='Crop Calculation Sheet'!N15 -> 5.2024 | I125: ='Crop Calculation Sheet'!O15 -> 5.2024 | J125: ='Crop Calculation Sheet'!P15 -> 5.27968 | K125: ='Crop Calculation Sheet'!Q15 -> 5.12838 | L125: ='Crop Calculation Sheet'!R15 -> 5.09112 | M125: ='Crop Calculation Sheet'!S15 -> 5.1408 | N125: ='Crop Calculation Sheet'!T15 -> 5.3271 | O125: ='Crop Calculation Sheet'!U15 -> 5.265
C126: =C116 -> Mean daily temperature [°C] | D126: =VLOOKUP($C$126,$C$114:$O$117,MATCH(D$123,$C$114:$O$114,0),FALSE) -> 24.6 | E126: 23.8 | F126: 23.9 | G126: 23.5 | H126: 23 | I126: 23 | J126: 23.6 | K126: 23.9 | L126: 23.6 | M126: 24 | N126: 25.5 | O126: 25
C127: =C117 -> Rainfall [mm/month] | D127: =VLOOKUP($C$127,$C$114:$O$117,MATCH(D$123,$C$114:$O$114,0),FALSE) -> 69.3 | E127: 142.8 | F127: 109.8 | G127: 38.1 | H127: 27 | I127: 21.6 | J127: 18.3 | K127: 48.3 | L127: 97.2 | M127: 86.1 | N127: 45 | O127: 33
C128: Effective rainfall [mm/month] | D128: =IF(D127<=70,IF(0.6*D127-10>0,0.6*D127-10,0),IF(0.8*D127-24>0,0.8*D127-24,0)) -> 31.58 | E128: 90.24 | F128: 63.84 | G128: 12.86 | H128: 6.2 | I128: 2.96 | J128: 0.98 | K128: 18.98 | L128: 53.76 | M128: 44.88 | N128: 17 | O128: 9.8
C129: Average daily effective rainfall [mm/day] | D129: =D128/D124 -> 1.018709677 | E129: =E128/E124 -> 3.008 | F129: 2.059354839 | G129: 0.4286666667 | H129: 0.2 | I129: 0.09548387097 | J129: 0.03266666667 | K129: 0.6122580645 | L129: 1.792 | M129: 1.447741935 | N129: 0.5483870968 | O129: 0.35
B132: Water Need | D132: =PROPER(D123) -> March | E132: =PROPER(E123) -> April | F132: May | G132: June | H132: July | I132: August | J132: September | K132: October | L132: November | M132: December | N132: January | O132: February
B133: mm/month | C133: =IF('Data Validation Sheet'!$H$12=TRUE,'Crop Calculation Sheet'!I19,0) -> Total Gross Irrigation | D133: =IF('Data Validation Sheet'!$H$12=TRUE,'Crop Calculation Sheet'!J19,0) -> 44.44444444 | E133: =IF('Data Validation Sheet'!$H$12=TRUE,'Crop Calculation Sheet'!K19,0) -> 111.1111111 | F133: =IF('Data Validation Sheet'!$H$12=TRUE,'Crop Calculation Sheet'!L19,0) -> 222.2222222 | G133: =IF('Data Validation Sheet'!$H$12=TRUE,'Crop Calculation Sheet'!M19,0) -> 188.8888889 | H133: =IF('Data Validation Sheet'!$H$12=TRUE,'Crop Calculation Sheet'!N19,0) -> 77.77777778 | I133: =IF('Data Validation Sheet'!$H$12=TRUE,'Crop Calculation Sheet'!O19,0) -> 0 | J133: =IF('Data Validation Sheet'!$H$12=TRUE,'Crop Calculation Sheet'!P19,0) -> 0 | K133: =IF('Data Validation Sheet'!$H$12=TRUE,'Crop Calculation Sheet'!Q19,0) -> 0 | L133: =IF('Data Validation Sheet'!$H$12=TRUE,'Crop Calculation Sheet'!R19,0) -> 0 | M133: =IF('Data Validation Sheet'!$H$12=TRUE,'Crop Calculation Sheet'!S19,0) -> 0 | N133: =IF('Data Validation Sheet'!$H$12=TRUE,'Crop Calculation Sheet'!T19,0) -> 0 | O133: =IF('Data Validation Sheet'!$H$12=TRUE,'Crop Calculation Sheet'!U19,0) -> 0 | P133: ="Area in "&'3 Irrigation Schedule'!$C$8 -> Area in acre | Q133: Actual Area in ha
B134: m3/month | C134: =C133 -> Total Gross Irrigation | D134: =D133*10*$Q$134 -> 179.8605631 | E134: 449.6514077 | F134: 899.3028155 | G134: 764.4073932 | H134: 314.7559854 | I134: 0 | J134: 0 | K134: 0 | L134: 0 | M134: 0 | N134: 0 | O134: 0 | P134: ='3 Irrigation Schedule'!$E$19 -> 1 | Q134: =P134/'3 Irrigation Schedule'!$E$8 -> 0.404686267
B135: mm/day | C135: =IF('Data Validation Sheet'!$H$12=TRUE,'Crop Calculation Sheet'!I20,0) -> Max Gross Irrigation per event | D135: =IF('Data Validation Sheet'!$H$12=TRUE,'Crop Calculation Sheet'!J20,0) -> 11.11111111 | E135: =IF('Data Validation Sheet'!$H$12=TRUE,'Crop Calculation Sheet'!K20,0) -> 11.11111111 | F135: =IF('Data Validation Sheet'!$H$12=TRUE,'Crop Calculation Sheet'!L20,0) -> 11.11111111 | G135: =IF('Data Validation Sheet'!$H$12=TRUE,'Crop Calculation Sheet'!M20,0) -> 11.11111111 | H135: =IF('Data Validation Sheet'!$H$12=TRUE,'Crop Calculation Sheet'!N20,0) -> 11.11111111 | I135: =IF('Data Validation Sheet'!$H$12=TRUE,'Crop Calculation Sheet'!O20,0) -> 0 | J135: =IF('Data Validation Sheet'!$H$12=TRUE,'Crop Calculation Sheet'!P20,0) -> 0 | K135: =IF('Data Validation Sheet'!$H$12=TRUE,'Crop Calculation Sheet'!Q20,0) -> 0 | L135: =IF('Data Validation Sheet'!$H$12=TRUE,'Crop Calculation Sheet'!R20,0) -> 0 | M135: =IF('Data Validation Sheet'!$H$12=TRUE,'Crop Calculation Sheet'!S20,0) -> 0 | N135: =IF('Data Validation Sheet'!$H$12=TRUE,'Crop Calculation Sheet'!T20,0) -> 0 | O135: =IF('Data Validation Sheet'!$H$12=TRUE,'Crop Calculation Sheet'!U20,0) -> 0
B136: m3/day | C136: =IF('Data Validation Sheet'!$H$12=TRUE,'Crop Calculation Sheet'!I20,0) -> Max Gross Irrigation per event | D136: =D135*10*$Q$134 -> 44.96514077 | E136: =E135*10*$Q$134 -> 44.96514077 | F136: 44.96514077 | G136: 44.96514077 | H136: 44.96514077 | I136: 0 | J136: =J135*10*$Q$134 -> 0 | K136: =K135*10*$Q$134 -> 0 | L136: =L135*10*$Q$134 -> 0 | M136: =M135*10*$Q$134 -> 0 | N136: =N135*10*$Q$134 -> 0 | O136: =O135*10*$Q$134 -> 0
C137: =IF('Data Validation Sheet'!$H$12=TRUE,'Crop Calculation Sheet'!I21,0) -> Irrigation days | D137: =IF('Data Validation Sheet'!$H$12=TRUE,'Crop Calculation Sheet'!J21,0) -> 4 | E137: =IF('Data Validation Sheet'!$H$12=TRUE,'Crop Calculation Sheet'!K21,0) -> 10 | F137: =IF('Data Validation Sheet'!$H$12=TRUE,'Crop Calculation Sheet'!L21,0) -> 20 | G137: =IF('Data Validation Sheet'!$H$12=TRUE,'Crop Calculation Sheet'!M21,0) -> 17 | H137: =IF('Data Validation Sheet'!$H$12=TRUE,'Crop Calculation Sheet'!N21,0) -> 7 | I137: =IF('Data Validation Sheet'!$H$12=TRUE,'Crop Calculation Sheet'!O21,0) -> 0 | J137: =IF('Data Validation Sheet'!$H$12=TRUE,'Crop Calculation Sheet'!P21,0) -> 0 | K137: =IF('Data Validation Sheet'!$H$12=TRUE,'Crop Calculation Sheet'!Q21,0) -> 0 | L137: =IF('Data Validation Sheet'!$H$12=TRUE,'Crop Calculation Sheet'!R21,0) -> 0 | M137: =IF('Data Validation Sheet'!$H$12=TRUE,'Crop Calculation Sheet'!S21,0) -> 0 | N137: =IF('Data Validation Sheet'!$H$12=TRUE,'Crop Calculation Sheet'!T21,0) -> 0 | O137: =IF('Data Validation Sheet'!$H$12=TRUE,'Crop Calculation Sheet'!U21,0) -> 0
B141: Irrigation Method | C141: Efficiency %
B143: Surface: Graded furrow | C143: 65
B144: Surface: with tailwater reuse | C144: 75
B145: Surface: Graded border/basins | C145: 65
B146: Sprinkler: Periodic move | C146: 75
B147: Sprinkler: Side roll | C147: 75
B148: Sprinkler: Moving big gun | C148: 65
B149: Center pivot: Impact heads with end gun | C149: 80
B150: Center pivot: Spray heads without end gun | C150: 90
B151: Center pivot: LEPA without end gun | C151: 95
B152: Lateral move: Spray heads with hose feed | C152: 90
B153: Lateral move: Spray heads with canal feed | C153: 85
B154: Microirrigation: Drip irrigation | C154: 90
B155: Microirrigation: Subsurface drip | C155: 90
B156: Microirrigation: Microspray | C156: 85
B157: Garden hose | C157: 70

Sheet Translate (hidden)
B2: =$C$16 -> Do not modify this sheet
B5: =$C$17 -> Reference Row
B6: =$C$18 -> Selected Language: | C6: ='READ ME'!$G$11 -> English | D6: English | E6: Français | F6: Español | G6: العربية | H6: Deutsch
B7: =$C$19 -> Sheet name | C7: =HLOOKUP($C$6,$D$6:$H$148,ROW()-ROW($B$5),FALSE) -> READ ME | D7: READ ME | E7: Lisez Moi
C8: 1 Geographic Data | D8: 1 Geographic Data | E8: 1 Données géographiques
C9: 2 Soil Texture Calculator | D9: 2 Soil Texture Calculator | E9: 2 Calculateur de texture du sol
C10: 3 Irrigation Schedule | D10: 3 Irrigation Schedule | E10: 3 Programmation de l’irrigation
C11: 4 Summary | D11: 4 Summary | E11: 4 Bilan
C12: 5 How this tool works | D12: 5 How this tool works | E12: 5 Comment ça fonctionne
C13: Crop Information | D13: Crop Information | E13: Information sur les cultures
C14: Translate | D14: Translate | E14: Traduire
B16: =$C$14 -> Translate | C16: =HLOOKUP($C$6,$D$6:$H$148,ROW()-ROW($B$5),FALSE) -> Do not modify this sheet | D16: Do not modify this sheet | E16: Ne modifiez pas cette feuille
C17: =HLOOKUP($C$6,$D$6:$H$148,ROW()-ROW($B$5),FALSE) -> Reference Row | D17: Reference Row | E17: Ligne de référence
C18: =HLOOKUP($C$6,$D$6:$H$148,ROW()-ROW($B$5),FALSE) -> Selected Language: | D18: Selected Language: | E18: Langue sélectionnée:
C19: =HLOOKUP($C$6,$D$6:$H$148,ROW()-ROW($B$5),FALSE) -> Sheet name | D19: Sheet name | E19: Nom de la feuille
B21: =$C$7 -> READ ME | C21: =HLOOKUP($C$6,$D$6:$H$148,ROW()-ROW($B$5),FALSE) -> Select language | D21: Select language | E21: Sélectionner la langue
C22: Read Me Sheet | D22: Read Me Sheet | E22: Feuille Lisez-moi
C23: IRRIGATE – Soil Tool | D23: IRRIGATE – Soil Tool | E23: IRRIGUER – Outil "Sol"
C24: Introduction | D24: Introduction | E24: Introduction
C25: This tool serves to determine your soil profile and to find an irrigation schedule for a selected crop. It complements the "SAFEGUARD WATER – Water Requirement Tool". A further complimentary tool is available under: | D25: This tool serves to determine your soil profile and to find an irrigation schedule for a selected crop. It complements the "SAFEGUARD WATER – Water Requirement Tool". A further complimentary tool is available under: | E25: Cet outil vous aide déterminer le profil de votre sol et trouver un calendrier d'irrigation pour une culture sélectionnée. Il complète le "PRÉSERVER L'EAU - Outil d'évaluation des besoins en eau". Un autre outil complémentaire est disponible sous :
C26: Tips & Tricks | D26: Tips & Tricks | E26: Conseils et Astuces
C27: ● Make sure that macro is always enabled for the proper functioning of this tool | D27: ● Make sure that macro is always enabled for the proper functioning of this tool | E27: ● Assurez-vous que les macros sont toujours activées pour le bon fonctionnement de cet outil
C28: ● Only enter values into white cells | D28: ● Only enter values into white cells | E28: ● Saisissez des valeurs uniquement dans les cellules blanches
C29: ● This tool comprises drop down lists and macros to simplify data entry and results review. | D29: ● This tool comprises drop down lists and macros to simplify data entry and results review. | E29: ● Cet outil contient des listes déroulantes et des macros pour simplifier la saisie des données et la présentation des résultats.
C30: ● For the multilanguage option to work properly, do NOT delete sheets | D30: ● For the multilanguage option to work properly, do NOT delete sheets | E30: ● Pour que l'option multilingue fonctionne correctement, ne supprimez PAS les feuilles
C31: ● Make sure that this file is always saved as ".xlsm" | D31: ● Make sure that this file is always saved as ".xlsm" | E31: ● Assurez-vous que ce fichier est toujours enregistré sous ".xlsm"
C32: Overview | D32: Overview | E32: Aperçu
C33: This tool comprises the following sheet: | D33: This tool comprises the following sheet: | E33: Cet outil est composé des feuilles suivantes:
C34: for adding basic site information and entering climatic data | D34: for adding basic site information and entering climatic data | E34: pour ajouter des informations de base sur le site et entrer les données climatique
C35: for calculation of your soil type | D35: for calculation of your soil type | E35: pour le calcul de votre type de sol
C36: for selecting a crop and planting period; for automatic calculation of water requirement for a single crop; for calculation of an irrigation schedule | D36: for selecting a crop and planting period; for automatic calculation of water requirement for a single crop; for calculation of an irrigation schedule | E36: pour le choix d'une culture et d'une période de plantation ; pour le calcul automatique des besoins en eau d'une seule culture ; pour le calcul d'un programme d'irrigation
C37: Summary of ourputs for irrigation quantity, frequency and water storage requirements | D37: Summary of ourputs for irrigation quantity, frequency and water storage requirements | E37: Résumé des apports pour la quantité, la fréquence et les besoins de stockage de l'eau d'irrigation
C38: for understanding the way this tool works and on which data it is based on | D38: for understanding the way this tool works and on which data it is based on | E38: pour comprendre le fonctionnement de l'outil Sols & Irrigation
C39: for adjusting and adding the necessary crops information | D39: for adjusting and adding the necessary crops information | E39: pour ajuster et ajouter les informations nécessaires sur les cultures
C40: This tool is based on the FAO Irrigation and Drainage Paper No. 56. Crop Evapotranspiration (guidelines for computing crop water requirements), available at: | D40: This tool is based on the FAO Irrigation and Drainage Paper No. 56. Crop Evapotranspiration (guidelines for computing crop water requirements), available at: | E40: Cet outil est basé sur le document n° 56 de la FAO sur l'irrigation et le drainage. Evapotranspiration des cultures (directives pour le calcul des besoins en eau des cultures), disponible sur:
C41: About | D41: About | E41: En savoir plus
C42: Published by: | D42: Published by: | E42: Publié par:
C43: Resposible: | D43: Resposible: | E43: Responsables:
C44: Contact: | D44: Contact: | E44: Contact:
C45: Download link: | D45: Download link: | E45: Lien de téléchargement:
C46: About: | D46: About: | E46: À propos de:
C47: Version: | D47: Version: | E47: Version:
C48: GIZ & FAO | D48: GIZ & FAO | E48: GIZ et FAO
C49: GIZ project Sustainable Energy for Food - Powering Agriculture | D49: GIZ project Sustainable Energy for Food - Powering Agriculture | E49: Projet de la GIZ « Énergie durable pour l’alimentation – Propulser l’agriculture » (Sustainable Energy for Food - Powering Agriculture)
C50: Powering Agriculture: An Energy Grand Challenge for Development. Available at: | D50: Powering Agriculture: An Energy Grand Challenge for Development. Available at: | E50: Propulser l’agriculture : un grand défi énergétique pour le développement. Disponible à l’adresse :
C51: 2.0 (July 2020) | D51: 2.0 (July 2020) | E51: 2.0 (Juillet 2020)
C52: The Toolbox on Solar Powered Irrigation Systems is made possible through the global initiative Powering Agriculture: An Energy Grand Challenge for Development (PAEGC). In 2012, the United States Agency for International Development (USAID), the Swedish International Development Cooperation Agency (Sida), the German Federal Ministry for Economic Cooperation and Development (BMZ), Duke Energy, and the Overseas Private Investment Cooperation (OPIC) combined resources to create the PAEGC initiative. The objective of PAEGC is to support new and sustainable approaches to accelerate the development and deployment of clean energy solutions for increasing agriculture productivity and/or value for farmers and agribusinesses in developing countries and emerging regions that lack access to reliable, affordable clean energy. | D52: The Toolbox on Solar Powered Irrigation Systems is made possible through the global initiative Powering Agriculture: An Energy Grand Challenge for Development (PAEGC). In 2012, the United States Agency for International Development (USAID), the Swedish International Development Cooperation Agency (Sida), the German Federal Ministry for Economic Cooperation and Development (BMZ), Duke Energy, and the Overseas Private Investment Cooperation (OPIC) combined resources to create the PAEGC initiative. The objective of PAEGC is to support new and sustainable approaches to accelerate the development and deployment of clean energy solutions for increasing agriculture productivity and/or value for farmers and agribusinesses in developing countries and emerging regions that lack access to reliable, affordable clean energy. | E52: La boîte à outils pour les systèmes d’irrigation à énergie solaire (Solar Powered Irrigation Systems, SPIS) est rendue possible grâce à l’initiative mondiale « Propulser l’agriculture : un grand défi énergétique pour le développement » (Powering Agriculture: An Energy Grand Challenge for Development – PAEGC). En 2012, l’Agence des États-Unis pour le développement international (USAID), l’Agence suédoise de coopération internationale au développement (SIDA), le ministère fédéral allemand de la Coopération économique et du Développement (BMZ), Duke Energy et l’Overseas Private Investment Cooperation (OPIC) ont mis leurs ressources en commun pour créer l’initiative PAEGC. Cette initiative a pour objectif d’appuyer de nouvelles approches durables afin d’accélérer le développement et le déploiement de solutions énergétiques propres visant à accroître la productivité et/ou la valeur agricole pour les agriculteurs et les agroindustries dans les pays en développement et dans les régions émergentes qui n’ont pas accès à une énergie abordable, fiable et propre.
C53: The designations employed and the presentation of material in this information product do not imply the expression of any opinion whatsoever on the part of Deutsche Gesellschaft für Internationale Zusammenarbeit (GIZ) GmbH, Food and Agriculture Organization of the United Nations (FAO) or any of the PAEGC Founding Partners concerning the legal or development status of any country, territory, city or area or of its authorities, or concerning the delimitation of its frontiers or boundaries. The mention of specific companies or products of manufacturers, whether or not these have been patented, does not imply that these have been endorsed or recommended by GIZ, FAO, or any of the PAEGC Founding Partners in preference to others of a similar nature that are not mentioned. The views expressed in this information product are those of the author and do not necessarily reflect the views or policies of GIZ, FAO, or any of the PAEGC Founding Partners. | D53: The designations employed and the presentation of material in this information product do not imply the expression of any opinion whatsoever on the part of Deutsche Gesellschaft für Internationale Zusammenarbeit (GIZ) GmbH, Food and Agriculture Organization of the United Nations (FAO) or any of the PAEGC Founding Partners concerning the legal or development status of any country, territory, city or area or of its authorities, or concerning the delimitation of its frontiers or boundaries. The mention of specific companies or products of manufacturers, whether or not these have been patented, does not imply that these have been endorsed or recommended by GIZ, FAO, or any of the PAEGC Founding Partners in preference to others of a similar nature that are not mentioned. The views expressed in this information product are those of the author and do not necessarily reflect the views or policies of GIZ, FAO, or any of the PAEGC Founding Partners. | E53: Les appellations employées dans ce produit d’information et la présentation des documents qui y figurent n’impliquent de la part de la Deutsche Gesellschaft für Internationale Zusammenarbeit (GIZ) GmbH, de l’Organisation des Nations unies pour l’alimentation et l’agriculture (FAO) ou de l’un des partenaires fondateurs de l’initiative PAEGC aucune prise de position quant au statut juridique ou au stade de développement des pays, territoires, villes ou zones ou de leurs autorités, ni quant au tracé de leurs frontières ou limites. La mention de sociétés déterminées ou de produits de fabricants, qu’ils soient ou non brevetés, n’entraîne de la part de la GIZ, de la FAO ou de l’un des partenaires fondateurs du PAEGC aucune approbation ou recommandation desdits produits de préférence à d’autres de nature analogue qui ne sont pas cités. Les opinions exprimées dans ce produit d’information sont celles des auteurs et ne reflètent pas nécessairement celles de la GIZ, de la FAO, ou de l’un des partenaires fondateurs du PAEGC.
C54: GIZ, FAO and the PAEGC Founding Partners encourage the use, reproduction and dissemination of material in this information product. Except where otherwise indicated, material may be copied, downloaded and printed for private study, research and teaching purposes, or for use in non-commercial products or services, provided that appropriate acknowledgement of GIZ and FAO as the source and copyright holder is given. | D54: GIZ, FAO and the PAEGC Founding Partners encourage the use, reproduction and dissemination of material in this information product. Except where otherwise indicated, material may be copied, downloaded and printed for private study, research and teaching purposes, or for use in non-commercial products or services, provided that appropriate acknowledgement of GIZ and FAO as the source and copyright holder is given. | E54: La GIZ, la FAO et les partenaires fondateurs du PAEGC encouragent l’utilisation, la reproduction et la diffusion des informations contenues dans ce document. Sauf indication contraire, ces dernières peuvent être copiées, téléchargées et imprimées à des fins privées d’étude, de recherche et d’enseignement, ou pour être utilisées dans des produits ou services non commerciaux, à condition que la GIZ et la FAO soient clairement indiquées en tant que sources des informations et détentrices du droit d’auteur.
C55: © GIZ and FAO, 2020 | D55: © GIZ and FAO, 2020 | E55: © GIZ et FAO, 2020
B57: =$C$8 -> 1 Geographic Data | C57: =HLOOKUP($C$6,$D$6:$H$148,ROW()-ROW($B$5),FALSE) -> January | D57: January | E57: Janvier | F57: Enero | G57: يناير | H57: Januar
C58: =HLOOKUP($C$6,$D$6:$H$148,ROW()-ROW($B$5),FALSE) -> February | D58: February | E58: Février | F58: Febrero | G58: فبراير | H58: Februar
C59: March | D59: March | E59: Mars | F59: Marzo | G59: مارس | H59: März
C60: April | D60: April | E60: Avril | F60: Abril | G60: أبريل | H60: April
C61: May | D61: May | E61: Mai | F61: Mayo | G61: مايو | H61: Mai
C62: June | D62: June | E62: Juin | F62: Junio | G62: يونيو | H62: Juni
C63: July | D63: July | E63: Juillet | F63: Julio | G63: يوليه | H63: Juli
C64: August | D64: August | E64: Août | F64: Agosto | G64: أغسطس | H64: August
C65: September | D65: September | E65: Septembre | F65: Septiembre | G65: سبتمبر | H65: September
C66: October | D66: October | E66: Octobre | F66: Octubre | G66: أكتوبر | H66: Oktober
C67: November | D67: November | E67: Novembre | F67: Noviembre | G67: نوفمبر | H67: November
C68: December | D68: December | E68: Décembre | F68: Diciembre | G68: ديسمبر | H68: Dezember
C69: 0
C70: 0
B71: =$C$9 -> 2 Soil Texture Calculator | C71: 0
C72: 0
C73: 0
B74: =$C$10 -> 3 Irrigation Schedule | C74: 0
C75: 0
B76: =$C$11 -> 4 Summary | C76: 0
C77: 0
B78: =$C$12 -> 5 How this tool works | C78: 0
C79: 0
B80: =$C$13 -> Crop Information | C80: 0
C81: 0
C82: 0
C83: 0
C84: 0
C85: 0
C86: 0
C87: 0
C89: =HLOOKUP($C$6,$D$6:$H$148,ROW()-ROW($B$5),FALSE) -> 0
C90: 0
C91: 0
C92: 0
C93: 0
C94: 0
C95: 0
C96: 0
C97: 0
C98: 0
C99: 0
C100: 0
C101: 0
C102: 0

Sheet Soil Information-Calculations (hidden)
D2: Soil texture calculation
D3: Status | E3: Soil Type | F3: Formula
D4: =IFERROR(IF('2 Soil Texture Calculator'!$E$16+1.5*'2 Soil Texture Calculator'!$E$13<0.15,TRUE,FALSE),"") -> FALSE | E4: SAND | F4: ((silt + 1.5*clay) < 15)
D5: =IFERROR(IF(AND('2 Soil Texture Calculator'!$E$16+1.5*'2 Soil Texture Calculator'!$E$13>=0.15, '2 Soil Texture Calculator'!$E$16+2*'2 Soil Texture Calculator'!$E$13<0.3), TRUE,FALSE),"") -> FALSE | E5: LOAMY SAND | F5: ((silt + 1.5*clay >= 15) && (silt + 2*clay < 30))
D6: =IFERROR(IF(OR(AND('2 Soil Texture Calculator'!$E$13>=0.07, '2 Soil Texture Calculator'!$E$13<0.2,'2 Soil Texture Calculator'!$E$10>0.52,'2 Soil Texture Calculator'!$E$16+2*'2 Soil Texture Calculator'!$E$13>=0.3), AND('2 Soil Texture Calculator'!$E$13<0.07, '2 Soil Texture Calculator'!$E$16<0.5, '2 Soil Texture Calculator'!$E$16+2*'2 Soil Texture Calculator'!$E$13>=0.3)), TRUE,FALSE),"") -> FALSE | E6: SANDY LOAM | F6: ((clay >= 7 && clay < 20) && (sand > 52) && ((silt + 2*clay) >= 30) || (clay < 7 && silt < 50 && (silt+2*clay)>=30))
D7: =IFERROR(IF(AND('2 Soil Texture Calculator'!$E$13>=0.07, '2 Soil Texture Calculator'!$E$13<0.27, '2 Soil Texture Calculator'!$E$16>=0.28, '2 Soil Texture Calculator'!$E$16<0.5, '2 Soil Texture Calculator'!$E$10<=0.52), TRUE,FALSE),"") -> FALSE | E7: LOAM | F7: ((clay >= 7 && clay < 27) && (silt >= 28 && silt < 50) && (sand <= 52))
D8: =IFERROR(IF(OR(AND('2 Soil Texture Calculator'!$E$16>=0.5, '2 Soil Texture Calculator'!$E$13>=0.12,'2 Soil Texture Calculator'!$E$13<0.27), AND('2 Soil Texture Calculator'!$E$16>=0.5,'2 Soil Texture Calculator'!$E$16<0.8,'2 Soil Texture Calculator'!$E$13<0.12)), TRUE,FALSE),"") -> TRUE | E8: SILT LOAM | F8: ((silt >= 50 && (clay >= 12 && clay < 27)) || ((silt >= 50 && silt < 80) && clay < 12))
D9: =IFERROR(IF(AND('2 Soil Texture Calculator'!$E$16>=0.8, '2 Soil Texture Calculator'!$E$13<0.12), TRUE,FALSE),"") -> FALSE | E9: SILT | F9: (silt >= 80 && clay < 12)
D10: =IFERROR(IF(AND('2 Soil Texture Calculator'!$E$13>=0.2, '2 Soil Texture Calculator'!$E$13<0.35, '2 Soil Texture Calculator'!$E$16<0.28, '2 Soil Texture Calculator'!$E$10>0.45), TRUE,FALSE),"") -> FALSE | E10: SANDY CLAY LOAM | F10: ((clay >= 20 && clay < 35) && (silt < 28) && (sand > 45))
D11: =IFERROR(IF(AND('2 Soil Texture Calculator'!$E$13>=0.27, '2 Soil Texture Calculator'!$E$13<0.4, '2 Soil Texture Calculator'!$E$10>0.2, '2 Soil Texture Calculator'!$E$10<=0.45), TRUE,FALSE),"") -> FALSE | E11: CLAY LOAM | F11: ((clay >= 27 && clay < 40) && (sand > 20 && sand <= 45))
D12: =IFERROR(IF(AND('2 Soil Texture Calculator'!$E$13>=0.27, '2 Soil Texture Calculator'!$E$13<0.4, '2 Soil Texture Calculator'!$E$10<=0.2), TRUE,FALSE),"") -> FALSE | E12: SILTY CLAY LOAM | F12: ((clay >= 27 && clay < 40) && (sand <= 20))
D13: =IFERROR(IF(AND('2 Soil Texture Calculator'!$E$13>=0.35, '2 Soil Texture Calculator'!$E$10>0.45), TRUE,FALSE),"") -> FALSE | E13: SANDY CLAY | F13: (clay >= 35 && sand > 45)
D14: =IFERROR(IF(AND('2 Soil Texture Calculator'!$E$13>=0.4, '2 Soil Texture Calculator'!$E$16>=0.4), TRUE,FALSE),"") -> FALSE | E14: SILTY CLAY | F14: (clay >= 40 && silt >= 40)
D15: =IFERROR(IF(AND('2 Soil Texture Calculator'!$E$13>=0.4, '2 Soil Texture Calculator'!$E$10<=0.45,'2 Soil Texture Calculator'!$E$16<0.4), TRUE,FALSE),"") -> FALSE | E15: CLAY | F15: (clay >= 40 && sand <= 45 && silt < 40)
D17: Soil texture chart Identifier
D18: =(1.095-('2 Soil Texture Calculator'!$E$10*0.0104*100))-((0.52)*(0.0099*'2 Soil Texture Calculator'!$E$13*100)) -> 0.8103 | E18: =0.145+(0.0099*'2 Soil Texture Calculator'!$E$13*100) -> 0.3925
B21: Soil water content
B22: Texture | C22: FC (v%) | D22: PWP (v%) | E22: Max infiltration (mm/h)
B23: Sand | C23: 10 | D23: 5 | E23: 40
B24: Loamy sand | C24: 12 | D24: 5 | E24: 30
B25: Sandy loam | C25: 18 | D25: 8 | E25: 30
B26: Sandy clay loam | C26: 27 | D26: 17 | E26: 30
B27: Loam | C27: 28 | D27: 14 | E27: 30
B28: Sandy clay | C28: 36 | D28: 25 | E28: 30
B29: Silt loam | C29: 31 | D29: 11 | E29: 20
B30: Silt | C30: 30 | D30: 6 | E30: 20
B31: Clay loam | C31: 36 | D31: 22 | E31: 20
B32: Silty clay loam | C32: 38 | D32: 22 | E32: 20
B33: Silty clay | C33: 41 | D33: 27 | E33: 10
B34: Clay | C34: 42 | D34: 30 | E34: 10
B37: Initial water content
B38: 0
B39: 0.25
B40: 0.5
B41: 0.75
B42: 1

Sheet Data Validation Sheet (hidden)
A1: Area Conversion | B1: ha | C1: 1 | I1: Crop Data Validation | K1: Calendar | L1: =COUNTIF($M$2:$M$211,"?*") -> 1
B2: acre | C2: 2.47105 | J2: =IF(ISNUMBER(SEARCH('3 Irrigation Schedule'!$B$19,K2)),MAX($J$1:J1)+1,0) -> 0 | K2: ='Crop Information'!B7 -> none | L2: =OFFSET($M$2,,,COUNTIF($M$2:$M$211,"?*")) -> Maize (grain - Oct - India (dry, cool)) | M2: =IFERROR(VLOOKUP(ROWS($M$2:M2),$J$2:$K$763,2,FALSE),"") -> Maize (grain - Oct - India (dry, cool))
B3: Sq. km | C3: 0.01 | J3: =IF(ISNUMBER(SEARCH('3 Irrigation Schedule'!$B$19,K3)),MAX($J$1:J2)+1,0) -> 0 | K3: ='Crop Information'!B8 -> Alfalfa (1st cutting cycle - Jan/Apr - USA) | M3: =IFERROR(VLOOKUP(ROWS($M$2:M3),$J$2:$K$763,2,FALSE),"") -> 
B4: Sq. m | C4: 10000 | J4: =IF(ISNUMBER(SEARCH('3 Irrigation Schedule'!$B$19,K4)),MAX($J$1:J3)+1,0) -> 0 | K4: ='Crop Information'!B9 -> Alfalfa (other cutting cycle - Mar/Jun - USA) | M4: =IFERROR(VLOOKUP(ROWS($M$2:M4),$J$2:$K$763,2,FALSE),"") -> 
B5: Sq. yard | C5: 11959.9 | J5: =IF(ISNUMBER(SEARCH('3 Irrigation Schedule'!$B$19,K5)),MAX($J$1:J4)+1,0) -> 0 | K5: ='Crop Information'!B10 -> Alfalfa (seeds - Mar/Jun - USA) | M5: =IFERROR(VLOOKUP(ROWS($M$2:M5),$J$2:$K$763,2,FALSE),"") -> 
B6: Sq. ft | C6: 107639 | J6: =IF(ISNUMBER(SEARCH('3 Irrigation Schedule'!$B$19,K6)),MAX($J$1:J5)+1,0) -> 0 | K6: ='Crop Information'!B11 -> Almond (no ground cover - Apr - USA) | M6: =IFERROR(VLOOKUP(ROWS($M$2:M6),$J$2:$K$763,2,FALSE),"") -> 
J7: =IF(ISNUMBER(SEARCH('3 Irrigation Schedule'!$B$19,K7)),MAX($J$1:J6)+1,0) -> 0 | K7: ='Crop Information'!B12 -> Artichoke (1st year - Apr - California) | M7: =IFERROR(VLOOKUP(ROWS($M$2:M7),$J$2:$K$763,2,FALSE),"") -> 
J8: =IF(ISNUMBER(SEARCH('3 Irrigation Schedule'!$B$19,K8)),MAX($J$1:J7)+1,0) -> 0 | K8: ='Crop Information'!B13 -> Artichoke (2nd year - May - cut in May) | M8: =IFERROR(VLOOKUP(ROWS($M$2:M8),$J$2:$K$763,2,FALSE),"") -> 
J9: =IF(ISNUMBER(SEARCH('3 Irrigation Schedule'!$B$19,K9)),MAX($J$1:J8)+1,0) -> 0 | K9: ='Crop Information'!B14 -> Asparagus (Feb - warm winter) | M9: =IFERROR(VLOOKUP(ROWS($M$2:M9),$J$2:$K$763,2,FALSE),"") -> 
J10: =IF(ISNUMBER(SEARCH('3 Irrigation Schedule'!$B$19,K10)),MAX($J$1:J9)+1,0) -> 0 | K10: ='Crop Information'!B15 -> Asparagus (Feb - Mediterranean) | M10: =IFERROR(VLOOKUP(ROWS($M$2:M10),$J$2:$K$763,2,FALSE),"") -> 
A11: Validation | B11: ='3 Irrigation Schedule'!$B$17 -> Crop to be irrigated | C11: ='3 Irrigation Schedule'!$E$17 -> Area in acre | D11: ='3 Irrigation Schedule'!$G$17 -> Planting date | E11: ='3 Irrigation Schedule'!$I$17 -> Irrigation method | F11: ='3 Irrigation Schedule'!$B$25 -> Soil: | G11: ='3 Irrigation Schedule'!$N$17 -> Maximum possible irrigation applicatiom | H11: Available Crop-Soil | J11: =IF(ISNUMBER(SEARCH('3 Irrigation Schedule'!$B$19,K11)),MAX($J$1:J10)+1,0) -> 0 | K11: ='Crop Information'!B16 -> Avocado (Jan - Florida, USA) | M11: =IFERROR(VLOOKUP(ROWS($M$2:M11),$J$2:$K$763,2,FALSE),"") -> 
B12: =AND('3 Irrigation Schedule'!$B$19<>"none",'3 Irrigation Schedule'!$B$19<>"") -> TRUE | C12: =AND('3 Irrigation Schedule'!$E$19<>0,'3 Irrigation Schedule'!$E$19<>"") -> TRUE | D12: =IFERROR(AND('3 Irrigation Schedule'!$G$19<>0,'3 Irrigation Schedule'!$G$19<>""),FALSE) -> TRUE | E12: ='3 Irrigation Schedule'!$I$19<>"" -> TRUE | F12: ='3 Irrigation Schedule'!$C$25<>"" -> TRUE | G12: ='3 Irrigation Schedule'!$P$19<>"" -> TRUE | H12: =AND(B12,C12,D12,E12,F12,G12) -> TRUE | J12: =IF(ISNUMBER(SEARCH('3 Irrigation Schedule'!$B$19,K12)),MAX($J$1:J11)+1,0) -> 0 | K12: ='Crop Information'!B17 -> Banana (1st year - Mar - Mediterranean) | M12: =IFERROR(VLOOKUP(ROWS($M$2:M12),$J$2:$K$763,2,FALSE),"") -> 
J13: =IF(ISNUMBER(SEARCH('3 Irrigation Schedule'!$B$19,K13)),MAX($J$1:J12)+1,0) -> 0 | K13: ='Crop Information'!B18 -> Banana (1st year - Mar - subtropical/humid/light to moderate wind) | M13: =IFERROR(VLOOKUP(ROWS($M$2:M13),$J$2:$K$763,2,FALSE),"") -> 
J14: =IF(ISNUMBER(SEARCH('3 Irrigation Schedule'!$B$19,K14)),MAX($J$1:J13)+1,0) -> 0 | K14: ='Crop Information'!B19 -> Banana (1st year - Mar - subtropical/tropical) | M14: =IFERROR(VLOOKUP(ROWS($M$2:M14),$J$2:$K$763,2,FALSE),"") -> 
J15: =IF(ISNUMBER(SEARCH('3 Irrigation Schedule'!$B$19,K15)),MAX($J$1:J14)+1,0) -> 0 | K15: ='Crop Information'!B20 -> Banana (2nd year - Mar - Mediterranean) | M15: =IFERROR(VLOOKUP(ROWS($M$2:M15),$J$2:$K$763,2,FALSE),"") -> 
J16: =IF(ISNUMBER(SEARCH('3 Irrigation Schedule'!$B$19,K16)),MAX($J$1:J15)+1,0) -> 0 | K16: ='Crop Information'!B21 -> Banana (2nd year - Feb - subtropical/tropical) | M16: =IFERROR(VLOOKUP(ROWS($M$2:M16),$J$2:$K$763,2,FALSE),"") -> 
J17: =IF(ISNUMBER(SEARCH('3 Irrigation Schedule'!$B$19,K17)),MAX($J$1:J16)+1,0) -> 0 | K17: ='Crop Information'!B22 -> Barley/Oats/Wheat (Nov - central India) | M17: =IFERROR(VLOOKUP(ROWS($M$2:M17),$J$2:$K$763,2,FALSE),"") -> 
J18: =IF(ISNUMBER(SEARCH('3 Irrigation Schedule'!$B$19,K18)),MAX($J$1:J17)+1,0) -> 0 | K18: ='Crop Information'!B23 -> Barley/Oats/Wheat (Mar/Apr - 35/45 °L)) | M18: =IFERROR(VLOOKUP(ROWS($M$2:M18),$J$2:$K$763,2,FALSE),"") -> 
J19: =IF(ISNUMBER(SEARCH('3 Irrigation Schedule'!$B$19,K19)),MAX($J$1:J18)+1,0) -> 0 | K19: ='Crop Information'!B24 -> Barley/Oats/Wheat (Jul - East Africa) | M19: =IFERROR(VLOOKUP(ROWS($M$2:M19),$J$2:$K$763,2,FALSE),"") -> 
J20: =IF(ISNUMBER(SEARCH('3 Irrigation Schedule'!$B$19,K20)),MAX($J$1:J19)+1,0) -> 0 | K20: ='Crop Information'!B25 -> Barley/Oats/Wheat (Nov) | M20: =IFERROR(VLOOKUP(ROWS($M$2:M20),$J$2:$K$763,2,FALSE),"") -> 
J21: =IF(ISNUMBER(SEARCH('3 Irrigation Schedule'!$B$19,K21)),MAX($J$1:J20)+1,0) -> 0 | K21: ='Crop Information'!B26 -> Barley/Oats/Wheat (Dec - California desert) | M21: =IFERROR(VLOOKUP(ROWS($M$2:M21),$J$2:$K$763,2,FALSE),"") -> 
J22: =IF(ISNUMBER(SEARCH('3 Irrigation Schedule'!$B$19,K22)),MAX($J$1:J21)+1,0) -> 0 | K22: ='Crop Information'!B27 -> Beans (dry - May/Jun - central climates) | M22: =IFERROR(VLOOKUP(ROWS($M$2:M22),$J$2:$K$763,2,FALSE),"") -> 
J23: =IF(ISNUMBER(SEARCH('3 Irrigation Schedule'!$B$19,K23)),MAX($J$1:J22)+1,0) -> 0 | K23: ='Crop Information'!B28 -> Beans (dry - Jun - Pakistan/California) | M23: =IFERROR(VLOOKUP(ROWS($M$2:M23),$J$2:$K$763,2,FALSE),"") -> 
J24: =IF(ISNUMBER(SEARCH('3 Irrigation Schedule'!$B$19,K24)),MAX($J$1:J23)+1,0) -> 0 | K24: ='Crop Information'!B29 -> Beans (dry - Jun - Idaho) | M24: =IFERROR(VLOOKUP(ROWS($M$2:M24),$J$2:$K$763,2,FALSE),"") -> 
J25: =IF(ISNUMBER(SEARCH('3 Irrigation Schedule'!$B$19,K25)),MAX($J$1:J24)+1,0) -> 0 | K25: ='Crop Information'!B30 -> Beans (green - Feb/Mar - California/Mediterranean) | M25: =IFERROR(VLOOKUP(ROWS($M$2:M25),$J$2:$K$763,2,FALSE),"") -> 
J26: =IF(ISNUMBER(SEARCH('3 Irrigation Schedule'!$B$19,K26)),MAX($J$1:J25)+1,0) -> 0 | K26: ='Crop Information'!B31 -> Beans (green - Aug/Sep - California/Egypt/Lebanon) | M26: =IFERROR(VLOOKUP(ROWS($M$2:M26),$J$2:$K$763,2,FALSE),"") -> 
J27: =IF(ISNUMBER(SEARCH('3 Irrigation Schedule'!$B$19,K27)),MAX($J$1:J26)+1,0) -> 0 | K27: ='Crop Information'!B32 -> Beets (table - Apr/May - Mediterranean) | M27: =IFERROR(VLOOKUP(ROWS($M$2:M27),$J$2:$K$763,2,FALSE),"") -> 
J28: =IF(ISNUMBER(SEARCH('3 Irrigation Schedule'!$B$19,K28)),MAX($J$1:J27)+1,0) -> 0 | K28: ='Crop Information'!B33 -> Beets (table - Feb/Mar - Mediterranean/Arid) | M28: =IFERROR(VLOOKUP(ROWS($M$2:M28),$J$2:$K$763,2,FALSE),"") -> 
J29: =IF(ISNUMBER(SEARCH('3 Irrigation Schedule'!$B$19,K29)),MAX($J$1:J28)+1,0) -> 0 | K29: ='Crop Information'!B34 -> Broccoli (Sept - California desert) | M29: =IFERROR(VLOOKUP(ROWS($M$2:M29),$J$2:$K$763,2,FALSE),"") -> 
J30: =IF(ISNUMBER(SEARCH('3 Irrigation Schedule'!$B$19,K30)),MAX($J$1:J29)+1,0) -> 0 | K30: ='Crop Information'!B35 -> Cabbage (Sept - California desert) | M30: =IFERROR(VLOOKUP(ROWS($M$2:M30),$J$2:$K$763,2,FALSE),"") -> 
J31: =IF(ISNUMBER(SEARCH('3 Irrigation Schedule'!$B$19,K31)),MAX($J$1:J30)+1,0) -> 0 | K31: ='Crop Information'!B36 -> Cantaloupe (Jan - California ) | M31: =IFERROR(VLOOKUP(ROWS($M$2:M31),$J$2:$K$763,2,FALSE),"") -> 
J32: =IF(ISNUMBER(SEARCH('3 Irrigation Schedule'!$B$19,K32)),MAX($J$1:J31)+1,0) -> 0 | K32: ='Crop Information'!B37 -> Cantaloupe (Aug - California ) | M32: =IFERROR(VLOOKUP(ROWS($M$2:M32),$J$2:$K$763,2,FALSE),"") -> 
J33: =IF(ISNUMBER(SEARCH('3 Irrigation Schedule'!$B$19,K33)),MAX($J$1:J32)+1,0) -> 0 | K33: ='Crop Information'!B38 -> Carrots (Oct/Jan - Arid climate ) | M33: =IFERROR(VLOOKUP(ROWS($M$2:M33),$J$2:$K$763,2,FALSE),"") -> 
J34: =IF(ISNUMBER(SEARCH('3 Irrigation Schedule'!$B$19,K34)),MAX($J$1:J33)+1,0) -> 0 | K34: ='Crop Information'!B39 -> Carrots (Feb/Mar - Mediterranean ) | M34: =IFERROR(VLOOKUP(ROWS($M$2:M34),$J$2:$K$763,2,FALSE),"") -> 
J35: =IF(ISNUMBER(SEARCH('3 Irrigation Schedule'!$B$19,K35)),MAX($J$1:J34)+1,0) -> 0 | K35: ='Crop Information'!B40 -> Carrots (Oct - California desert) | M35: =IFERROR(VLOOKUP(ROWS($M$2:M35),$J$2:$K$763,2,FALSE),"") -> 
J36: =IF(ISNUMBER(SEARCH('3 Irrigation Schedule'!$B$19,K36)),MAX($J$1:J35)+1,0) -> 0 | K36: ='Crop Information'!B41 -> Cassava ( 1st year - rainy season - Tropical regions) | M36: =IFERROR(VLOOKUP(ROWS($M$2:M36),$J$2:$K$763,2,FALSE),"") -> 
J37: =IF(ISNUMBER(SEARCH('3 Irrigation Schedule'!$B$19,K37)),MAX($J$1:J36)+1,0) -> 0 | K37: ='Crop Information'!B42 -> Cassava ( 2nd year - season - Tropical regions) | M37: =IFERROR(VLOOKUP(ROWS($M$2:M37),$J$2:$K$763,2,FALSE),"") -> 
J38: =IF(ISNUMBER(SEARCH('3 Irrigation Schedule'!$B$19,K38)),MAX($J$1:J37)+1,0) -> 0 | K38: ='Crop Information'!B43 -> Castor beans (Mar - semiarid climates ) | M38: =IFERROR(VLOOKUP(ROWS($M$2:M38),$J$2:$K$763,2,FALSE),"") -> 
J39: =IF(ISNUMBER(SEARCH('3 Irrigation Schedule'!$B$19,K39)),MAX($J$1:J38)+1,0) -> 0 | K39: ='Crop Information'!B44 -> Castor beans (Nov - Indonesia ) | M39: =IFERROR(VLOOKUP(ROWS($M$2:M39),$J$2:$K$763,2,FALSE),"") -> 
J40: =IF(ISNUMBER(SEARCH('3 Irrigation Schedule'!$B$19,K40)),MAX($J$1:J39)+1,0) -> 0 | K40: ='Crop Information'!B45 -> Cauliflower (Sept - California desert) | M40: =IFERROR(VLOOKUP(ROWS($M$2:M40),$J$2:$K$763,2,FALSE),"") -> 
J41: =IF(ISNUMBER(SEARCH('3 Irrigation Schedule'!$B$19,K41)),MAX($J$1:J40)+1,0) -> 0 | K41: ='Crop Information'!B46 -> Celery (Oct- semiarid) | M41: =IFERROR(VLOOKUP(ROWS($M$2:M41),$J$2:$K$763,2,FALSE),"") -> 
J42: =IF(ISNUMBER(SEARCH('3 Irrigation Schedule'!$B$19,K42)),MAX($J$1:J41)+1,0) -> 0 | K42: ='Crop Information'!B47 -> Celery (Apr - Mediterranean) | M42: =IFERROR(VLOOKUP(ROWS($M$2:M42),$J$2:$K$763,2,FALSE),"") -> 
J43: =IF(ISNUMBER(SEARCH('3 Irrigation Schedule'!$B$19,K43)),MAX($J$1:J42)+1,0) -> 0 | K43: ='Crop Information'!B48 -> Celery (Jan - semiarid) | M43: =IFERROR(VLOOKUP(ROWS($M$2:M43),$J$2:$K$763,2,FALSE),"") -> 
J44: =IF(ISNUMBER(SEARCH('3 Irrigation Schedule'!$B$19,K44)),MAX($J$1:J43)+1,0) -> 0 | K44: ='Crop Information'!B49 -> Chilli pepper (Brazil/Tropical) | M44: =IFERROR(VLOOKUP(ROWS($M$2:M44),$J$2:$K$763,2,FALSE),"") -> 
J45: =IF(ISNUMBER(SEARCH('3 Irrigation Schedule'!$B$19,K45)),MAX($J$1:J44)+1,0) -> 0 | K45: ='Crop Information'!B50 -> Citrus (no ground cover/70% canopy - Jan - Mediterranean) | M45: =IFERROR(VLOOKUP(ROWS($M$2:M45),$J$2:$K$763,2,FALSE),"") -> 
J46: =IF(ISNUMBER(SEARCH('3 Irrigation Schedule'!$B$19,K46)),MAX($J$1:J45)+1,0) -> 0 | K46: ='Crop Information'!B51 -> Citrus (no ground cover/50% canopy - Jan - Mediterranean) | M46: =IFERROR(VLOOKUP(ROWS($M$2:M46),$J$2:$K$763,2,FALSE),"") -> 
J47: =IF(ISNUMBER(SEARCH('3 Irrigation Schedule'!$B$19,K47)),MAX($J$1:J46)+1,0) -> 0 | K47: ='Crop Information'!B52 -> Citrus (no ground cover/20% canopy - Jan - Mediterranean) | M47: =IFERROR(VLOOKUP(ROWS($M$2:M47),$J$2:$K$763,2,FALSE),"") -> 
J48: =IF(ISNUMBER(SEARCH('3 Irrigation Schedule'!$B$19,K48)),MAX($J$1:J47)+1,0) -> 0 | K48: ='Crop Information'!B53 -> Citrus (with active ground cover or weeds/70% canopy - Jan - Mediterranean) | M48: =IFERROR(VLOOKUP(ROWS($M$2:M48),$J$2:$K$763,2,FALSE),"") -> 
J49: =IF(ISNUMBER(SEARCH('3 Irrigation Schedule'!$B$19,K49)),MAX($J$1:J48)+1,0) -> 0 | K49: ='Crop Information'!B54 -> Citrus (with active ground cover or weeds/50% canopy - Jan - Mediterranean) | M49: =IFERROR(VLOOKUP(ROWS($M$2:M49),$J$2:$K$763,2,FALSE),"") -> 
J50: =IF(ISNUMBER(SEARCH('3 Irrigation Schedule'!$B$19,K50)),MAX($J$1:J49)+1,0) -> 0 | K50: ='Crop Information'!B55 -> Citrus (with active ground cover or weeds/20% canopy - Jan - Mediterranean) | M50: =IFERROR(VLOOKUP(ROWS($M$2:M50),$J$2:$K$763,2,FALSE),"") -> 
J51: =IF(ISNUMBER(SEARCH('3 Irrigation Schedule'!$B$19,K51)),MAX($J$1:J50)+1,0) -> 0 | K51: ='Crop Information'!B56 -> Cotton (Mar/May - Egypt/Pakistan/California) | M51: =IFERROR(VLOOKUP(ROWS($M$2:M51),$J$2:$K$763,2,FALSE),"") -> 
J52: =IF(ISNUMBER(SEARCH('3 Irrigation Schedule'!$B$19,K52)),MAX($J$1:J51)+1,0) -> 0 | K52: ='Crop Information'!B57 -> Cotton (Mar - California desert) | M52: =IFERROR(VLOOKUP(ROWS($M$2:M52),$J$2:$K$763,2,FALSE),"") -> 
J53: =IF(ISNUMBER(SEARCH('3 Irrigation Schedule'!$B$19,K53)),MAX($J$1:J52)+1,0) -> 0 | K53: ='Crop Information'!B58 -> Cotton (Sept - Yemen ) | M53: =IFERROR(VLOOKUP(ROWS($M$2:M53),$J$2:$K$763,2,FALSE),"") -> 
J54: =IF(ISNUMBER(SEARCH('3 Irrigation Schedule'!$B$19,K54)),MAX($J$1:J53)+1,0) -> 0 | K54: ='Crop Information'!B59 -> Cotton (Apr - Texas ) | M54: =IFERROR(VLOOKUP(ROWS($M$2:M54),$J$2:$K$763,2,FALSE),"") -> 
J55: =IF(ISNUMBER(SEARCH('3 Irrigation Schedule'!$B$19,K55)),MAX($J$1:J54)+1,0) -> 0 | K55: ='Crop Information'!B60 -> Cucumber (Jun/Aug - arid region ) | M55: =IFERROR(VLOOKUP(ROWS($M$2:M55),$J$2:$K$763,2,FALSE),"") -> 
J56: =IF(ISNUMBER(SEARCH('3 Irrigation Schedule'!$B$19,K56)),MAX($J$1:J55)+1,0) -> 0 | K56: ='Crop Information'!B61 -> Cucumber (Nov/Feb - arid region ) | M56: =IFERROR(VLOOKUP(ROWS($M$2:M56),$J$2:$K$763,2,FALSE),"") -> 
J57: =IF(ISNUMBER(SEARCH('3 Irrigation Schedule'!$B$19,K57)),MAX($J$1:J56)+1,0) -> 0 | K57: ='Crop Information'!B62 -> Deciduous Orchard (no ground cover/killing frost - Mar - high latitudes) | M57: =IFERROR(VLOOKUP(ROWS($M$2:M57),$J$2:$K$763,2,FALSE),"") -> 
J58: =IF(ISNUMBER(SEARCH('3 Irrigation Schedule'!$B$19,K58)),MAX($J$1:J57)+1,0) -> 0 | K58: ='Crop Information'!B63 -> Deciduous Orchard (no ground cover/no frosts - Mar - high latitudes) | M58: =IFERROR(VLOOKUP(ROWS($M$2:M58),$J$2:$K$763,2,FALSE),"") -> 
J59: =IF(ISNUMBER(SEARCH('3 Irrigation Schedule'!$B$19,K59)),MAX($J$1:J58)+1,0) -> 0 | K59: ='Crop Information'!B64 -> Deciduous Orchard (active ground cover/killing frost - Mar - high latitudes) | M59: =IFERROR(VLOOKUP(ROWS($M$2:M59),$J$2:$K$763,2,FALSE),"") -> 
J60: =IF(ISNUMBER(SEARCH('3 Irrigation Schedule'!$B$19,K60)),MAX($J$1:J59)+1,0) -> 0 | K60: ='Crop Information'!B65 -> Deciduous Orchard (active ground cover/no frosts - Mar - high latitudes) | M60: =IFERROR(VLOOKUP(ROWS($M$2:M60),$J$2:$K$763,2,FALSE),"") -> 
J61: =IF(ISNUMBER(SEARCH('3 Irrigation Schedule'!$B$19,K61)),MAX($J$1:J60)+1,0) -> 0 | K61: ='Crop Information'!B66 -> Deciduous Orchard (no ground cover/killing frost - Mar - low latitudes) | M61: =IFERROR(VLOOKUP(ROWS($M$2:M61),$J$2:$K$763,2,FALSE),"") -> 
J62: =IF(ISNUMBER(SEARCH('3 Irrigation Schedule'!$B$19,K62)),MAX($J$1:J61)+1,0) -> 0 | K62: ='Crop Information'!B67 -> Deciduous Orchard (no ground cover/no frosts - Mar - low latitudes) | M62: =IFERROR(VLOOKUP(ROWS($M$2:M62),$J$2:$K$763,2,FALSE),"") -> 
J63: =IF(ISNUMBER(SEARCH('3 Irrigation Schedule'!$B$19,K63)),MAX($J$1:J62)+1,0) -> 0 | K63: ='Crop Information'!B68 -> Deciduous Orchard (active ground cover/killing frost - Mar - low latitudes) | M63: =IFERROR(VLOOKUP(ROWS($M$2:M63),$J$2:$K$763,2,FALSE),"") -> 
J64: =IF(ISNUMBER(SEARCH('3 Irrigation Schedule'!$B$19,K64)),MAX($J$1:J63)+1,0) -> 0 | K64: ='Crop Information'!B69 -> Deciduous Orchard (active ground cover/no frosts - Mar - low latitudes) | M64: =IFERROR(VLOOKUP(ROWS($M$2:M64),$J$2:$K$763,2,FALSE),"") -> 
J65: =IF(ISNUMBER(SEARCH('3 Irrigation Schedule'!$B$19,K65)),MAX($J$1:J64)+1,0) -> 0 | K65: ='Crop Information'!B70 -> Deciduous Orchard (no ground cover/killing frost - Mar - California) | M65: =IFERROR(VLOOKUP(ROWS($M$2:M65),$J$2:$K$763,2,FALSE),"") -> 
J66: =IF(ISNUMBER(SEARCH('3 Irrigation Schedule'!$B$19,K66)),MAX($J$1:J65)+1,0) -> 0 | K66: ='Crop Information'!B71 -> Deciduous Orchard (no ground cover/no frosts - Mar - California) | M66: =IFERROR(VLOOKUP(ROWS($M$2:M66),$J$2:$K$763,2,FALSE),"") -> 
J67: =IF(ISNUMBER(SEARCH('3 Irrigation Schedule'!$B$19,K67)),MAX($J$1:J66)+1,0) -> 0 | K67: ='Crop Information'!B72 -> Deciduous Orchard (active ground cover/killing frost - California) | M67: =IFERROR(VLOOKUP(ROWS($M$2:M67),$J$2:$K$763,2,FALSE),"") -> 
J68: =IF(ISNUMBER(SEARCH('3 Irrigation Schedule'!$B$19,K68)),MAX($J$1:J67)+1,0) -> 0 | K68: ='Crop Information'!B73 -> Deciduous Orchard (active ground cover/no frosts - Mar - California) | M68: =IFERROR(VLOOKUP(ROWS($M$2:M68),$J$2:$K$763,2,FALSE),"") -> 
J69: =IF(ISNUMBER(SEARCH('3 Irrigation Schedule'!$B$19,K69)),MAX($J$1:J68)+1,0) -> 0 | K69: ='Crop Information'!B74 -> Eggplant (Oct - arid region) | M69: =IFERROR(VLOOKUP(ROWS($M$2:M69),$J$2:$K$763,2,FALSE),"") -> 
J70: =IF(ISNUMBER(SEARCH('3 Irrigation Schedule'!$B$19,K70)),MAX($J$1:J69)+1,0) -> 0 | K70: ='Crop Information'!B75 -> Eggplant (May/Jun - Mediterranean) | M70: =IFERROR(VLOOKUP(ROWS($M$2:M70),$J$2:$K$763,2,FALSE),"") -> 
J71: =IF(ISNUMBER(SEARCH('3 Irrigation Schedule'!$B$19,K71)),MAX($J$1:J70)+1,0) -> 0 | K71: ='Crop Information'!B76 -> Faba bean, broad bean (May - Europe) | M71: =IFERROR(VLOOKUP(ROWS($M$2:M71),$J$2:$K$763,2,FALSE),"") -> 
J72: =IF(ISNUMBER(SEARCH('3 Irrigation Schedule'!$B$19,K72)),MAX($J$1:J71)+1,0) -> 0 | K72: ='Crop Information'!B77 -> Faba bean, broad bean (Mar/Apr - Mediterranean) | M72: =IFERROR(VLOOKUP(ROWS($M$2:M72),$J$2:$K$763,2,FALSE),"") -> 
J73: =IF(ISNUMBER(SEARCH('3 Irrigation Schedule'!$B$19,K73)),MAX($J$1:J72)+1,0) -> 0 | K73: ='Crop Information'!B78 -> Faba bean, broad bean (dry - Nov - Europe) | M73: =IFERROR(VLOOKUP(ROWS($M$2:M73),$J$2:$K$763,2,FALSE),"") -> 
J74: =IF(ISNUMBER(SEARCH('3 Irrigation Schedule'!$B$19,K74)),MAX($J$1:J73)+1,0) -> 0 | K74: ='Crop Information'!B79 -> Faba bean, broad bean (green - Nov - Europe) | M74: =IFERROR(VLOOKUP(ROWS($M$2:M74),$J$2:$K$763,2,FALSE),"") -> 
J75: =IF(ISNUMBER(SEARCH('3 Irrigation Schedule'!$B$19,K75)),MAX($J$1:J74)+1,0) -> 0 | K75: ='Crop Information'!B80 -> Flax (Apr - Europe) | M75: =IFERROR(VLOOKUP(ROWS($M$2:M75),$J$2:$K$763,2,FALSE),"") -> 
J76: =IF(ISNUMBER(SEARCH('3 Irrigation Schedule'!$B$19,K76)),MAX($J$1:J75)+1,0) -> 0 | K76: ='Crop Information'!B81 -> Flax (Oct - Arizona) | M76: =IFERROR(VLOOKUP(ROWS($M$2:M76),$J$2:$K$763,2,FALSE),"") -> 
J77: =IF(ISNUMBER(SEARCH('3 Irrigation Schedule'!$B$19,K77)),MAX($J$1:J76)+1,0) -> 0 | K77: ='Crop Information'!B82 -> Grapes (Apr - low latitudes) | M77: =IFERROR(VLOOKUP(ROWS($M$2:M77),$J$2:$K$763,2,FALSE),"") -> 
J78: =IF(ISNUMBER(SEARCH('3 Irrigation Schedule'!$B$19,K78)),MAX($J$1:J77)+1,0) -> 0 | K78: ='Crop Information'!B83 -> Grapes (Mar - California) | M78: =IFERROR(VLOOKUP(ROWS($M$2:M78),$J$2:$K$763,2,FALSE),"") -> 
J79: =IF(ISNUMBER(SEARCH('3 Irrigation Schedule'!$B$19,K79)),MAX($J$1:J78)+1,0) -> 0 | K79: ='Crop Information'!B84 -> Grapes (May - high latitudes ) | M79: =IFERROR(VLOOKUP(ROWS($M$2:M79),$J$2:$K$763,2,FALSE),"") -> 
J80: =IF(ISNUMBER(SEARCH('3 Irrigation Schedule'!$B$19,K80)),MAX($J$1:J79)+1,0) -> 0 | K80: ='Crop Information'!B85 -> Grapes (wine - Apr - mid latitudes) | M80: =IFERROR(VLOOKUP(ROWS($M$2:M80),$J$2:$K$763,2,FALSE),"") -> 
J81: =IF(ISNUMBER(SEARCH('3 Irrigation Schedule'!$B$19,K81)),MAX($J$1:J80)+1,0) -> 0 | K81: ='Crop Information'!B86 -> Green gram, cowpeas (harvest fresh - Mar -Mediterranean) | M81: =IFERROR(VLOOKUP(ROWS($M$2:M81),$J$2:$K$763,2,FALSE),"") -> 
J82: =IF(ISNUMBER(SEARCH('3 Irrigation Schedule'!$B$19,K82)),MAX($J$1:J81)+1,0) -> 0 | K82: ='Crop Information'!B87 -> Green gram, cowpeas (harvest dry - Mar -Mediterranean) | M82: =IFERROR(VLOOKUP(ROWS($M$2:M82),$J$2:$K$763,2,FALSE),"") -> 
J83: =IF(ISNUMBER(SEARCH('3 Irrigation Schedule'!$B$19,K83)),MAX($J$1:J82)+1,0) -> 0 | K83: ='Crop Information'!B88 -> Groundnut (Dry - West Africa ) | M83: =IFERROR(VLOOKUP(ROWS($M$2:M83),$J$2:$K$763,2,FALSE),"") -> 
J84: =IF(ISNUMBER(SEARCH('3 Irrigation Schedule'!$B$19,K84)),MAX($J$1:J83)+1,0) -> 0 | K84: ='Crop Information'!B89 -> Groundnut (season - high latitudes) | M84: =IFERROR(VLOOKUP(ROWS($M$2:M84),$J$2:$K$763,2,FALSE),"") -> 
J85: =IF(ISNUMBER(SEARCH('3 Irrigation Schedule'!$B$19,K85)),MAX($J$1:J84)+1,0) -> 0 | K85: ='Crop Information'!B90 -> Groundnut (May/Jun - Mediterranean) | M85: =IFERROR(VLOOKUP(ROWS($M$2:M85),$J$2:$K$763,2,FALSE),"") -> 
J86: =IF(ISNUMBER(SEARCH('3 Irrigation Schedule'!$B$19,K86)),MAX($J$1:J85)+1,0) -> 0 | K86: ='Crop Information'!B91 -> Hops (Apr - Idaho) | M86: =IFERROR(VLOOKUP(ROWS($M$2:M86),$J$2:$K$763,2,FALSE),"") -> 
J87: =IF(ISNUMBER(SEARCH('3 Irrigation Schedule'!$B$19,K87)),MAX($J$1:J86)+1,0) -> 0 | K87: ='Crop Information'!B92 -> Kale, Rape | M87: =IFERROR(VLOOKUP(ROWS($M$2:M87),$J$2:$K$763,2,FALSE),"") -> 
J88: =IF(ISNUMBER(SEARCH('3 Irrigation Schedule'!$B$19,K88)),MAX($J$1:J87)+1,0) -> 0 | K88: ='Crop Information'!B93 -> Lentil (Apr - Europe) | M88: =IFERROR(VLOOKUP(ROWS($M$2:M88),$J$2:$K$763,2,FALSE),"") -> 
J89: =IF(ISNUMBER(SEARCH('3 Irrigation Schedule'!$B$19,K89)),MAX($J$1:J88)+1,0) -> 0 | K89: ='Crop Information'!B94 -> Lentil (Oct/Nov -arid region) | M89: =IFERROR(VLOOKUP(ROWS($M$2:M89),$J$2:$K$763,2,FALSE),"") -> 
J90: =IF(ISNUMBER(SEARCH('3 Irrigation Schedule'!$B$19,K90)),MAX($J$1:J89)+1,0) -> 0 | K90: ='Crop Information'!B95 -> Lettuce (Apr - Mediterranean) | M90: =IFERROR(VLOOKUP(ROWS($M$2:M90),$J$2:$K$763,2,FALSE),"") -> 
J91: =IF(ISNUMBER(SEARCH('3 Irrigation Schedule'!$B$19,K91)),MAX($J$1:J90)+1,0) -> 0 | K91: ='Crop Information'!B96 -> Lettuce (Nov/Jan - Mediterranean) | M91: =IFERROR(VLOOKUP(ROWS($M$2:M91),$J$2:$K$763,2,FALSE),"") -> 
J92: =IF(ISNUMBER(SEARCH('3 Irrigation Schedule'!$B$19,K92)),MAX($J$1:J91)+1,0) -> 0 | K92: ='Crop Information'!B97 -> Lettuce (Oct/Nov - arid region) | M92: =IFERROR(VLOOKUP(ROWS($M$2:M92),$J$2:$K$763,2,FALSE),"") -> 
J93: =IF(ISNUMBER(SEARCH('3 Irrigation Schedule'!$B$19,K93)),MAX($J$1:J92)+1,0) -> 0 | K93: ='Crop Information'!B98 -> Lettuce (Feb - Mediterranean) | M93: =IFERROR(VLOOKUP(ROWS($M$2:M93),$J$2:$K$763,2,FALSE),"") -> 
J94: =IF(ISNUMBER(SEARCH('3 Irrigation Schedule'!$B$19,K94)),MAX($J$1:J93)+1,0) -> 0 | K94: ='Crop Information'!B99 -> Maize (grain - Apr - East Africa (alt.)) | M94: =IFERROR(VLOOKUP(ROWS($M$2:M94),$J$2:$K$763,2,FALSE),"") -> 
J95: =IF(ISNUMBER(SEARCH('3 Irrigation Schedule'!$B$19,K95)),MAX($J$1:J94)+1,0) -> 0 | K95: ='Crop Information'!B100 -> Maize (grain - Dec/Jan - arid climate) | M95: =IFERROR(VLOOKUP(ROWS($M$2:M95),$J$2:$K$763,2,FALSE),"") -> 
J96: =IF(ISNUMBER(SEARCH('3 Irrigation Schedule'!$B$19,K96)),MAX($J$1:J95)+1,0) -> 0 | K96: ='Crop Information'!B101 -> Maize (grain - Jun - Nigeria (humid)) | M96: =IFERROR(VLOOKUP(ROWS($M$2:M96),$J$2:$K$763,2,FALSE),"") -> 
J97: =IF(ISNUMBER(SEARCH('3 Irrigation Schedule'!$B$19,K97)),MAX($J$1:J96)+1,0) -> 1 | K97: ='Crop Information'!B102 -> Maize (grain - Oct - India (dry, cool)) | M97: =IFERROR(VLOOKUP(ROWS($M$2:M97),$J$2:$K$763,2,FALSE),"") -> 
J98: =IF(ISNUMBER(SEARCH('3 Irrigation Schedule'!$B$19,K98)),MAX($J$1:J97)+1,0) -> 0 | K98: ='Crop Information'!B103 -> Maize (grain - Apr - Spain (spring/summer) - California) | M98: =IFERROR(VLOOKUP(ROWS($M$2:M98),$J$2:$K$763,2,FALSE),"") -> 
J99: =IF(ISNUMBER(SEARCH('3 Irrigation Schedule'!$B$19,K99)),MAX($J$1:J98)+1,0) -> 0 | K99: ='Crop Information'!B104 -> Maize (grain - Apr - Idaho) | M99: =IFERROR(VLOOKUP(ROWS($M$2:M99),$J$2:$K$763,2,FALSE),"") -> 
J100: =IF(ISNUMBER(SEARCH('3 Irrigation Schedule'!$B$19,K100)),MAX($J$1:J99)+1,0) -> 0 | K100: ='Crop Information'!B105 -> Maize (sweet - Mar - Philippines) | M100: =IFERROR(VLOOKUP(ROWS($M$2:M100),$J$2:$K$763,2,FALSE),"") -> 
J101: =IF(ISNUMBER(SEARCH('3 Irrigation Schedule'!$B$19,K101)),MAX($J$1:J100)+1,0) -> 0 | K101: ='Crop Information'!B106 -> Maize (sweet - May/Jun - Mediterranean) | M101: =IFERROR(VLOOKUP(ROWS($M$2:M101),$J$2:$K$763,2,FALSE),"") -> 
J102: =IF(ISNUMBER(SEARCH('3 Irrigation Schedule'!$B$19,K102)),MAX($J$1:J101)+1,0) -> 0 | K102: ='Crop Information'!B107 -> Maize (sweet - Oct/Dec - arid climate) | M102: =IFERROR(VLOOKUP(ROWS($M$2:M102),$J$2:$K$763,2,FALSE),"") -> 
J103: =IF(ISNUMBER(SEARCH('3 Irrigation Schedule'!$B$19,K103)),MAX($J$1:J102)+1,0) -> 0 | K103: ='Crop Information'!B108 -> Maize (sweet - Apr - Idaho) | M103: =IFERROR(VLOOKUP(ROWS($M$2:M103),$J$2:$K$763,2,FALSE),"") -> 
J104: =IF(ISNUMBER(SEARCH('3 Irrigation Schedule'!$B$19,K104)),MAX($J$1:J103)+1,0) -> 0 | K104: ='Crop Information'!B109 -> Maize (sweet - Jan - California desert) | M104: =IFERROR(VLOOKUP(ROWS($M$2:M104),$J$2:$K$763,2,FALSE),"") -> 
J105: =IF(ISNUMBER(SEARCH('3 Irrigation Schedule'!$B$19,K105)),MAX($J$1:J104)+1,0) -> 0 | K105: ='Crop Information'!B110 -> Mango (Jun) | M105: =IFERROR(VLOOKUP(ROWS($M$2:M105),$J$2:$K$763,2,FALSE),"") -> 
J106: =IF(ISNUMBER(SEARCH('3 Irrigation Schedule'!$B$19,K106)),MAX($J$1:J105)+1,0) -> 0 | K106: ='Crop Information'!B111 -> Millet (Jun - Pakistan) | M106: =IFERROR(VLOOKUP(ROWS($M$2:M106),$J$2:$K$763,2,FALSE),"") -> 
J107: =IF(ISNUMBER(SEARCH('3 Irrigation Schedule'!$B$19,K107)),MAX($J$1:J106)+1,0) -> 0 | K107: ='Crop Information'!B112 -> Millet (Apr - Central USA) | M107: =IFERROR(VLOOKUP(ROWS($M$2:M107),$J$2:$K$763,2,FALSE),"") -> 
J108: =IF(ISNUMBER(SEARCH('3 Irrigation Schedule'!$B$19,K108)),MAX($J$1:J107)+1,0) -> 0 | K108: ='Crop Information'!B113 -> Okra (sub humid) | M108: =IFERROR(VLOOKUP(ROWS($M$2:M108),$J$2:$K$763,2,FALSE),"") -> 
J109: =IF(ISNUMBER(SEARCH('3 Irrigation Schedule'!$B$19,K109)),MAX($J$1:J108)+1,0) -> 0 | K109: ='Crop Information'!B114 -> Olives (Mar - Mediterranean) | M109: =IFERROR(VLOOKUP(ROWS($M$2:M109),$J$2:$K$763,2,FALSE),"") -> 
J110: =IF(ISNUMBER(SEARCH('3 Irrigation Schedule'!$B$19,K110)),MAX($J$1:J109)+1,0) -> 0 | K110: ='Crop Information'!B115 -> Onion (dry - Apr - Mediterranean) | M110: =IFERROR(VLOOKUP(ROWS($M$2:M110),$J$2:$K$763,2,FALSE),"") -> 
J111: =IF(ISNUMBER(SEARCH('3 Irrigation Schedule'!$B$19,K111)),MAX($J$1:J110)+1,0) -> 0 | K111: ='Crop Information'!B116 -> Onion (dry - Oct/Jan - arid region/California) | M111: =IFERROR(VLOOKUP(ROWS($M$2:M111),$J$2:$K$763,2,FALSE),"") -> 
J112: =IF(ISNUMBER(SEARCH('3 Irrigation Schedule'!$B$19,K112)),MAX($J$1:J111)+1,0) -> 0 | K112: ='Crop Information'!B117 -> Onion (green - Apr/May - Mediterranean) | M112: =IFERROR(VLOOKUP(ROWS($M$2:M112),$J$2:$K$763,2,FALSE),"") -> 
J113: =IF(ISNUMBER(SEARCH('3 Irrigation Schedule'!$B$19,K113)),MAX($J$1:J112)+1,0) -> 0 | K113: ='Crop Information'!B118 -> Onion (green - Oct - arid region) | M113: =IFERROR(VLOOKUP(ROWS($M$2:M113),$J$2:$K$763,2,FALSE),"") -> 
J114: =IF(ISNUMBER(SEARCH('3 Irrigation Schedule'!$B$19,K114)),MAX($J$1:J113)+1,0) -> 0 | K114: ='Crop Information'!B119 -> Onion (green - Mar - California) | M114: =IFERROR(VLOOKUP(ROWS($M$2:M114),$J$2:$K$763,2,FALSE),"") -> 
J115: =IF(ISNUMBER(SEARCH('3 Irrigation Schedule'!$B$19,K115)),MAX($J$1:J114)+1,0) -> 0 | K115: ='Crop Information'!B120 -> Onion (seed - Sept - California desert) | M115: =IFERROR(VLOOKUP(ROWS($M$2:M115),$J$2:$K$763,2,FALSE),"") -> 
J116: =IF(ISNUMBER(SEARCH('3 Irrigation Schedule'!$B$19,K116)),MAX($J$1:J115)+1,0) -> 0 | K116: ='Crop Information'!B121 -> Peas (fresh - May - Europe) | M116: =IFERROR(VLOOKUP(ROWS($M$2:M116),$J$2:$K$763,2,FALSE),"") -> 
J117: =IF(ISNUMBER(SEARCH('3 Irrigation Schedule'!$B$19,K117)),MAX($J$1:J116)+1,0) -> 0 | K117: ='Crop Information'!B122 -> Peas (fresh - Mar/Apr - Mediterranean) | M117: =IFERROR(VLOOKUP(ROWS($M$2:M117),$J$2:$K$763,2,FALSE),"") -> 
J118: =IF(ISNUMBER(SEARCH('3 Irrigation Schedule'!$B$19,K118)),MAX($J$1:J117)+1,0) -> 0 | K118: ='Crop Information'!B123 -> Peas (fresh - Apr - Idaho) | M118: =IFERROR(VLOOKUP(ROWS($M$2:M118),$J$2:$K$763,2,FALSE),"") -> 
J119: =IF(ISNUMBER(SEARCH('3 Irrigation Schedule'!$B$19,K119)),MAX($J$1:J118)+1,0) -> 0 | K119: ='Crop Information'!B124 -> Peas (dry - May - Europe) | M119: =IFERROR(VLOOKUP(ROWS($M$2:M119),$J$2:$K$763,2,FALSE),"") -> 
J120: =IF(ISNUMBER(SEARCH('3 Irrigation Schedule'!$B$19,K120)),MAX($J$1:J119)+1,0) -> 0 | K120: ='Crop Information'!B125 -> Peas (dry - Mar/Apr - Mediterranean) | M120: =IFERROR(VLOOKUP(ROWS($M$2:M120),$J$2:$K$763,2,FALSE),"") -> 
J121: =IF(ISNUMBER(SEARCH('3 Irrigation Schedule'!$B$19,K121)),MAX($J$1:J120)+1,0) -> 0 | K121: ='Crop Information'!B126 -> Peas (dry - Apr - Idaho) | M121: =IFERROR(VLOOKUP(ROWS($M$2:M121),$J$2:$K$763,2,FALSE),"") -> 
J122: =IF(ISNUMBER(SEARCH('3 Irrigation Schedule'!$B$19,K122)),MAX($J$1:J121)+1,0) -> 0 | K122: ='Crop Information'!B127 -> Pigeon peas | M122: =IFERROR(VLOOKUP(ROWS($M$2:M122),$J$2:$K$763,2,FALSE),"") -> 
J123: =IF(ISNUMBER(SEARCH('3 Irrigation Schedule'!$B$19,K123)),MAX($J$1:J122)+1,0) -> 0 | K123: ='Crop Information'!B128 -> Pineapple (bare soil - Hawaii) | M123: =IFERROR(VLOOKUP(ROWS($M$2:M123),$J$2:$K$763,2,FALSE),"") -> 
J124: =IF(ISNUMBER(SEARCH('3 Irrigation Schedule'!$B$19,K124)),MAX($J$1:J123)+1,0) -> 0 | K124: ='Crop Information'!B129 -> Pineapple (with grass cover - Hawaii) | M124: =IFERROR(VLOOKUP(ROWS($M$2:M124),$J$2:$K$763,2,FALSE),"") -> 
J125: =IF(ISNUMBER(SEARCH('3 Irrigation Schedule'!$B$19,K125)),MAX($J$1:J124)+1,0) -> 0 | K125: ='Crop Information'!B130 -> Pistachios (no ground cover - Feb - Mediterranean) | M125: =IFERROR(VLOOKUP(ROWS($M$2:M125),$J$2:$K$763,2,FALSE),"") -> 
J126: =IF(ISNUMBER(SEARCH('3 Irrigation Schedule'!$B$19,K126)),MAX($J$1:J125)+1,0) -> 0 | K126: ='Crop Information'!B131 -> Potato (Jan/Nov - semiarid climate) | M126: =IFERROR(VLOOKUP(ROWS($M$2:M126),$J$2:$K$763,2,FALSE),"") -> 
J127: =IF(ISNUMBER(SEARCH('3 Irrigation Schedule'!$B$19,K127)),MAX($J$1:J126)+1,0) -> 0 | K127: ='Crop Information'!B132 -> Potato (May - Continental Climate ) | M127: =IFERROR(VLOOKUP(ROWS($M$2:M127),$J$2:$K$763,2,FALSE),"") -> 
J128: =IF(ISNUMBER(SEARCH('3 Irrigation Schedule'!$B$19,K128)),MAX($J$1:J127)+1,0) -> 0 | K128: ='Crop Information'!B133 -> Potato (Apr - Europe) | M128: =IFERROR(VLOOKUP(ROWS($M$2:M128),$J$2:$K$763,2,FALSE),"") -> 
J129: =IF(ISNUMBER(SEARCH('3 Irrigation Schedule'!$B$19,K129)),MAX($J$1:J128)+1,0) -> 0 | K129: ='Crop Information'!B134 -> Potato (Apr/May - Idaho, USA ) | M129: =IFERROR(VLOOKUP(ROWS($M$2:M129),$J$2:$K$763,2,FALSE),"") -> 
J130: =IF(ISNUMBER(SEARCH('3 Irrigation Schedule'!$B$19,K130)),MAX($J$1:J129)+1,0) -> 0 | K130: ='Crop Information'!B135 -> Potato (Dec - California desert) | M130: =IFERROR(VLOOKUP(ROWS($M$2:M130),$J$2:$K$763,2,FALSE),"") -> 
J131: =IF(ISNUMBER(SEARCH('3 Irrigation Schedule'!$B$19,K131)),MAX($J$1:J130)+1,0) -> 0 | K131: ='Crop Information'!B136 -> Pumpkin, Winter squash (Mar/Aug - Mediterranean) | M131: =IFERROR(VLOOKUP(ROWS($M$2:M131),$J$2:$K$763,2,FALSE),"") -> 
J132: =IF(ISNUMBER(SEARCH('3 Irrigation Schedule'!$B$19,K132)),MAX($J$1:J131)+1,0) -> 0 | K132: ='Crop Information'!B137 -> Pumpkin, Winter squash (Jun - Europe) | M132: =IFERROR(VLOOKUP(ROWS($M$2:M132),$J$2:$K$763,2,FALSE),"") -> 
J133: =IF(ISNUMBER(SEARCH('3 Irrigation Schedule'!$B$19,K133)),MAX($J$1:J132)+1,0) -> 0 | K133: ='Crop Information'!B138 -> Radish (Mar/Apr - Mediterranean/Europe) | M133: =IFERROR(VLOOKUP(ROWS($M$2:M133),$J$2:$K$763,2,FALSE),"") -> 
J134: =IF(ISNUMBER(SEARCH('3 Irrigation Schedule'!$B$19,K134)),MAX($J$1:J133)+1,0) -> 0 | K134: ='Crop Information'!B139 -> Radish (Winter - arid region) | M134: =IFERROR(VLOOKUP(ROWS($M$2:M134),$J$2:$K$763,2,FALSE),"") -> 
J135: =IF(ISNUMBER(SEARCH('3 Irrigation Schedule'!$B$19,K135)),MAX($J$1:J134)+1,0) -> 0 | K135: ='Crop Information'!B140 -> Rice (Dec/May - Tropics/Mediterranean) | M135: =IFERROR(VLOOKUP(ROWS($M$2:M135),$J$2:$K$763,2,FALSE),"") -> 
J136: =IF(ISNUMBER(SEARCH('3 Irrigation Schedule'!$B$19,K136)),MAX($J$1:J135)+1,0) -> 0 | K136: ='Crop Information'!B141 -> Safflower (Apr - California) | M136: =IFERROR(VLOOKUP(ROWS($M$2:M136),$J$2:$K$763,2,FALSE),"") -> 
J137: =IF(ISNUMBER(SEARCH('3 Irrigation Schedule'!$B$19,K137)),MAX($J$1:J136)+1,0) -> 0 | K137: ='Crop Information'!B142 -> Safflower (Mar - high latitudes) | M137: =IFERROR(VLOOKUP(ROWS($M$2:M137),$J$2:$K$763,2,FALSE),"") -> 
J138: =IF(ISNUMBER(SEARCH('3 Irrigation Schedule'!$B$19,K138)),MAX($J$1:J137)+1,0) -> 0 | K138: ='Crop Information'!B143 -> Safflower (Oct/Nov - arid region) | M138: =IFERROR(VLOOKUP(ROWS($M$2:M138),$J$2:$K$763,2,FALSE),"") -> 
J139: =IF(ISNUMBER(SEARCH('3 Irrigation Schedule'!$B$19,K139)),MAX($J$1:J138)+1,0) -> 0 | K139: ='Crop Information'!B144 -> Sesame (Jun - China) | M139: =IFERROR(VLOOKUP(ROWS($M$2:M139),$J$2:$K$763,2,FALSE),"") -> 
J140: =IF(ISNUMBER(SEARCH('3 Irrigation Schedule'!$B$19,K140)),MAX($J$1:J139)+1,0) -> 0 | K140: ='Crop Information'!B145 -> Sorghum (grain - May/Jun - USA/Pakistan/Mediterranean) | M140: =IFERROR(VLOOKUP(ROWS($M$2:M140),$J$2:$K$763,2,FALSE),"") -> 
J141: =IF(ISNUMBER(SEARCH('3 Irrigation Schedule'!$B$19,K141)),MAX($J$1:J140)+1,0) -> 0 | K141: ='Crop Information'!B146 -> Sorghum (grain - Mar/Apr - arid region) | M141: =IFERROR(VLOOKUP(ROWS($M$2:M141),$J$2:$K$763,2,FALSE),"") -> 
J142: =IF(ISNUMBER(SEARCH('3 Irrigation Schedule'!$B$19,K142)),MAX($J$1:J141)+1,0) -> 0 | K142: ='Crop Information'!B147 -> Sorghum (sweet - May/Jun - USA/Pakistan/Mediterranean) | M142: =IFERROR(VLOOKUP(ROWS($M$2:M142),$J$2:$K$763,2,FALSE),"") -> 
J143: =IF(ISNUMBER(SEARCH('3 Irrigation Schedule'!$B$19,K143)),MAX($J$1:J142)+1,0) -> 0 | K143: ='Crop Information'!B148 -> Sorghum (sweet - Mar/Apr - arid region) | M143: =IFERROR(VLOOKUP(ROWS($M$2:M143),$J$2:$K$763,2,FALSE),"") -> 
J144: =IF(ISNUMBER(SEARCH('3 Irrigation Schedule'!$B$19,K144)),MAX($J$1:J143)+1,0) -> 0 | K144: ='Crop Information'!B149 -> Soybeans (Dec - Tropics) | M144: =IFERROR(VLOOKUP(ROWS($M$2:M144),$J$2:$K$763,2,FALSE),"") -> 
J145: =IF(ISNUMBER(SEARCH('3 Irrigation Schedule'!$B$19,K145)),MAX($J$1:J144)+1,0) -> 0 | K145: ='Crop Information'!B150 -> Soybeans (May - Central USA) | M145: =IFERROR(VLOOKUP(ROWS($M$2:M145),$J$2:$K$763,2,FALSE),"") -> 
J146: =IF(ISNUMBER(SEARCH('3 Irrigation Schedule'!$B$19,K146)),MAX($J$1:J145)+1,0) -> 0 | K146: ='Crop Information'!B151 -> Soybeans (Jun - Japan ) | M146: =IFERROR(VLOOKUP(ROWS($M$2:M146),$J$2:$K$763,2,FALSE),"") -> 
J147: =IF(ISNUMBER(SEARCH('3 Irrigation Schedule'!$B$19,K147)),MAX($J$1:J146)+1,0) -> 0 | K147: ='Crop Information'!B152 -> Spinach (Apr/Sep/Oct - Mediterranean) | M147: =IFERROR(VLOOKUP(ROWS($M$2:M147),$J$2:$K$763,2,FALSE),"") -> 
J148: =IF(ISNUMBER(SEARCH('3 Irrigation Schedule'!$B$19,K148)),MAX($J$1:J147)+1,0) -> 0 | K148: ='Crop Information'!B153 -> Spinach (Nov - arid region) | M148: =IFERROR(VLOOKUP(ROWS($M$2:M148),$J$2:$K$763,2,FALSE),"") -> 
J149: =IF(ISNUMBER(SEARCH('3 Irrigation Schedule'!$B$19,K149)),MAX($J$1:J148)+1,0) -> 0 | K149: ='Crop Information'!B154 -> Squash, Zucchini (Apr/Dec - Mediterranean/arid region) | M149: =IFERROR(VLOOKUP(ROWS($M$2:M149),$J$2:$K$763,2,FALSE),"") -> 
J150: =IF(ISNUMBER(SEARCH('3 Irrigation Schedule'!$B$19,K150)),MAX($J$1:J149)+1,0) -> 0 | K150: ='Crop Information'!B155 -> Squash, Zucchini (May/Jun - Mediterranean/Europe) | M150: =IFERROR(VLOOKUP(ROWS($M$2:M150),$J$2:$K$763,2,FALSE),"") -> 
J151: =IF(ISNUMBER(SEARCH('3 Irrigation Schedule'!$B$19,K151)),MAX($J$1:J150)+1,0) -> 0 | K151: ='Crop Information'!B156 -> Sudan (1st cutting cycle - Apr - California desert) | M151: =IFERROR(VLOOKUP(ROWS($M$2:M151),$J$2:$K$763,2,FALSE),"") -> 
J152: =IF(ISNUMBER(SEARCH('3 Irrigation Schedule'!$B$19,K152)),MAX($J$1:J151)+1,0) -> 0 | K152: ='Crop Information'!B157 -> Sudan (other cutting cycles - Jun -California desert) | M152: =IFERROR(VLOOKUP(ROWS($M$2:M152),$J$2:$K$763,2,FALSE),"") -> 
J153: =IF(ISNUMBER(SEARCH('3 Irrigation Schedule'!$B$19,K153)),MAX($J$1:J152)+1,0) -> 0 | K153: ='Crop Information'!B158 -> Sugarbeet (Mar - California) | M153: =IFERROR(VLOOKUP(ROWS($M$2:M153),$J$2:$K$763,2,FALSE),"") -> 
J154: =IF(ISNUMBER(SEARCH('3 Irrigation Schedule'!$B$19,K154)),MAX($J$1:J153)+1,0) -> 0 | K154: ='Crop Information'!B159 -> Sugarbeet (Jun - California) | M154: =IFERROR(VLOOKUP(ROWS($M$2:M154),$J$2:$K$763,2,FALSE),"") -> 
J155: =IF(ISNUMBER(SEARCH('3 Irrigation Schedule'!$B$19,K155)),MAX($J$1:J154)+1,0) -> 0 | K155: ='Crop Information'!B160 -> Sugarbeet (Sep - California desert) | M155: =IFERROR(VLOOKUP(ROWS($M$2:M155),$J$2:$K$763,2,FALSE),"") -> 
J156: =IF(ISNUMBER(SEARCH('3 Irrigation Schedule'!$B$19,K156)),MAX($J$1:J155)+1,0) -> 0 | K156: ='Crop Information'!B161 -> Sugarbeet (Apr - Idaho) | M156: =IFERROR(VLOOKUP(ROWS($M$2:M156),$J$2:$K$763,2,FALSE),"") -> 
J157: =IF(ISNUMBER(SEARCH('3 Irrigation Schedule'!$B$19,K157)),MAX($J$1:J156)+1,0) -> 0 | K157: ='Crop Information'!B162 -> Sugarbeet (May - Mediterranean) | M157: =IFERROR(VLOOKUP(ROWS($M$2:M157),$J$2:$K$763,2,FALSE),"") -> 
J158: =IF(ISNUMBER(SEARCH('3 Irrigation Schedule'!$B$19,K158)),MAX($J$1:J157)+1,0) -> 0 | K158: ='Crop Information'!B163 -> Sugarbeet (Nov - Mediterranean) | M158: =IFERROR(VLOOKUP(ROWS($M$2:M158),$J$2:$K$763,2,FALSE),"") -> 
J159: =IF(ISNUMBER(SEARCH('3 Irrigation Schedule'!$B$19,K159)),MAX($J$1:J158)+1,0) -> 0 | K159: ='Crop Information'!B164 -> Sugarbeet (Nov - arid regions) | M159: =IFERROR(VLOOKUP(ROWS($M$2:M159),$J$2:$K$763,2,FALSE),"") -> 
J160: =IF(ISNUMBER(SEARCH('3 Irrigation Schedule'!$B$19,K160)),MAX($J$1:J159)+1,0) -> 0 | K160: ='Crop Information'!B165 -> Sugarcane (ratoon - low latitudes) | M160: =IFERROR(VLOOKUP(ROWS($M$2:M160),$J$2:$K$763,2,FALSE),"") -> 
J161: =IF(ISNUMBER(SEARCH('3 Irrigation Schedule'!$B$19,K161)),MAX($J$1:J160)+1,0) -> 0 | K161: ='Crop Information'!B166 -> Sugarcane (ratoon - Tropics) | M161: =IFERROR(VLOOKUP(ROWS($M$2:M161),$J$2:$K$763,2,FALSE),"") -> 
J162: =IF(ISNUMBER(SEARCH('3 Irrigation Schedule'!$B$19,K162)),MAX($J$1:J161)+1,0) -> 0 | K162: ='Crop Information'!B167 -> Sugarcane (ratoon - Hawaii) | M162: =IFERROR(VLOOKUP(ROWS($M$2:M162),$J$2:$K$763,2,FALSE),"") -> 
J163: =IF(ISNUMBER(SEARCH('3 Irrigation Schedule'!$B$19,K163)),MAX($J$1:J162)+1,0) -> 0 | K163: ='Crop Information'!B168 -> Sugarcane (virgin - low latitudes) | M163: =IFERROR(VLOOKUP(ROWS($M$2:M163),$J$2:$K$763,2,FALSE),"") -> 
J164: =IF(ISNUMBER(SEARCH('3 Irrigation Schedule'!$B$19,K164)),MAX($J$1:J163)+1,0) -> 0 | K164: ='Crop Information'!B169 -> Sugarcane (virgin - Tropics) | M164: =IFERROR(VLOOKUP(ROWS($M$2:M164),$J$2:$K$763,2,FALSE),"") -> 
J165: =IF(ISNUMBER(SEARCH('3 Irrigation Schedule'!$B$19,K165)),MAX($J$1:J164)+1,0) -> 0 | K165: ='Crop Information'!B170 -> Sugarcane (virgin - Hawaii) | M165: =IFERROR(VLOOKUP(ROWS($M$2:M165),$J$2:$K$763,2,FALSE),"") -> 
J166: =IF(ISNUMBER(SEARCH('3 Irrigation Schedule'!$B$19,K166)),MAX($J$1:J165)+1,0) -> 0 | K166: ='Crop Information'!B171 -> Sunflower (Apr/May - Mediterranean/California) | M166: =IFERROR(VLOOKUP(ROWS($M$2:M166),$J$2:$K$763,2,FALSE),"") -> 
J167: =IF(ISNUMBER(SEARCH('3 Irrigation Schedule'!$B$19,K167)),MAX($J$1:J166)+1,0) -> 0 | K167: ='Crop Information'!B172 -> Sweet melons (May - Mediterranean) | M167: =IFERROR(VLOOKUP(ROWS($M$2:M167),$J$2:$K$763,2,FALSE),"") -> 
J168: =IF(ISNUMBER(SEARCH('3 Irrigation Schedule'!$B$19,K168)),MAX($J$1:J167)+1,0) -> 0 | K168: ='Crop Information'!B173 -> Sweet melons (Mar - California) | M168: =IFERROR(VLOOKUP(ROWS($M$2:M168),$J$2:$K$763,2,FALSE),"") -> 
J169: =IF(ISNUMBER(SEARCH('3 Irrigation Schedule'!$B$19,K169)),MAX($J$1:J168)+1,0) -> 0 | K169: ='Crop Information'!B174 -> Sweet melons (Aug - California desert) | M169: =IFERROR(VLOOKUP(ROWS($M$2:M169),$J$2:$K$763,2,FALSE),"") -> 
J170: =IF(ISNUMBER(SEARCH('3 Irrigation Schedule'!$B$19,K170)),MAX($J$1:J169)+1,0) -> 0 | K170: ='Crop Information'!B175 -> Sweet melons (Dec/Jan - arid region) | M170: =IFERROR(VLOOKUP(ROWS($M$2:M170),$J$2:$K$763,2,FALSE),"") -> 
J171: =IF(ISNUMBER(SEARCH('3 Irrigation Schedule'!$B$19,K171)),MAX($J$1:J170)+1,0) -> 0 | K171: ='Crop Information'!B176 -> Sweet peppers (Apr/Jun - Europe/Mediterranean) | M171: =IFERROR(VLOOKUP(ROWS($M$2:M171),$J$2:$K$763,2,FALSE),"") -> 
J172: =IF(ISNUMBER(SEARCH('3 Irrigation Schedule'!$B$19,K172)),MAX($J$1:J171)+1,0) -> 0 | K172: ='Crop Information'!B177 -> Sweet peppers (Oct - arid region) | M172: =IFERROR(VLOOKUP(ROWS($M$2:M172),$J$2:$K$763,2,FALSE),"") -> 
J173: =IF(ISNUMBER(SEARCH('3 Irrigation Schedule'!$B$19,K173)),MAX($J$1:J172)+1,0) -> 0 | K173: ='Crop Information'!B178 -> Sweet potato (Apr - Mediterranean) | M173: =IFERROR(VLOOKUP(ROWS($M$2:M173),$J$2:$K$763,2,FALSE),"") -> 
J174: =IF(ISNUMBER(SEARCH('3 Irrigation Schedule'!$B$19,K174)),MAX($J$1:J173)+1,0) -> 0 | K174: ='Crop Information'!B179 -> Sweet potato (rainy season - Tropical regions) | M174: =IFERROR(VLOOKUP(ROWS($M$2:M174),$J$2:$K$763,2,FALSE),"") -> 
J175: =IF(ISNUMBER(SEARCH('3 Irrigation Schedule'!$B$19,K175)),MAX($J$1:J174)+1,0) -> 0 | K175: ='Crop Information'!B180 -> Tomato (Jan - arid region) | M175: =IFERROR(VLOOKUP(ROWS($M$2:M175),$J$2:$K$763,2,FALSE),"") -> 
J176: =IF(ISNUMBER(SEARCH('3 Irrigation Schedule'!$B$19,K176)),MAX($J$1:J175)+1,0) -> 0 | K176: ='Crop Information'!B181 -> Tomato (Apr/May - California) | M176: =IFERROR(VLOOKUP(ROWS($M$2:M176),$J$2:$K$763,2,FALSE),"") -> 
J177: =IF(ISNUMBER(SEARCH('3 Irrigation Schedule'!$B$19,K177)),MAX($J$1:J176)+1,0) -> 0 | K177: ='Crop Information'!B182 -> Tomato (Jan - California desert) | M177: =IFERROR(VLOOKUP(ROWS($M$2:M177),$J$2:$K$763,2,FALSE),"") -> 
J178: =IF(ISNUMBER(SEARCH('3 Irrigation Schedule'!$B$19,K178)),MAX($J$1:J177)+1,0) -> 0 | K178: ='Crop Information'!B183 -> Tomato (Oct/Nov - arid region) | M178: =IFERROR(VLOOKUP(ROWS($M$2:M178),$J$2:$K$763,2,FALSE),"") -> 
J179: =IF(ISNUMBER(SEARCH('3 Irrigation Schedule'!$B$19,K179)),MAX($J$1:J178)+1,0) -> 0 | K179: ='Crop Information'!B184 -> Tomato (Apr/May - Mediterranean) | M179: =IFERROR(VLOOKUP(ROWS($M$2:M179),$J$2:$K$763,2,FALSE),"") -> 
J180: =IF(ISNUMBER(SEARCH('3 Irrigation Schedule'!$B$19,K180)),MAX($J$1:J179)+1,0) -> 0 | K180: ='Crop Information'!B185 -> Walnuts (Apr - Utah) | M180: =IFERROR(VLOOKUP(ROWS($M$2:M180),$J$2:$K$763,2,FALSE),"") -> 
J181: =IF(ISNUMBER(SEARCH('3 Irrigation Schedule'!$B$19,K181)),MAX($J$1:J180)+1,0) -> 0 | K181: ='Crop Information'!B186 -> Water melons (Apr - Italy) | M181: =IFERROR(VLOOKUP(ROWS($M$2:M181),$J$2:$K$763,2,FALSE),"") -> 
J182: =IF(ISNUMBER(SEARCH('3 Irrigation Schedule'!$B$19,K182)),MAX($J$1:J181)+1,0) -> 0 | K182: ='Crop Information'!B187 -> Water melons (Mat/Aug - Near East (desert)) | M182: =IFERROR(VLOOKUP(ROWS($M$2:M182),$J$2:$K$763,2,FALSE),"") -> 
J183: =IF(ISNUMBER(SEARCH('3 Irrigation Schedule'!$B$19,K183)),MAX($J$1:J182)+1,0) -> 0 | K183: ='Crop Information'!B188 -> Winter Wheat (Dec - California) | M183: =IFERROR(VLOOKUP(ROWS($M$2:M183),$J$2:$K$763,2,FALSE),"") -> 
J184: =IF(ISNUMBER(SEARCH('3 Irrigation Schedule'!$B$19,K184)),MAX($J$1:J183)+1,0) -> 0 | K184: ='Crop Information'!B189 -> Winter Wheat (Nov - Mediterranean) | M184: =IFERROR(VLOOKUP(ROWS($M$2:M184),$J$2:$K$763,2,FALSE),"") -> 
J185: =IF(ISNUMBER(SEARCH('3 Irrigation Schedule'!$B$19,K185)),MAX($J$1:J184)+1,0) -> 0 | K185: ='Crop Information'!B190 -> Winter Wheat (Oct - Idaho) | M185: =IFERROR(VLOOKUP(ROWS($M$2:M185),$J$2:$K$763,2,FALSE),"") -> 
J186: =IF(ISNUMBER(SEARCH('3 Irrigation Schedule'!$B$19,K186)),MAX($J$1:J185)+1,0) -> 0 | K186: ='Crop Information'!B191 -> New crop | M186: =IFERROR(VLOOKUP(ROWS($M$2:M186),$J$2:$K$763,2,FALSE),"") -> 
J187: =IF(ISNUMBER(SEARCH('3 Irrigation Schedule'!$B$19,K187)),MAX($J$1:J186)+1,0) -> 0 | K187: ='Crop Information'!B192 -> New crop | M187: =IFERROR(VLOOKUP(ROWS($M$2:M187),$J$2:$K$763,2,FALSE),"") -> 
J188: =IF(ISNUMBER(SEARCH('3 Irrigation Schedule'!$B$19,K188)),MAX($J$1:J187)+1,0) -> 0 | K188: ='Crop Information'!B193 -> New crop | M188: =IFERROR(VLOOKUP(ROWS($M$2:M188),$J$2:$K$763,2,FALSE),"") -> 
J189: =IF(ISNUMBER(SEARCH('3 Irrigation Schedule'!$B$19,K189)),MAX($J$1:J188)+1,0) -> 0 | K189: ='Crop Information'!B194 -> New crop | M189: =IFERROR(VLOOKUP(ROWS($M$2:M189),$J$2:$K$763,2,FALSE),"") -> 
J190: =IF(ISNUMBER(SEARCH('3 Irrigation Schedule'!$B$19,K190)),MAX($J$1:J189)+1,0) -> 0 | K190: ='Crop Information'!B195 -> New crop | M190: =IFERROR(VLOOKUP(ROWS($M$2:M190),$J$2:$K$763,2,FALSE),"") -> 
J191: =IF(ISNUMBER(SEARCH('3 Irrigation Schedule'!$B$19,K191)),MAX($J$1:J190)+1,0) -> 0 | K191: ='Crop Information'!B196 -> New crop | M191: =IFERROR(VLOOKUP(ROWS($M$2:M191),$J$2:$K$763,2,FALSE),"") -> 
J192: =IF(ISNUMBER(SEARCH('3 Irrigation Schedule'!$B$19,K192)),MAX($J$1:J191)+1,0) -> 0 | K192: ='Crop Information'!B197 -> New crop | M192: =IFERROR(VLOOKUP(ROWS($M$2:M192),$J$2:$K$763,2,FALSE),"") -> 
J193: =IF(ISNUMBER(SEARCH('3 Irrigation Schedule'!$B$19,K193)),MAX($J$1:J192)+1,0) -> 0 | K193: ='Crop Information'!B198 -> New crop | M193: =IFERROR(VLOOKUP(ROWS($M$2:M193),$J$2:$K$763,2,FALSE),"") -> 
J194: =IF(ISNUMBER(SEARCH('3 Irrigation Schedule'!$B$19,K194)),MAX($J$1:J193)+1,0) -> 0 | K194: ='Crop Information'!B199 -> New crop | M194: =IFERROR(VLOOKUP(ROWS($M$2:M194),$J$2:$K$763,2,FALSE),"") -> 
J195: =IF(ISNUMBER(SEARCH('3 Irrigation Schedule'!$B$19,K195)),MAX($J$1:J194)+1,0) -> 0 | K195: ='Crop Information'!B200 -> New crop | M195: =IFERROR(VLOOKUP(ROWS($M$2:M195),$J$2:$K$763,2,FALSE),"") -> 
J196: =IF(ISNUMBER(SEARCH('3 Irrigation Schedule'!$B$19,K196)),MAX($J$1:J195)+1,0) -> 0 | K196: ='Crop Information'!B201 -> New crop | M196: =IFERROR(VLOOKUP(ROWS($M$2:M196),$J$2:$K$763,2,FALSE),"") -> 
J197: =IF(ISNUMBER(SEARCH('3 Irrigation Schedule'!$B$19,K197)),MAX($J$1:J196)+1,0) -> 0 | K197: ='Crop Information'!B202 -> New crop | M197: =IFERROR(VLOOKUP(ROWS($M$2:M197),$J$2:$K$763,2,FALSE),"") -> 
J198: =IF(ISNUMBER(SEARCH('3 Irrigation Schedule'!$B$19,K198)),MAX($J$1:J197)+1,0) -> 0 | K198: ='Crop Information'!B203 -> New crop | M198: =IFERROR(VLOOKUP(ROWS($M$2:M198),$J$2:$K$763,2,FALSE),"") -> 
J199: =IF(ISNUMBER(SEARCH('3 Irrigation Schedule'!$B$19,K199)),MAX($J$1:J198)+1,0) -> 0 | K199: ='Crop Information'!B204 -> New crop | M199: =IFERROR(VLOOKUP(ROWS($M$2:M199),$J$2:$K$763,2,FALSE),"") -> 
J200: =IF(ISNUMBER(SEARCH('3 Irrigation Schedule'!$B$19,K200)),MAX($J$1:J199)+1,0) -> 0 | K200: ='Crop Information'!B205 -> New crop | M200: =IFERROR(VLOOKUP(ROWS($M$2:M200),$J$2:$K$763,2,FALSE),"") -> 
... 11 more rows
